,Directorate,Supplier Name,Supplier Invoice No,Payment Date,Gross Invoice Value,Vat Amount,Vendor Id,Purpose of Expenditure,Description,Redact flag,Year,Period
1,Community and Housing,SOUTHPARK RESIDENTIAL HOME,903811,25-Nov-22,2185.22,0,19,Older People Placements - East,321017              Social Community Care Supplies & Services - Adult,A,2022,8
2,Community and Housing,SOUTHPARK RESIDENTIAL HOME,903812,25-Nov-22,2965.2,0,19,Older People Placements - East,321017              Social Community Care Supplies & Services - Adult,A,2022,8
3,Community and Housing,SOUTHPARK RESIDENTIAL HOME,904159,25-Nov-22,2965.2,0,19,Older People Placements - East,321017              Social Community Care Supplies & Services - Adult,A,2022,8
4,Community and Housing,POLISH CITIZENS COMMITTEE,903899,25-Nov-22,2937.76,0,71,Older People Placements - East,321017              Nursing & Residential Care Homes,A,2022,8
5,Community and Housing,ST TERESA`S HOME FOR THE ELDERLY,903917,25-Nov-22,3080,0,362,Older People Placements - East,321017              Nursing & Residential Care Homes,A,2022,8
6,Community and Housing,ST TERESA`S HOME FOR THE ELDERLY,904145,25-Nov-22,2443.16,0,362,Older People Placements - East,321017              Nursing & Residential Care Homes,A,2022,8
7,Community and Housing,THE WHITE HOUSE NURSING HOME,904140,25-Nov-22,3396,0,611,Older People Placements - East,321000              Social Community Care Supplies & Services - Adult,A,2022,8
8,"Children, Schools and Family",BLOSSOM HOUSE SCHOOL,9158,05-Dec-22,17250,0,777,Non-Delegated Statements,170000              Education,A,2022,8
9,Unassigned,PERSEID SCHOOL,SCHOOLS 2223/8 A,08-Nov-22,388353.93,0,983,Schools,170000              Education,A,2022,8
10,"Children, Schools and Family",PERSEID SCHOOL,2177,28-Nov-22,7250,0,983,School Improvement Dedelegated,170000              Education,A,2022,8
11,"Children, Schools and Family",PERSEID SCHOOL,2178,29-Nov-22,1000,0,983,School Improvement Dedelegated,170000              Education,A,2022,8
12,Community and Housing,SUTTON NURSING HOMES LTD,903765,25-Nov-22,3056.44,0,1208,Older People Placements - East,321017              Nursing & Residential Care Homes,A,2022,8
13,Community and Housing,SUTTON NURSING HOMES LTD,903847,25-Nov-22,3087.16,0,1208,Older People Placements - East,321017              Nursing & Residential Care Homes,A,2022,8
14,Environment and Regeneration,LONDON BOROUGH OF CROYDON,3018633,14-Nov-22,151051.44,23676.99,1258,PARK OPERATIONS,OLA,A,2022,8
15,Environment and Regeneration,LONDON BOROUGH OF CROYDON,3018099,14-Nov-22,275770.02,45961.67,1258,PARK OPERATIONS,OLA,A,2022,8
16,Environment and Regeneration,LONDON BOROUGH OF CROYDON,3018553,07-Nov-22,26380.51,0,1258,PARK OPERATIONS,OLA,A,2022,8
17,Unassigned,MELROSE SPECIAL SCHOOL,SCHOOLS 2223/8 A,08-Nov-22,247662.78,0,1393,Schools,170000              Education,A,2022,8
18,Unassigned,WILLIAM MORRIS PRIMARY SCHOOL,SCHOOLS 2223/8 A,08-Nov-22,154948.04,0,1416,Schools,170000              Education,A,2022,8
19,Unassigned,WILLIAM MORRIS PRIMARY SCHOOL,20ZPRE000002,21-Nov-22,2699,0,1416,Corporate Services,170000              Education,A,2022,8
20,Unassigned,ST THOMAS OF CANTERBURY PRIMARY,SCHOOLS 2223/8 A,08-Nov-22,220372,0,1418,Schools,170000              Education,A,2022,8
21,Unassigned,PRIORY C OF E MIDDLE SCHOOL,SCHOOLS 2223/8 A,08-Nov-22,112129,0,1420,Schools,170000              Education,A,2022,8
22,Unassigned,LIBERTY PRIMARY SCHOOL,SCHOOLS 2223/8 A,08-Nov-22,201546.28,0,1424,Schools,170000              Education,A,2022,8
23,Unassigned,HILLCROSS PRIMARY SCHOOL,SCHOOLS 2223/8 A,08-Nov-22,222342.91,0,1425,Schools,170000              Education,A,2022,8
24,Unassigned,CRANMER PRIMARY SCHOOL,SCHOOLS 2223/8 A,08-Nov-22,280489.57,0,1426,Schools,170000              Education,A,2022,8
25,Unassigned,WIMBLEDON COLLEGE SCHOOL,SCHOOLS 2223/8 A,08-Nov-22,744473.53,0,1428,Schools,170000              Education,A,2022,8
26,Unassigned,URSULINE HIGH SCHOOL,SCHOOLS 2223/8 A,08-Nov-22,767036.8,0,1429,Schools,170000              Education,A,2022,8
27,"Children, Schools and Family",URSULINE HIGH SCHOOL,HAFOCT22-P3,21-Nov-22,3132,0,1429,Holiday Act Food Prog grntfnd,170000              Education,A,2022,8
28,Unassigned,RUTLISH SCHOOL,SCHOOLS 2223/8 A,08-Nov-22,800709.17,0,1431,Schools,170000              Education,A,2022,8
29,Unassigned,RICARDS LODGE SECONDARY SCHOOL,SCHOOLS 2223/8 A,08-Nov-22,731437.55,0,1433,Schools,170000              Education,A,2022,8
30,Unassigned,WIMBLEDON PARK PRIMARY SCHOOL,SCHOOLS 2223/8 A,08-Nov-22,257835.99,0,1436,Schools,170000              Education,A,2022,8
31,Unassigned,ST TERESA'S R C PRIMARY SCHOOL,SCHOOLS 2223/8 A,08-Nov-22,211796.67,0,1438,Schools,170000              Education,A,2022,8
32,Unassigned,ST MARYS CATHOLIC PRIMARY SCHOOL,SCHOOLS 2223/8 A,08-Nov-22,186577.08,0,1439,Schools,170000              Education,A,2022,8
33,Unassigned,ST MARKS PRIMARY SCHOOL,SCHOOLS 2223/8 A,08-Nov-22,126525.15,0,1440,Schools,170000              Education,A,2022,8
34,Unassigned,ST JOHN FISHER RC PRIMARY SCH.,SCHOOLS 2223/8 A,08-Nov-22,193892.99,0,1441,Schools,170000              Education,A,2022,8
35,"Children, Schools and Family",ST JOHN FISHER RC PRIMARY SCH.,2120,11-Nov-22,540,0,1441, Childrens Short Breaks,170000              Education,A,2022,8
36,"Children, Schools and Family",ST JOHN FISHER RC PRIMARY SCH.,2131,02-Dec-22,1200,0,1441,School Improvement Dedelegated,170000              Education,A,2022,8
37,Unassigned,SINGLEGATE PRIMARY SCHOOL,SCHOOLS 2223/8 A,08-Nov-22,274367.59,0,1442,Schools,170000              Education,A,2022,8
38,Unassigned,SHERWOOD PRIMARY SCHOOL,SCHOOLS 2223/8 A,08-Nov-22,176452.13,0,1443,Schools,170000              Education,A,2022,8
39,Unassigned,POPLAR PRIMARY SCHOOL,SCHOOLS 2223/8 A,08-Nov-22,283334.88,0,1444,Schools,170000              Education,A,2022,8
40,"Children, Schools and Family",POPLAR PRIMARY SCHOOL,POP04/1122,17-Nov-22,7707.5,0,1444,School Improvement GeneralFund,170000              Education,A,2022,8
41,"Children, Schools and Family",POPLAR PRIMARY SCHOOL,POP05/072022,23-Nov-22,1200,0,1444,School Improvement Dedelegated,170000              Education,A,2022,8
42,Unassigned,PELHAM PRIMARY SCHOOL,SCHOOLS 2223/8 A,08-Nov-22,173279.71,0,1445,Schools,170000              Education,A,2022,8
43,Unassigned,MORDEN PRIMARY SCHOOL,SCHOOLS 2223/8 A,08-Nov-22,123367.43,0,1446,Schools,170000              Education,A,2022,8
44,Unassigned,MERTON PARK PRIMARY SCHOOL,SCHOOLS 2223/8 A,08-Nov-22,113407.08,0,1447,Schools,170000              Education,A,2022,8
45,Unassigned,MERTON ABBEY PRIMARY SCHOOL,SCHOOLS 2223/8 A,08-Nov-22,123608.85,0,1448,Schools,170000              Education,A,2022,8
46,Unassigned,LONESOME PRIMARY SCHOOL,SCHOOLS 2223/8 A,08-Nov-22,185017.39,0,1450,Schools,170000              Education,A,2022,8
47,Unassigned,LINKS PRIMARY SCHOOL,SCHOOLS 2223/8 A,08-Nov-22,182732.96,0,1451,Schools,170000              Education,A,2022,8
48,"Children, Schools and Family",LINKS PRIMARY SCHOOL,HAFOCT22-P2,21-Nov-22,1105,0,1451,Holiday Act Food Prog grntfnd,170000              Education,A,2022,8
49,Unassigned,JOSEPH HOOD PRIMARY SCHOOL,SCHOOLS 2223/8 A,08-Nov-22,178348.22,0,1452,Schools,170000              Education,A,2022,8
50,Unassigned,HOLY TRINITY C OF E PRIMARY SCHOOL,SCHOOLS 2223/8 A,08-Nov-22,189466.68,0,1453,Schools,170000              Education,A,2022,8
51,Unassigned,HOLLYMOUNT PRIMARY SCHOOL,SCHOOLS 2223/8 A,08-Nov-22,186655.57,0,1454,Schools,170000              Education,A,2022,8
52,Unassigned,HATFEILD PRIMARY SCHOOL,SCHOOLS 2223/8 A,08-Nov-22,260211.98,0,1455,Schools,170000              Education,A,2022,8
53,Unassigned,HASLEMERE PRIMARY SCHOOL,SCHOOLS 2223/8 A,08-Nov-22,200028.93,0,1456,Schools,170000              Education,A,2022,8
54,Unassigned,GARFIELD PRIMARY SCHOOL,SCHOOLS 2223/8 A,08-Nov-22,159110.43,0,1460,Schools,170000              Education,A,2022,8
55,Unassigned,BOND PRIMARY SCHOOL,SCHOOLS 2223/8 A,08-Nov-22,192596.75,0,1462,Schools,170000              Education,A,2022,8
56,Unassigned,BISHOP GILPIN C OF E PRIMARY,SCHOOLS 2223/8 A,08-Nov-22,184309,0,1463,Schools,170000              Education,A,2022,8
57,"Children, Schools and Family",BISHOP GILPIN C OF E PRIMARY,1582,28-Nov-22,550,0,1463,SW London School Effectiveness,170000              Education,A,2022,8
58,Unassigned,ABBOTSBURY PRIMARY SCHOOL,SCHOOLS 2223/8 A,08-Nov-22,193141.2,0,1467,Schools,170000              Education,A,2022,8
59,Unassigned,WIMBLEDON CHASE PRIMARY SCHOOL,SCHOOLS 2223/8 A,08-Nov-22,290936.83,0,1469,Schools,170000              Education,A,2022,8
60,"Children, Schools and Family",WIMBLEDON CHASE PRIMARY SCHOOL,BY1814,23-Nov-22,1500,0,1469,School Improvement Dedelegated,170000              Education,A,2022,8
61,Unassigned,GORRINGE PARK PRIMARY SCHOOL,SCHOOLS 2223/8 A,08-Nov-22,208590.78,0,1470,Schools,170000              Education,A,2022,8
62,Unassigned,RAYNES PARK SECONDARY SCHOOL,SCHOOLS 2223/8 A,08-Nov-22,687143.22,0,1471,Schools,170000              Education,A,2022,8
63,Unassigned,SS PETER AND PAUL RC PRIMARY SCH,SCHOOLS 2223/8 A,08-Nov-22,177590.74,0,1472,Schools,170000              Education,A,2022,8
64,Unassigned,DUNDONALD PRIMARY SCHOOL,SCHOOLS 2223/8 A,08-Nov-22,181534.61,0,1473,Schools,170000              Education,A,2022,8
65,Community and Housing,MERTON MENCAP,4272,15-Nov-22,800,0,1519,Learning Disabilities Placemnt,200000              Financial Services,A,2022,8
66,Community and Housing,MERTON MENCAP,4283,15-Nov-22,880,0,1519,Learning Disabilities Placemnt,200000              Financial Services,A,2022,8
67,Community and Housing,MERTON MENCAP,4284,15-Nov-22,880,0,1519,Learning Disabilities Placemnt,200000              Financial Services,A,2022,8
68,Community and Housing,MERTON MENCAP,4280,15-Nov-22,880,0,1519,Learning Disabilities Placemnt,200000              Financial Services,A,2022,8
69,Community and Housing,MERTON MENCAP,4282,15-Nov-22,880,0,1519,Learning Disabilities Placemnt,200000              Financial Services,A,2022,8
70,Community and Housing,MERTON MENCAP,4279,18-Nov-22,880,0,1519,Learning Disabilities Placemnt,200000              Financial Services,A,2022,8
71,Community and Housing,MERTON MENCAP,4274,18-Nov-22,800,0,1519,Learning Disabilities Placemnt,200000              Financial Services,A,2022,8
72,Community and Housing,MERTON MENCAP,4117,21-Nov-22,720,0,1519,Learning Disabilities Placemnt,200000              Financial Services,A,2022,8
73,Community and Housing,MERTON MENCAP,4223,21-Nov-22,1040,0,1519,Learning Disabilities Placemnt,200000              Financial Services,A,2022,8
74,Unassigned,ALL SAINTS C OF E PRIMARY SCH,SCHOOLS 2223/8 A,08-Nov-22,170160.03,0,1680,Schools,170000              Education,A,2022,8
75,"Children, Schools and Family",REDACTED PERSONAL DATA,898538,04-Nov-22,514.75,0,1801,Placements Under 18,321100              Social Community Care Supplies & Services - Children,R,2022,8
76,"Children, Schools and Family",REDACTED PERSONAL DATA,900215,11-Nov-22,514.75,0,1801,Placements Under 18,321100              Social Community Care Supplies & Services - Children,R,2022,8
77,"Children, Schools and Family",REDACTED PERSONAL DATA,901860,21-Nov-22,514.75,0,1801,Placements Under 18,321100              Social Community Care Supplies & Services - Children,R,2022,8
78,"Children, Schools and Family",REDACTED PERSONAL DATA,904401,25-Nov-22,514.75,0,1801,Placements Under 18,321100              Social Community Care Supplies & Services - Children,R,2022,8
79,"Children, Schools and Family",REDACTED PERSONAL DATA,904843,29-Nov-22,4485.69,0,1801,Placements Under 18,321100              Social Community Care Supplies & Services - Children,R,2022,8
80,Corporate Services,CIVICA UK LIMITED,C/BN256129,22-Nov-22,2632.85,438.81,1873,Benefits Administration,270000              Information Communication Technology,A,2022,8
81,Corporate Services,CIVICA UK LIMITED,C/BN256130,22-Nov-22,1148.28,191.38,1873,Benefits Administration,270000              Information Communication Technology,A,2022,8
82,Corporate Services,CIVICA UK LIMITED,C/RB256575,29-Nov-22,4283.12,713.85,1873,Local Taxation Services,270000              Information Communication Technology,A,2022,8
83,Corporate Services,CIVICA UK LIMITED,M/MG105850,14-Nov-22,13117.23,2186.2,1873,Democracy Services,270000              Information Communication Technology,A,2022,8
84,Corporate Services,CIVICA UK LIMITED,C/BN257047,06-Dec-22,13068.36,2178.06,1873,Local Taxation Services,270000              Information Communication Technology,A,2022,8
85,"Children, Schools and Family",THE CHILDRENS TRUST,5125,21-Nov-22,7553.4,0,1980,Non-Delegated Statements,170000              Education,A,2022,8
86,"Children, Schools and Family",THE CHILDRENS TRUST,5126,21-Nov-22,3132.9,0,1980,Non-Delegated Statements,170000              Education,A,2022,8
87,"Children, Schools and Family",THE CHILDRENS TRUST,5127,21-Nov-22,5951.4,0,1980,Non-Delegated Statements,170000              Education,A,2022,8
88,Community and Housing,THE FRANCES TAYLOR FOUNDATION,903831,25-Nov-22,3812.04,0,2011,Learning Disabilities Placemnt,321017              Nursing & Residential Care Homes,A,2022,8
89,Unassigned,SACRED HEART R C PRIMARY SCH.,SCHOOLS 2223/8 A,08-Nov-22,144760.91,0,2076,Schools,170000              Education,A,2022,8
90,Community and Housing,GENEVA ROAD LIMITED,311022JW,07-Nov-22,781.09,130.18,2198,Older People Placements - East,321000              Social Community Care Supplies & Services - Adult,A,2022,8
91,Environment and Regeneration,LONDON BOROUGH OF SUTTON,3190493030,08-Nov-22,4550,0,2313,Environmental Health-Pollution,OLA,A,2022,8
92,Environment and Regeneration,LONDON BOROUGH OF SUTTON,3190498537,11-Nov-22,4770,0,2313,LBR - Pollution,OLA,A,2022,8
93,Corporate Services,LONDON BOROUGH OF SUTTON,SLLPINCOMEM0722,10-Nov-22,6665,0,2313,SLLP Client Income,OLA,A,2022,8
94,Environment and Regeneration,LONDON BOROUGH OF SUTTON,3190501060,22-Nov-22,48992,0,2313,LBR - Pollution,OLA,A,2022,8
95,"Children, Schools and Family",THE LINK SECONDARY SCHOOL,DI118104547,07-Nov-22,17516.33,0,2324,Non-Delegated Statements,170000              Education,A,2022,8
96,"Children, Schools and Family",The Link Primary School,DI118104548,07-Nov-22,35330.99,0,2329,Non-Delegated Statements,200000              Financial Services,A,2022,8
97,Corporate Services,GREENHAM TRADING LTD,07/478398,22-Nov-22,2312.04,385.34,2445,Facilities,130000              Cleaning & Janitorial,A,2022,8
98,Corporate Services,GREENHAM TRADING LTD,07/472913,23-Nov-22,646.56,107.76,2445,Corporate Contracts - FM,130000              Cleaning & Janitorial,A,2022,8
99,Community and Housing,FREEWAYS TRUST LTD,903744,25-Nov-22,3229.2,0,2474,Learning Disabilities Placemnt,321017              Nursing & Residential Care Homes,A,2022,8
100,"Children, Schools and Family",ACTIVITY WORKWEAR LIMITED,20736,29-Nov-22,1087.75,181.29,2752, Children's Centres Support,140000              Clothing,A,2022,8
101,Community and Housing,CLOYDA LTD,904016,25-Nov-22,3294.48,0,10762,Older People Placements - East,321017              Nursing & Residential Care Homes,A,2022,8
102,Community and Housing,CHEGWORTH N.H. (BAYSWIFT LTD),903973,25-Nov-22,3056.4,0,11057,Learning Disabilities Placemnt,321000              Social Community Care Supplies & Services - Adult,A,2022,8
103,"Children, Schools and Family",REDACTED PERSONAL DATA,898486,04-Nov-22,580.36,0,11130,Placements Under 18,321100              Social Community Care Supplies & Services - Children,R,2022,8
104,"Children, Schools and Family",REDACTED PERSONAL DATA,900163,11-Nov-22,580.36,0,11130,Placements Under 18,321100              Social Community Care Supplies & Services - Children,R,2022,8
105,"Children, Schools and Family",REDACTED PERSONAL DATA,901808,21-Nov-22,580.36,0,11130,Placements Under 18,321100              Social Community Care Supplies & Services - Children,R,2022,8
106,"Children, Schools and Family",REDACTED PERSONAL DATA,904352,25-Nov-22,580.36,0,11130,Placements Under 18,321100              Social Community Care Supplies & Services - Children,R,2022,8
107,Community and Housing,ASHCROFT CARE SERVICES,903972,25-Nov-22,6161.24,0,13287,Learning Disabilities Placemnt,321017              Nursing & Residential Care Homes,A,2022,8
108,Community and Housing,SHARE COMMUNITY LTD,230946,01-Nov-22,840,0,13487,Learning Disabilities Placemnt,321017              Nursing & Residential Care Homes,A,2022,8
109,Community and Housing,SHARE COMMUNITY LTD,230943,01-Nov-22,600,0,13487,Learning Disabilities Placemnt,321017              Nursing & Residential Care Homes,A,2022,8
110,Community and Housing,SHARE COMMUNITY LTD,230958,09-Nov-22,1120,0,13487,Learning Disabilities Placemnt,321017              Nursing & Residential Care Homes,A,2022,8
111,Community and Housing,SHARE COMMUNITY LTD,230955,09-Nov-22,840,0,13487,Learning Disabilities Placemnt,321017              Nursing & Residential Care Homes,A,2022,8
112,Community and Housing,SHARE COMMUNITY LTD,230951,09-Nov-22,560,0,13487,Learning Disabilities Placemnt,321017              Nursing & Residential Care Homes,A,2022,8
113,Community and Housing,SHARE COMMUNITY LTD,230973,09-Nov-22,900,0,13487,Learning Disabilities Placemnt,321017              Nursing & Residential Care Homes,A,2022,8
114,Community and Housing,FITZROY SUPPORT,904085,25-Nov-22,8304.28,0,13535,Learning Disabilities Placemnt,321017              Nursing & Residential Care Homes,A,2022,8
115,Community and Housing,CANTERBURY OAST TRUST LTD,903758,25-Nov-22,2541.24,0,13566,Learning Disabilities Placemnt,321017              Nursing & Residential Care Homes,A,2022,8
116,Community and Housing,MACINTYRE,903771,25-Nov-22,5776,0,13585,Learning Disabilities Placemnt,321017              Nursing & Residential Care Homes,A,2022,8
117,Community and Housing,MACINTYRE,903944,25-Nov-22,5641.36,0,13585,Learning Disabilities Placemnt,321017              Nursing & Residential Care Homes,A,2022,8
118,Community and Housing,MACINTYRE,904053,25-Nov-22,5641.36,0,13585,Older People Placements - East,321017              Nursing & Residential Care Homes,A,2022,8
119,Community and Housing,MACINTYRE,904083,25-Nov-22,4825.24,0,13585,Learning Disabilities Placemnt,321017              Nursing & Residential Care Homes,A,2022,8
120,Community and Housing,KENT AUTISTIC TRUST,904061,25-Nov-22,7494.72,0,13670,Learning Disabilities Placemnt,321017              Nursing & Residential Care Homes,A,2022,8
121,Community and Housing,UNITED RESPONSE,VSMR796672BA,15-Nov-22,4837.78,806.3,14616,Learning Disabilities Placemnt,321000              Social Community Care Supplies & Services - Adult,A,2022,8
122,Community and Housing,UNITED RESPONSE,VSMR796672BO,15-Nov-22,4837.78,806.3,14616,Learning Disabilities Placemnt,321000              Social Community Care Supplies & Services - Adult,A,2022,8
123,Community and Housing,UNITED RESPONSE,VSMR796672ST,15-Nov-22,4837.78,806.3,14616,Learning Disabilities Placemnt,321000              Social Community Care Supplies & Services - Adult,A,2022,8
124,Community and Housing,UNITED RESPONSE,VSMR796672SV,15-Nov-22,4837.78,806.3,14616,Learning Disabilities Placemnt,321000              Social Community Care Supplies & Services - Adult,A,2022,8
125,Community and Housing,UNITED RESPONSE,VSMR796672RW,15-Nov-22,4837.78,806.3,14616,Learning Disabilities Placemnt,321000              Social Community Care Supplies & Services - Adult,A,2022,8
126,Community and Housing,UNITED RESPONSE,VSMR785239RH,11-Nov-22,4134.62,689.1,14616,Learning Disabilities Placemnt,321000              Social Community Care Supplies & Services - Adult,A,2022,8
127,Community and Housing,UNITED RESPONSE,VSMR785239DH,11-Nov-22,3842.88,640.48,14616,Learning Disabilities Placemnt,321000              Social Community Care Supplies & Services - Adult,A,2022,8
128,Community and Housing,UNITED RESPONSE,VSMR785239HM,11-Nov-22,4572.24,762.04,14616,Learning Disabilities Placemnt,321000              Social Community Care Supplies & Services - Adult,A,2022,8
129,Community and Housing,UNITED RESPONSE,VSMR785239BS,11-Nov-22,4086.05,681.01,14616,Learning Disabilities Placemnt,321000              Social Community Care Supplies & Services - Adult,A,2022,8
130,Community and Housing,UNITED RESPONSE,VSMR785239CW,11-Nov-22,4766.4,794.4,14616,Learning Disabilities Placemnt,321000              Social Community Care Supplies & Services - Adult,A,2022,8
131,Community and Housing,UNITED RESPONSE,VSMR800500RH,06-Dec-22,4134.62,689.1,14616,Learning Disabilities Placemnt,321000              Social Community Care Supplies & Services - Adult,A,2022,8
132,Community and Housing,UNITED RESPONSE,VSMR800500DH,06-Dec-22,3842.88,640.48,14616,Learning Disabilities Placemnt,321000              Social Community Care Supplies & Services - Adult,A,2022,8
133,Community and Housing,UNITED RESPONSE,VSMR800500HM,06-Dec-22,4572.24,762.04,14616,Learning Disabilities Placemnt,321000              Social Community Care Supplies & Services - Adult,A,2022,8
134,Community and Housing,UNITED RESPONSE,VSMR800500BS,06-Dec-22,4086.05,681.01,14616,Learning Disabilities Placemnt,321000              Social Community Care Supplies & Services - Adult,A,2022,8
135,Community and Housing,UNITED RESPONSE,VSMR800500CW,06-Dec-22,4766.4,794.4,14616,Learning Disabilities Placemnt,321000              Social Community Care Supplies & Services - Adult,A,2022,8
136,Community and Housing,SPECTRUM PLASTICS,INV-55590,22-Nov-22,878.4,146.4,15550,Libraries Service-Civic Centre,170000              Education,A,2022,8
137,Corporate Services,KINGSTON CORPORATION,M07LEGAL22/23,10-Nov-22,3990,0,21573,SLLP Client Income,180000              Environmental Services,A,2022,8
138,Unassigned,KINGSTON CORPORATION,�CASCINALTD,30-Nov-22,12000,0,21573,Corporate Services,180000              Environmental Services,A,2022,8
139,Unassigned,KINGSTON CORPORATION,DICKERAGELENE,30-Nov-22,1087.44,0,21573,Corporate Services,180000              Environmental Services,A,2022,8
140,Community and Housing,TRINITY COURT NURSING HOME,903808,25-Nov-22,2861.6,0,30306,Older People Placements - East,321017              Nursing & Residential Care Homes,A,2022,8
141,Community and Housing,TRINITY COURT NURSING HOME,903945,25-Nov-22,2985.6,0,30306,Older People Placements - East,321017              Nursing & Residential Care Homes,A,2022,8
142,Community and Housing,TRINITY COURT NURSING HOME,903979,25-Nov-22,3063.24,0,30306,Older People Placements - East,321017              Nursing & Residential Care Homes,A,2022,8
143,Community and Housing,TRINITY COURT NURSING HOME,903995,25-Nov-22,3313.84,0,30306,Phys/Sens Placements - East,321017              Nursing & Residential Care Homes,A,2022,8
144,Community and Housing,TRINITY COURT NURSING HOME,904002,25-Nov-22,3986.36,0,30306,Older People Placements - East,321017              Nursing & Residential Care Homes,A,2022,8
145,Community and Housing,TRINITY COURT NURSING HOME,904018,25-Nov-22,3135.72,0,30306,Older People Placements - East,321017              Nursing & Residential Care Homes,A,2022,8
146,Community and Housing,TRINITY COURT NURSING HOME,904059,25-Nov-22,2985.6,0,30306,Older People Placements - East,321017              Nursing & Residential Care Homes,A,2022,8
147,Community and Housing,TRINITY COURT NURSING HOME,904067,25-Nov-22,2861.6,0,30306,Older People Placements - East,321017              Nursing & Residential Care Homes,A,2022,8
148,Community and Housing,TRINITY COURT NURSING HOME,904075,25-Nov-22,3063.24,0,30306,Older People Placements - East,321017              Nursing & Residential Care Homes,A,2022,8
149,Community and Housing,TRINITY COURT NURSING HOME,904137,25-Nov-22,2985.6,0,30306,Older People Placements - East,321017              Nursing & Residential Care Homes,A,2022,8
150,Community and Housing,TRINITY COURT NURSING HOME,904163,25-Nov-22,2876.32,0,30306,Older People Placements - East,321017              Nursing & Residential Care Homes,A,2022,8
151,Community and Housing,TRINITY COURT NURSING HOME,904165,25-Nov-22,3149.6,0,30306,Older People Placements - East,321017              Nursing & Residential Care Homes,A,2022,8
152,Community and Housing,TRINITY COURT NURSING HOME,904168,25-Nov-22,2521.12,0,30306,Older People Placements - East,321017              Nursing & Residential Care Homes,A,2022,8
153,Capital,INCOM TELECOMMUNICATIONS,INV0470221,01-Dec-22,4416,736,30976,Planned Replacement Programme,270000              Information Communication Technology,A,2022,8
154,Community and Housing,HAYDON PARK LODGE,903764,25-Nov-22,4680,0,31434,Learning Disabilities Placemnt,321017              Nursing & Residential Care Homes,A,2022,8
155,Community and Housing,HAYDON PARK LODGE,903897,25-Nov-22,3485,0,31434,Learning Disabilities Placemnt,321017              Nursing & Residential Care Homes,A,2022,8
156,Community and Housing,HAYDON PARK LODGE,903924,25-Nov-22,4591.44,0,31434,Learning Disabilities Placemnt,321017              Nursing & Residential Care Homes,A,2022,8
157,Community and Housing,HAYDON PARK LODGE,904003,25-Nov-22,5070.76,0,31434,Learning Disabilities Placemnt,321017              Nursing & Residential Care Homes,A,2022,8
158,Community and Housing,HAYDON PARK LODGE,904049,25-Nov-22,4420.08,0,31434,Learning Disabilities Placemnt,321017              Nursing & Residential Care Homes,A,2022,8
159,Community and Housing,Barchester Healthcare Wimbledon Beaumont,904195,24-Nov-22,1593.43,0,33384,Older People Placements - East,321017              Nursing & Residential Care Homes,A,2022,8
160,Community and Housing,Barchester Healthcare Wimbledon Beaumont,903835,25-Nov-22,4056,0,33384,Older People Placements - East,321017              Nursing & Residential Care Homes,A,2022,8
161,Community and Housing,Barchester Healthcare Wimbledon Beaumont,903856,25-Nov-22,3000,0,33384,Older People Placements - East,321017              Nursing & Residential Care Homes,A,2022,8
162,Community and Housing,COMFORT CARE SERVICES (UK) LTD,SU0146/1335,23-Nov-22,2380,0,34932,Mental Health Placements,321000              Social Community Care Supplies & Services - Adult,A,2022,8
163,Community and Housing,COMFORT CARE SERVICES (UK) LTD,SU0133/1040,23-Nov-22,2380,0,34932,Mental Health Placements,321000              Social Community Care Supplies & Services - Adult,A,2022,8
164,Community and Housing,COMFORT CARE SERVICES (UK) LTD,SU0266/1386,23-Nov-22,2380,0,34932,Mental Health Placements,321000              Social Community Care Supplies & Services - Adult,A,2022,8
165,Community and Housing,COMFORT CARE SERVICES (UK) LTD,SU1102/1457,23-Nov-22,2380,0,34932,Mental Health Placements,321000              Social Community Care Supplies & Services - Adult,A,2022,8
166,Community and Housing,COMFORT CARE SERVICES (UK) LTD,SU1051/1138-9,23-Nov-22,3295,0,34932,Mental Health Placements,321000              Social Community Care Supplies & Services - Adult,A,2022,8
167,Community and Housing,COMFORT CARE SERVICES (UK) LTD,SU0091/266,23-Nov-22,871.36,0,34932,Mental Health Placements,321000              Social Community Care Supplies & Services - Adult,A,2022,8
168,Community and Housing,COMFORT CARE SERVICES (UK) LTD,SU0184/902,23-Nov-22,2380,0,34932,Mental Health Placements,321000              Social Community Care Supplies & Services - Adult,A,2022,8
169,Community and Housing,COMFORT CARE SERVICES (UK) LTD,SU0201/1336,23-Nov-22,2380,0,34932,Mental Health Placements,321000              Social Community Care Supplies & Services - Adult,A,2022,8
170,Community and Housing,COMFORT CARE SERVICES (UK) LTD,SU0210/1041,23-Nov-22,2380,0,34932,Mental Health Placements,321000              Social Community Care Supplies & Services - Adult,A,2022,8
171,Community and Housing,COMFORT CARE SERVICES (UK) LTD,SU0208/1456,23-Nov-22,2380,0,34932,Mental Health Placements,321000              Social Community Care Supplies & Services - Adult,A,2022,8
172,Community and Housing,COMFORT CARE SERVICES (UK) LTD,SU0291/1042,23-Nov-22,2380,0,34932,Mental Health Placements,321000              Social Community Care Supplies & Services - Adult,A,2022,8
173,Community and Housing,COMFORT CARE SERVICES (UK) LTD,SU0294/1440,23-Nov-22,2380,0,34932,Mental Health Placements,321000              Social Community Care Supplies & Services - Adult,A,2022,8
174,Community and Housing,COMFORT CARE SERVICES (UK) LTD,SU0298/903,23-Nov-22,2380,0,34932,Mental Health Placements,321000              Social Community Care Supplies & Services - Adult,A,2022,8
175,Community and Housing,COMFORT CARE SERVICES (UK) LTD,SU1041/783,23-Nov-22,1579.5,0,34932,Mental Health Placements,321000              Social Community Care Supplies & Services - Adult,A,2022,8
176,"Children, Schools and Family",CASTLE KINDERGARTEN,P2 22 SENDIF,11-Nov-22,504,0,35082,EARLY YEARS NURSERY GRANTS,170000              Education,A,2022,8
177,"Children, Schools and Family",CASTLE KINDERGARTEN,P2 22 EY FUNDING,15-Nov-22,8805.88,0,35082,EARLY YEARS NURSERY GRANTS,170000              Education,A,2022,8
178,"Children, Schools and Family",CROWN KINDERGARTEN,P2 22 EY FUNDING,15-Nov-22,2383.92,0,35084,EARLY YEARS NURSERY GRANTS,170000              Education,A,2022,8
179,"Children, Schools and Family",JIGSAW DAY NURSERY,P2 22 SENDIF,11-Nov-22,4410,0,35097,EARLY YEARS NURSERY GRANTS,170000              Education,A,2022,8
180,"Children, Schools and Family",JIGSAW DAY NURSERY,P2 22 EY FUNDING,15-Nov-22,6966.12,0,35097,EARLY YEARS NURSERY GRANTS,170000              Education,A,2022,8
181,"Children, Schools and Family",URSULINE PREPARATORY SCHOOL,P2 22 EY FUNDING,15-Nov-22,6436.58,0,35109,EARLY YEARS NURSERY GRANTS,170000              Education,A,2022,8
182,"Children, Schools and Family",WILLINGTON SCH.FOUNDATION LTD,P2 22 EY FUNDING,15-Nov-22,2092.9,0,35111,EARLY YEARS NURSERY GRANTS,170000              Education,A,2022,8
183,"Children, Schools and Family",BUSY BEES DAY NURSERY - MORDEN,P2 22 SENDIF,11-Nov-22,1176,0,35564,EARLY YEARS NURSERY GRANTS,170000              Education,A,2022,8
184,"Children, Schools and Family",BUSY BEES DAY NURSERY - MORDEN,P2 22 EY FUNDING,15-Nov-22,41720.84,0,35564,EARLY YEARS NURSERY GRANTS,170000              Education,A,2022,8
185,Unassigned,ST MATTHEW'S C OF E PRIMARY,SCHOOLS 2223/8 A,08-Nov-22,95777.93,0,36050,Schools,170000              Education,A,2022,8
186,Community and Housing,AGE UK MERTON,12692,23-Nov-22,20000,0,37401,PH - Elderly Care Pilot,190000              Facilities & Management Services,A,2022,8
187,Community and Housing,AGE UK MERTON,12694,28-Nov-22,20000,0,37401,PH - Elderly Care Pilot,190000              Facilities & Management Services,A,2022,8
188,"Children, Schools and Family",LITTLE LEARNERS,P2 22 EY FUNDING,15-Nov-22,1222.65,0,39413,EARLY YEARS NURSERY GRANTS,170000              Education,A,2022,8
189,Unassigned,I AND  J BUSHELL LTD,4683,22-Nov-22,936,156,42221,Mitcham Common Conservators,"390000              Works - Construction, Repair & Maintenance",A,2022,8
190,Unassigned,I AND  J BUSHELL LTD,4684,22-Nov-22,2520,420,42221,Mitcham Common Conservators,"390000              Works - Construction, Repair & Maintenance",A,2022,8
191,Community and Housing,JESMUND CARE LTD,904000,25-Nov-22,4000,0,46751,Older People Placements - East,321017              Nursing & Residential Care Homes,A,2022,8
192,Community and Housing,JESMUND CARE LTD,904121,25-Nov-22,3600,0,46751,Older People Placements - East,321017              Nursing & Residential Care Homes,A,2022,8
193,Community and Housing,REDACTED PERSONAL DATA,899138,08-Nov-22,4900.28,0,50448,Older People Placements - East,DIRECT PAYMENTS,R,2022,8
194,Community and Housing,LINKAGE COMMUNITY TR.LONG-STAY,904037,25-Nov-22,3340.08,0,52552,Learning Disabilities Placemnt,321017              Nursing & Residential Care Homes,A,2022,8
195,Community and Housing,RUTLAND HOUSE CARE HOME,900286,11-Nov-22,6988.28,0,53424,Older People Placements - East,321017              Nursing & Residential Care Homes,A,2022,8
196,Community and Housing,RUTLAND HOUSE CARE HOME,900289,11-Nov-22,1028.57,0,53424,Older People Placements - East,321017              Nursing & Residential Care Homes,A,2022,8
197,Community and Housing,RUTLAND HOUSE CARE HOME,903916,25-Nov-22,3156,0,53424,Older People Placements - East,321017              Nursing & Residential Care Homes,A,2022,8
198,Community and Housing,RUTLAND HOUSE CARE HOME,903954,25-Nov-22,2171.43,0,53424,Older People Placements - East,321017              Nursing & Residential Care Homes,A,2022,8
199,"Children, Schools and Family",HASLEMERE HOUSE DAY NURSERY,P2 22 SENDIF,11-Nov-22,588,0,55612,EARLY YEARS NURSERY GRANTS,170000              Education,A,2022,8
200,"Children, Schools and Family",HASLEMERE HOUSE DAY NURSERY,P2 22 EY FUNDING,15-Nov-22,665.7,0,55612,EARLY YEARS NURSERY GRANTS,170000              Education,A,2022,8
201,Community and Housing,CLIFTON MANOR,904152,25-Nov-22,1005.54,0,56118,Learning Disabilities Placemnt,321017              Nursing & Residential Care Homes,A,2022,8
202,Community and Housing,PARK LODGE,903881,25-Nov-22,2940,0,56878,Learning Disabilities Placemnt,321017              Nursing & Residential Care Homes,A,2022,8
203,Community and Housing,PARK LODGE,903977,25-Nov-22,3026.8,0,56878,Learning Disabilities Placemnt,321017              Nursing & Residential Care Homes,A,2022,8
204,Unassigned,CRICKET GREEN SCHOOL,SCHOOLS 2223/8 A,08-Nov-22,337051.72,0,57057,Schools,170000              Education,A,2022,8
205,"Children, Schools and Family",CRICKET GREEN SCHOOL,1364,21-Nov-22,55000,0,57057,Non-Maintained Post 16 SEN,170000              Education,A,2022,8
206,"Children, Schools and Family",CRICKET GREEN SCHOOL,1362,28-Nov-22,550,0,57057,SW London School Effectiveness,170000              Education,A,2022,8
207,Community and Housing,KENWARD TRUST,903749,25-Nov-22,1940.43,0,57058,Substance Misuse Placements,321000              Social Community Care Supplies & Services - Children,A,2022,8
208,Corporate Services,JADE SECURITY SERVICE LTD,4516,22-Nov-22,2600.11,433.35,57563,Cash Collections,200000              Financial Services,A,2022,8
209,Community and Housing,WALSINGHAM,903848,25-Nov-22,5486.52,0,58466,Learning Disabilities Placemnt,321017              Nursing & Residential Care Homes,A,2022,8
210,Community and Housing,WALSINGHAM,904035,25-Nov-22,5486.4,0,58466,Learning Disabilities Placemnt,321017              Nursing & Residential Care Homes,A,2022,8
211,Community and Housing,WALSINGHAM,904095,25-Nov-22,5552.64,0,58466,Learning Disabilities Placemnt,321017              Nursing & Residential Care Homes,A,2022,8
212,Community and Housing,WALSINGHAM,904100,25-Nov-22,5476.12,0,58466,Learning Disabilities Placemnt,321017              Nursing & Residential Care Homes,A,2022,8
213,Community and Housing,CARE UK,900332,11-Nov-22,2290.65,0,58851,Older People Placements - East,321017              Nursing & Residential Care Homes,A,2022,8
214,Community and Housing,CARE UK,903742,25-Nov-22,3229.52,0,58851,Older People Placements - East,321017              Nursing & Residential Care Homes,A,2022,8
215,Community and Housing,CARE UK,903762,25-Nov-22,3800,0,58851,Older People Placements - East,321017              Nursing & Residential Care Homes,A,2022,8
216,Community and Housing,CARE UK,903922,25-Nov-22,3264.32,0,58851,Older People Placements - East,321017              Nursing & Residential Care Homes,A,2022,8
217,Community and Housing,CARE UK,904028,25-Nov-22,3229.52,0,58851,Older People Placements - East,321017              Nursing & Residential Care Homes,A,2022,8
218,Community and Housing,CARE UK,904047,25-Nov-22,3563.24,0,58851,Older People Placements - East,321017              Nursing & Residential Care Homes,A,2022,8
219,Community and Housing,CARE UK,904107,25-Nov-22,3736,0,58851,Older People Placements - East,321017              Nursing & Residential Care Homes,A,2022,8
220,Community and Housing,CARE UK,904116,25-Nov-22,4000,0,58851,Older People Placements - East,321017              Nursing & Residential Care Homes,A,2022,8
221,Community and Housing,CARE UK,904119,25-Nov-22,3229.52,0,58851,Older People Placements - East,321017              Nursing & Residential Care Homes,A,2022,8
222,Community and Housing,CARE UK,904126,25-Nov-22,3143.16,0,58851,Older People Placements - East,321017              Nursing & Residential Care Homes,A,2022,8
223,Capital,BARCHAM TREES P.L.C.,PF-132889,14-Nov-22,734.4,0,62024,Wimbledon Area Regeneration,240000              Horticultural,A,2022,8
224,Community and Housing,RUSHTON WORKWEAR LTD,49867,21-Nov-22,816,136,62131,Com Care Placement Contingency,140000              Clothing,A,2022,8
225,Corporate Services,EDE'S (U.K.) LTD,NV24680,09-Nov-22,567.84,94.64,62345,Buildings Maintenance,190000              Facilities & Management Services,A,2022,8
226,Community and Housing,EDE'S (U.K.) LTD,INV24742,15-Nov-22,672,112,62345,Galpins Road Support,190000              Facilities & Management Services,A,2022,8
227,Community and Housing,BARONS LODGE NURSING HOME,903804,25-Nov-22,1716,0,62371,Mental Health Placements,321017              Nursing & Residential Care Homes,A,2022,8
228,Community and Housing,BARONS LODGE NURSING HOME,903997,25-Nov-22,3502,0,62371,Mental Health Placements,321017              Nursing & Residential Care Homes,A,2022,8
229,Community and Housing,BARONS LODGE NURSING HOME,904008,25-Nov-22,4200,0,62371,Mental Health Placements,321017              Nursing & Residential Care Homes,A,2022,8
230,Community and Housing,BARONS LODGE NURSING HOME,904066,25-Nov-22,2678,0,62371,Learning Disabilities Placemnt,321017              Nursing & Residential Care Homes,A,2022,8
231,Community and Housing,BARONS LODGE NURSING HOME,904071,25-Nov-22,4360,0,62371,Mental Health Placements,321017              Nursing & Residential Care Homes,A,2022,8
232,Community and Housing,BARONS LODGE NURSING HOME,904077,25-Nov-22,4360,0,62371,Older People Placements - East,321017              Nursing & Residential Care Homes,A,2022,8
233,Community and Housing,BARONS LODGE NURSING HOME,904079,25-Nov-22,3807.2,0,62371,Learning Disabilities Placemnt,321017              Nursing & Residential Care Homes,A,2022,8
234,Community and Housing,BARONS LODGE NURSING HOME,904113,25-Nov-22,3502,0,62371,Older People Placements - East,321017              Nursing & Residential Care Homes,A,2022,8
235,Corporate Services,MASTERS LEGAL COSTS SERV'S LLP,74115,18-Nov-22,1710,285,63103,SLLP - Disbursements,280000              Legal Services                                                                            Confirmed,A,2022,8
236,Community and Housing,SANCTUARY CARE LTD,903773,25-Nov-22,3117.52,0,63458,Learning Disabilities Placemnt,321017              Nursing & Residential Care Homes,A,2022,8
237,Community and Housing,THE REGARD PARTNERSHIP LTD,903756,25-Nov-22,6220.72,0,63796,Learning Disabilities Placemnt,321017              Nursing & Residential Care Homes,A,2022,8
238,Community and Housing,THE REGARD PARTNERSHIP LTD,903846,25-Nov-22,6010.48,0,63796,Learning Disabilities Placemnt,321017              Nursing & Residential Care Homes,A,2022,8
239,Community and Housing,THE REGARD PARTNERSHIP LTD,903862,25-Nov-22,9681.96,0,63796,Learning Disabilities Placemnt,321017              Nursing & Residential Care Homes,A,2022,8
240,Community and Housing,THE REGARD PARTNERSHIP LTD,903879,25-Nov-22,5765,0,63796,Learning Disabilities Placemnt,321017              Nursing & Residential Care Homes,A,2022,8
241,Community and Housing,THE REGARD PARTNERSHIP LTD,903986,25-Nov-22,6126.52,0,63796,Learning Disabilities Placemnt,321017              Nursing & Residential Care Homes,A,2022,8
242,Community and Housing,THE REGARD PARTNERSHIP LTD,904096,25-Nov-22,4901.24,0,63796,Learning Disabilities Placemnt,321017              Nursing & Residential Care Homes,A,2022,8
243,"Children, Schools and Family",CAROUSEL DAY NURSERY,P2 22 EY FUNDING,15-Nov-22,4234.86,0,66990,EARLY YEARS NURSERY GRANTS,170000              Education,A,2022,8
244,Community and Housing,NAS SERVICES LIMITED,ASU2383532,01-Nov-22,3789,0,68929,Mental Health Placements,321100              Social Community Care Supplies & Services - Children,A,2022,8
245,Community and Housing,NAS SERVICES LIMITED,ACR2384406,08-Nov-22,1893.6,315.6,68929,Mental Health Placements,321100              Social Community Care Supplies & Services - Children,A,2022,8
246,Community and Housing,NAS SERVICES LIMITED,ACR2385883,05-Dec-22,1893.6,315.6,68929,Mental Health Placements,321100              Social Community Care Supplies & Services - Children,A,2022,8
247,"Children, Schools and Family",HOTEL DU VIN TRADING,HDVWIM-23859702,03-Nov-22,4250,0,69161,Fostering Support,260000              Human Resources,A,2022,8
248,"Children, Schools and Family",ETHELBERT SPECIALIST HOMES LTD,LL/1022/696,07-Nov-22,14675.31,0,72942,Placements Under 18,321100              Social Community Care Supplies & Services - Children,A,2022,8
249,"Children, Schools and Family",ETHELBERT SPECIALIST HOMES LTD,LL/0922/642,07-Nov-22,8994.55,0,72942,Placements Under 18,321100              Social Community Care Supplies & Services - Children,A,2022,8
250,"Children, Schools and Family",ETHELBERT SPECIALIST HOMES LTD,LL/0922/642A,11-Nov-22,5334.18,0,72942,Placements Under 18,321100              Social Community Care Supplies & Services - Children,A,2022,8
251,"Children, Schools and Family",ETHELBERT SPECIALIST HOMES LTD,EH/1022/775,16-Nov-22,3503.27,0,72942,Placements Under 18,321100              Social Community Care Supplies & Services - Children,A,2022,8
252,Community and Housing,CARETECH UK. LIMITED,98368,22-Nov-22,507.84,84.64,74201,Equipment,321000              Social Community Care Supplies & Services - Adult,A,2022,8
253,Community and Housing,CARETECH UK. LIMITED,98311,22-Nov-22,617.24,102.88,74201,Equipment,321000              Social Community Care Supplies & Services - Adult,A,2022,8
254,Capital,REDACTED PERSONAL DATA,2368,23-Nov-22,1637.26,272.88,75465,Disabled Facilities Grant,"390000              Works - Construction, Repair & Maintenance",R,2022,8
255,"Children, Schools and Family",JANCETT CHILDCARE AND  JACE TRNG,P2 22 SENDIF,11-Nov-22,2205,0,75578,EARLY YEARS NURSERY GRANTS,260000              Human Resources,A,2022,8
256,"Children, Schools and Family",JANCETT CHILDCARE AND  JACE TRNG,P2 22 EY FUNDING,15-Nov-22,6447.56,0,75578,EARLY YEARS NURSERY GRANTS,260000              Human Resources,A,2022,8
257,"Children, Schools and Family",JANCETT CHILDCARE AND  JACE TRNG,P2 22 SENDIF 2,28-Nov-22,2793,0,75578,EARLY YEARS NURSERY GRANTS,260000              Human Resources,A,2022,8
258,Community and Housing,BRANDON TRUST,903767,25-Nov-22,4054,0,76126,Learning Disabilities Placemnt,321017              Nursing & Residential Care Homes,A,2022,8
259,"Children, Schools and Family",DICKY BIRDS PRE SCHOOL NURSERY,P2 22 EY FUNDING,15-Nov-22,8340.78,0,76508,EARLY YEARS NURSERY GRANTS,170000              Education,A,2022,8
260,Unassigned,LONDON BOROUGH OF SUTTON,BAILIFFOCT2022,09-Nov-22,111556.56,0,76615,Corporate Services,OLA,A,2022,8
261,Unassigned,POST OFFICE LTD,MERTON22/23 PO13,03-Nov-22,15039,0,77066,Adults Social Care,200000              Financial Services,A,2022,8
262,Unassigned,POST OFFICE LTD,MERTON 22/23PO14,17-Nov-22,17579.35,0,77066,Adults Social Care,200000              Financial Services,A,2022,8
263,Corporate Services,HEMMING GROUP LTD (LOCAL GOV),PK23854,08-Nov-22,7800,1300,78178,Chief Executive,200000              Financial Services,A,2022,8
264,Community and Housing,ABBEY HOUSE RESIDENTIAL HOMES,903768,25-Nov-22,2859.72,0,78937,Older People Placements - East,321017              Nursing & Residential Care Homes,A,2022,8
265,Community and Housing,ABBEY HOUSE RESIDENTIAL HOMES,903788,25-Nov-22,3337.76,0,78937,Older People Placements - East,321017              Nursing & Residential Care Homes,A,2022,8
266,Community and Housing,ABBEY HOUSE RESIDENTIAL HOMES,903791,25-Nov-22,5520,0,78937,Mental Health Placements,321017              Nursing & Residential Care Homes,A,2022,8
267,Corporate Services,ANTALIS,2599173,02-Dec-22,527,87.83,81623,PrintUnit-HighVolPhtcopying,190000              Facilities & Management Services,A,2022,8
268,Community and Housing,REDACTED PERSONAL DATA,898977,08-Nov-22,5088.12,0,81639,Older People Placements - East,DIRECT PAYMENTS,R,2022,8
269,Corporate Services,IRON MOUNTAIN (UK) LTD,17147774,22-Nov-22,932.3,155.38,82409,IT-Telecomms,270000              Information Communication Technology,A,2022,8
270,Community and Housing,ASKEWS AND HOLTS LIBRARY SRV LTD,6785859,25-Nov-22,525,0,82770,Media Fund,200000              Financial Services,A,2022,8
271,Community and Housing,ASKEWS AND HOLTS LIBRARY SRV LTD,6785876,25-Nov-22,694.32,0,82770,Media Fund,200000              Financial Services,A,2022,8
272,Corporate Services,REDACTED PERSONAL DATA,INVJD158/10/22,10-Nov-22,2520,420,83383,SLLP - Disbursements,280000              Legal Services,R,2022,8
273,Unassigned,MALMESBURY PRIMARY SCHOOL,SCHOOLS 2223/8 A,08-Nov-22,208351.04,0,83593,Schools,170000              Education,A,2022,8
274,"Children, Schools and Family",YOUNG EPILEPSY,INV010701,17-Nov-22,21463.47,0,84094,Non-Delegated Statements,170000              Education,A,2022,8
275,"Children, Schools and Family",YOUNG EPILEPSY,INV010724,28-Nov-22,16627.66,0,84094,SEN Residential (DSG),170000              Education,A,2022,8
276,"Children, Schools and Family",YOUNG EPILEPSY,INV010722,28-Nov-22,14781,0,84094,SEN Residential (DSG),170000              Education,A,2022,8
277,"Children, Schools and Family",YOUNG EPILEPSY,INV010720,28-Nov-22,14512.66,0,84094,SEN Residential (DSG),170000              Education,A,2022,8
278,"Children, Schools and Family",YOUNG EPILEPSY,INV010708,21-Nov-22,16197,0,84094,SEN Residential (DSG),170000              Education,A,2022,8
279,"Children, Schools and Family",YOUNG EPILEPSY,INV010718,24-Nov-22,15616,0,84094,SEN Residential (DSG),170000              Education,A,2022,8
280,"Children, Schools and Family",YOUNG EPILEPSY,INV010709,21-Nov-22,5538,0,84094,SEN Residential (DSG),170000              Education,A,2022,8
281,Environment and Regeneration,NEWSQUEST MEDIA GROUP LTD,41299293,22-Nov-22,565.34,94.22,85566,Development Control,190000              Facilities & Management Services,A,2022,8
282,Capital,NEWSQUEST MEDIA GROUP LTD,41353562,28-Nov-22,1565.57,260.93,85566,Highways & Footways,190000              Facilities & Management Services,A,2022,8
283,Capital,NEWSQUEST MEDIA GROUP LTD,41353304,28-Nov-22,1565.57,260.93,85566,Highways & Footways,190000              Facilities & Management Services,A,2022,8
284,Environment and Regeneration,NEWSQUEST MEDIA GROUP LTD,41134002,14-Nov-22,2935.44,489.24,85566,Tr Man & Accid Sch,190000              Facilities & Management Services,A,2022,8
285,Environment and Regeneration,NEWSQUEST MEDIA GROUP LTD,41295786,21-Nov-22,3131.14,521.86,85566,Tr Man & Accid Sch,190000              Facilities & Management Services,A,2022,8
286,Capital,NEWSQUEST MEDIA GROUP LTD,40953887,14-Nov-22,1565.57,260.93,85566,Highways & Footways,190000              Facilities & Management Services,A,2022,8
287,Environment and Regeneration,NEWSQUEST MEDIA GROUP LTD,41404792,05-Dec-22,1565.57,260.93,85566,CPZ Implementation & Consult,190000              Facilities & Management Services,A,2022,8
288,"Children, Schools and Family",CENTRE ACADEMY LONDON,SAU122-12,25-Nov-22,13600,0,88689,Non-Delegated Statements,170000              Education,A,2022,8
289,Community and Housing,SUPREME CARE SERVICES LIMITED,85517,15-Nov-22,747.03,0,91840,Older People Placements - East,321000              Social Community Care Supplies & Services - Adult,A,2022,8
290,Community and Housing,SUPREME CARE SERVICES LIMITED,85524,16-Nov-22,2748.3,0,91840,Older People Placements - East,321000              Social Community Care Supplies & Services - Adult,A,2022,8
291,Community and Housing,SUPREME CARE SERVICES LIMITED,85525,16-Nov-22,728.76,0,91840,Older People Placements - East,321000              Social Community Care Supplies & Services - Adult,A,2022,8
292,Community and Housing,SUPREME CARE SERVICES LIMITED,85521,16-Nov-22,660.02,0,91840,Older People Placements - East,321000              Social Community Care Supplies & Services - Adult,A,2022,8
293,Community and Housing,SUPREME CARE SERVICES LIMITED,85519,16-Nov-22,1068.2,0,91840,Older People Placements - East,321000              Social Community Care Supplies & Services - Adult,A,2022,8
294,Community and Housing,SUPREME CARE SERVICES LIMITED,85526,16-Nov-22,980.43,0,91840,Older People Placements - East,321000              Social Community Care Supplies & Services - Adult,A,2022,8
295,Community and Housing,SUPREME CARE SERVICES LIMITED,85515,18-Nov-22,2988.16,0,91840,Older People Placements - East,321000              Social Community Care Supplies & Services - Adult,A,2022,8
296,Community and Housing,THE GARWOOD FOUNDATION,MWDFNOV22,21-Nov-22,1180,0,92268,Older People Placements - East,321000              Social Community Care Supplies & Services - Adult,A,2022,8
297,"Children, Schools and Family",BUILDING BLOCKS NURSERY,P2 22 EY FUNDING,15-Nov-22,9629.59,0,93437,EARLY YEARS NURSERY GRANTS,170000              Education,A,2022,8
298,Community and Housing,CARE MANAGEMENT GROUP,255001466,03-Nov-22,8725.64,0,93533,Learning Disabilities Placemnt,321017              Nursing & Residential Care Homes,A,2022,8
299,Community and Housing,CARE MANAGEMENT GROUP,397000642,03-Nov-22,4961.72,0,93533,Learning Disabilities Placemnt,321017              Nursing & Residential Care Homes,A,2022,8
300,Community and Housing,CARE MANAGEMENT GROUP,613000600,03-Nov-22,6353.46,0,93533,Learning Disabilities Placemnt,321017              Nursing & Residential Care Homes,A,2022,8
301,Community and Housing,CARE MANAGEMENT GROUP,255001454,09-Nov-22,8725.64,0,93533,Learning Disabilities Placemnt,321017              Nursing & Residential Care Homes,A,2022,8
302,Community and Housing,CARE MANAGEMENT GROUP,255001460,09-Nov-22,8725.64,0,93533,Learning Disabilities Placemnt,321017              Nursing & Residential Care Homes,A,2022,8
303,Community and Housing,CARE MANAGEMENT GROUP,255001406,15-Nov-22,8239.52,0,93533,Learning Disabilities Placemnt,321017              Nursing & Residential Care Homes,A,2022,8
304,Community and Housing,CARE MANAGEMENT GROUP,903750,25-Nov-22,4593.88,0,93533,Mental Health Placements,321017              Nursing & Residential Care Homes,A,2022,8
305,Community and Housing,CARE MANAGEMENT GROUP,903799,25-Nov-22,6572.16,0,93533,Learning Disabilities Placemnt,321017              Nursing & Residential Care Homes,A,2022,8
306,Community and Housing,CARE MANAGEMENT GROUP,903815,25-Nov-22,6279.2,0,93533,Learning Disabilities Placemnt,321017              Nursing & Residential Care Homes,A,2022,8
307,Community and Housing,CARE MANAGEMENT GROUP,903920,25-Nov-22,5936.6,0,93533,Learning Disabilities Placemnt,321017              Nursing & Residential Care Homes,A,2022,8
308,Community and Housing,CARE MANAGEMENT GROUP,903962,25-Nov-22,8733.64,0,93533,Phys/Sens Placements - East,321017              Nursing & Residential Care Homes,A,2022,8
309,Community and Housing,CARE MANAGEMENT GROUP,903998,25-Nov-22,7712.12,0,93533,Learning Disabilities Placemnt,321017              Nursing & Residential Care Homes,A,2022,8
310,Community and Housing,CARE MANAGEMENT GROUP,904129,25-Nov-22,7974.36,0,93533,Learning Disabilities Placemnt,321017              Nursing & Residential Care Homes,A,2022,8
311,Community and Housing,CARE MANAGEMENT GROUP,613000609,29-Nov-22,6353.48,0,93533,Learning Disabilities Placemnt,321017              Nursing & Residential Care Homes,A,2022,8
312,Community and Housing,CARE MANAGEMENT GROUP,397000652,29-Nov-22,4961.72,0,93533,Learning Disabilities Placemnt,321017              Nursing & Residential Care Homes,A,2022,8
313,"Children, Schools and Family",ST OLAVES NURSERY,P2 22 EY FUNDING,15-Nov-22,3740.52,0,94303,EARLY YEARS NURSERY GRANTS,170000              Education,A,2022,8
314,Community and Housing,A AND R CARE LTD,900316,11-Nov-22,21978.37,0,94357,Older People Placements - East,321017              Nursing & Residential Care Homes,A,2022,8
315,Community and Housing,A AND R CARE LTD,904183,24-Nov-22,3091.23,0,94357,Older People Placements - East,321017              Nursing & Residential Care Homes,A,2022,8
316,Community and Housing,A AND R CARE LTD,903803,25-Nov-22,3763.24,0,94357,Older People Placements - East,321017              Nursing & Residential Care Homes,A,2022,8
317,Community and Housing,A AND R CARE LTD,903807,25-Nov-22,3300,0,94357,Older People Placements - East,321017              Nursing & Residential Care Homes,A,2022,8
318,Community and Housing,A AND R CARE LTD,903928,25-Nov-22,3763.24,0,94357,Older People Placements - East,321017              Nursing & Residential Care Homes,A,2022,8
319,Community and Housing,A AND R CARE LTD,904062,25-Nov-22,3400,0,94357,Older People Placements - East,321017              Nursing & Residential Care Homes,A,2022,8
320,Community and Housing,A AND R CARE LTD,904093,25-Nov-22,3809.6,0,94357,Older People Placements - East,321017              Nursing & Residential Care Homes,A,2022,8
321,Community and Housing,A AND R CARE LTD,904156,25-Nov-22,3824.32,0,94357,Phys/Sens Placements - East,321017              Nursing & Residential Care Homes,A,2022,8
322,Community and Housing,JCDECAUX UNITED KINGDOM,SF/I203297,14-Nov-22,558,93,94678,Libraries Service-Civic Centre,190000              Facilities & Management Services,A,2022,8
323,Corporate Services,JCDECAUX UNITED KINGDOM,SF/1211351,30-Nov-22,558,93,94678,Marketing & Communication,190000              Facilities & Management Services,A,2022,8
324,"Children, Schools and Family",CARERS SUPPORT MERTON,456,08-Nov-22,18750,0,95795, Centralised Commiss Services,290000              Arts & Leisure Services,A,2022,8
325,Corporate Services,CARERS SUPPORT MERTON,COST OF LIVING,16-Nov-22,5000,0,95795,Cost of Living Fund,290000              Arts & Leisure Services,A,2022,8
326,Corporate Services,COMMONSIDE COMMUNITY DEV TRUST,COST OF LIVING,16-Nov-22,6426,0,95839,Cost of Living Fund,321000              Social Community Care Supplies & Services - Adult,A,2022,8
327,Corporate Services,COMMONSIDE COMMUNITY DEV TRUST,COL GRT NOV 22,21-Nov-22,50000,0,95839,Cost of Living Fund,321000              Social Community Care Supplies & Services - Adult,A,2022,8
328,Community and Housing,Aspens Charities Ltd,903943,25-Nov-22,8954.28,0,96019,Learning Disabilities Placemnt,321017              Nursing & Residential Care Homes,A,2022,8
329,Community and Housing,REDACTED PERSONAL DATA,898982,08-Nov-22,4260.16,0,96859,Learning Disabilities Placemnt,DIRECT PAYMENTS,R,2022,8
330,Community and Housing,THE ABBEYFIELD SOCIETY,904080,25-Nov-22,4000,0,97539,Older People Placements - East,321000              Social Community Care Supplies & Services - Adult,A,2022,8
331,Community and Housing,Rosenmanor Ltd,903938,25-Nov-22,2924.24,0,97808,Mental Health Placements,321017              Nursing & Residential Care Homes,A,2022,8
332,Environment and Regeneration,MERTON COMMUNITY TRANSPORT,16723,24-Nov-22,750,125,98164,Passenger Transport,360000              Passenger Transport,A,2022,8
333,Community and Housing,MERTON COMMUNITY TRANSPORT,16731,22-Nov-22,1716,286,98164,Learning Disabilities Placemnt,360000              Passenger Transport,A,2022,8
334,Community and Housing,MERTON COMMUNITY TRANSPORT,16744,22-Nov-22,1310.4,218.4,98164,Learning Disabilities Placemnt,360000              Passenger Transport,A,2022,8
335,Unassigned,BEECHOLME PRIMARY ACADEMY,SCHOOLS 2223/8 A,08-Nov-22,6699.9,0,98168,Schools,170000              Education,A,2022,8
336,Community and Housing,ROYAL MENCAP SOCIETY,3726423,15-Nov-22,2290.96,0,98713,Learning Disabilities Placemnt,321000              Social Community Care Supplies & Services - Adult,A,2022,8
337,Community and Housing,ROYAL MENCAP SOCIETY,3726424,15-Nov-22,2613.96,0,98713,Learning Disabilities Placemnt,321000              Social Community Care Supplies & Services - Adult,A,2022,8
338,Community and Housing,ABILITY HOUSING ASSOCIATION,12379,02-Nov-22,80763,0,99199,Supporting People (HRS),321000              Social Community Care Supplies & Services - Adult,A,2022,8
339,Unassigned,WEST WIMBLEDON PRIMARY SCHOOL,SCHOOLS 2223/8 A,08-Nov-22,238216.63,0,101674,Schools,170000              Education,A,2022,8
340,"Children, Schools and Family",DEE'S DAYS NURSERY,P2 22 EY FUNDING,15-Nov-22,1733.76,0,103590,EARLY YEARS NURSERY GRANTS,170000              Education,A,2022,8
341,Community and Housing,HILLDALE AND NORTHVIEW,903902,25-Nov-22,2072.52,0,103592,Older People Placements - East,321000              Social Community Care Supplies & Services - Adult,A,2022,8
342,Community and Housing,ST GEORGES UNI HOSP NHS F'DN T,6494780,14-Nov-22,21000,0,104586,PH - Substance Misuse,321000              Social Community Care Supplies & Services - Adult,A,2022,8
343,Community and Housing,BUPA CARE HOMES,899771,10-Nov-22,939.79,0,105027,Older People Placements - East,321017              Nursing & Residential Care Homes,A,2022,8
344,Community and Housing,BUPA CARE HOMES,899772,10-Nov-22,1292.2,0,105027,Older People Placements - East,321017              Nursing & Residential Care Homes,A,2022,8
345,Community and Housing,BUPA CARE HOMES,899774,10-Nov-22,2114.51,0,105027,Older People Placements - East,321017              Nursing & Residential Care Homes,A,2022,8
346,Community and Housing,BUPA CARE HOMES,903774,25-Nov-22,3154.12,0,105027,Older People Placements - East,321017              Nursing & Residential Care Homes,A,2022,8
347,Community and Housing,BUPA CARE HOMES,903779,25-Nov-22,3289.24,0,105027,Older People Placements - East,321017              Nursing & Residential Care Homes,A,2022,8
348,Community and Housing,BUPA CARE HOMES,903781,25-Nov-22,3289.24,0,105027,Older People Placements - East,321017              Nursing & Residential Care Homes,A,2022,8
349,Community and Housing,BUPA CARE HOMES,903806,25-Nov-22,3154.12,0,105027,Older People Placements - East,321017              Nursing & Residential Care Homes,A,2022,8
350,Community and Housing,BUPA CARE HOMES,903853,25-Nov-22,3289.24,0,105027,Older People Placements - East,321017              Nursing & Residential Care Homes,A,2022,8
351,Community and Housing,BUPA CARE HOMES,903867,25-Nov-22,3154.12,0,105027,Older People Placements - East,321017              Nursing & Residential Care Homes,A,2022,8
352,Community and Housing,BUPA CARE HOMES,903890,25-Nov-22,3154.12,0,105027,Older People Placements - East,321017              Nursing & Residential Care Homes,A,2022,8
353,Community and Housing,BUPA CARE HOMES,903911,25-Nov-22,3154.12,0,105027,Older People Placements - East,321017              Nursing & Residential Care Homes,A,2022,8
354,Community and Housing,BUPA CARE HOMES,903959,25-Nov-22,3289.24,0,105027,Older People Placements - East,321017              Nursing & Residential Care Homes,A,2022,8
355,Community and Housing,BUPA CARE HOMES,903971,25-Nov-22,3154.12,0,105027,Older People Placements - East,321017              Nursing & Residential Care Homes,A,2022,8
356,Community and Housing,BUPA CARE HOMES,903987,25-Nov-22,3289.24,0,105027,Older People Placements - East,321017              Nursing & Residential Care Homes,A,2022,8
357,Community and Housing,BUPA CARE HOMES,903990,25-Nov-22,3154.12,0,105027,Older People Placements - East,321017              Nursing & Residential Care Homes,A,2022,8
358,Community and Housing,BUPA CARE HOMES,904033,25-Nov-22,3289.24,0,105027,Older People Placements - East,321017              Nursing & Residential Care Homes,A,2022,8
359,Community and Housing,BUPA CARE HOMES,904041,25-Nov-22,4321.08,0,105027,Phys/Sens Placements - East,321017              Nursing & Residential Care Homes,A,2022,8
360,Community and Housing,BUPA CARE HOMES,904056,25-Nov-22,3569.4,0,105027,Older People Placements - East,321017              Nursing & Residential Care Homes,A,2022,8
361,Community and Housing,BUPA CARE HOMES,904089,25-Nov-22,3154.12,0,105027,Older People Placements - East,321017              Nursing & Residential Care Homes,A,2022,8
362,Community and Housing,BUPA CARE HOMES,904120,25-Nov-22,3289.24,0,105027,Older People Placements - East,321017              Nursing & Residential Care Homes,A,2022,8
363,Community and Housing,BUPA CARE HOMES,904155,25-Nov-22,3289.24,0,105027,Older People Placements - East,321017              Nursing & Residential Care Homes,A,2022,8
364,Community and Housing,BUPA CARE HOMES,904174,25-Nov-22,3154.12,0,105027,Older People Placements - East,321017              Nursing & Residential Care Homes,A,2022,8
365,Community and Housing,BUPA CARE HOMES,905250,29-Nov-22,776.5,0,105027,Older People Placements - East,321017              Nursing & Residential Care Homes,A,2022,8
366,Environment and Regeneration,APSE,2223/112,29-Nov-22,4864.8,810.8,105284,Waste Management,260000              Human Resources,A,2022,8
367,Community and Housing,REDACTED PERSONAL DATA,899010,08-Nov-22,2689.24,0,105300,Learning Disabilities Placemnt,DIRECT PAYMENTS,R,2022,8
368,"Children, Schools and Family",NEWSCHOOLS (MERTON) LIMITED,NSM01037,29-Nov-22,775.92,129.32,106428, PFI Unitary Charges,200000              Financial Services,A,2022,8
369,"Children, Schools and Family",NEWSCHOOLS (MERTON) LIMITED,NSM01040,29-Nov-22,4416,736,106428, PFI Unitary Charges,200000              Financial Services,A,2022,8
370,"Children, Schools and Family",NEWSCHOOLS (MERTON) LIMITED,NSM01041,29-Nov-22,1561.8,260.3,106428, PFI Unitary Charges,200000              Financial Services,A,2022,8
371,"Children, Schools and Family",NEWSCHOOLS (MERTON) LIMITED,NSM01038,30-Nov-22,50178.24,8363.04,106428, PFI Unitary Charges,200000              Financial Services,A,2022,8
372,Capital,ASCENDIT LIFTS LTD,39094,07-Nov-22,2511,0,107196,Disabled Facilities Grant,"390000              Works - Construction, Repair & Maintenance",A,2022,8
373,"Children, Schools and Family",The Eveline Day and Nursery Schools Ltd,P2 22 EY FUNDING,15-Nov-22,4984.56,0,108282,EARLY YEARS NURSERY GRANTS,170000              Education,A,2022,8
374,"Children, Schools and Family",St Philomena's RC High School for Girls,SQ/LBMSPX22022,09-Nov-22,6013.06,0,109597,Non-Delegated Statements,170000              Education,A,2022,8
375,"Children, Schools and Family",St Philomena's RC High School for Girls,SQ/LBMSUMAUT2022,09-Nov-22,16315.28,0,109597,Non-Delegated Statements,170000              Education,A,2022,8
376,Community and Housing,REDACTED PERSONAL DATA,900373,14-Nov-22,789.04,0,110403,MH Housing Support Placements,321000              Social Community Care Supplies & Services - Adult,R,2022,8
377,Community and Housing,REDACTED PERSONAL DATA,900375,14-Nov-22,1052.04,0,110403,Learning Disabilities Placemnt,321000              Social Community Care Supplies & Services - Adult,R,2022,8
378,Community and Housing,REDACTED PERSONAL DATA,900376,14-Nov-22,780.68,0,110403,MH Housing Support Placements,321000              Social Community Care Supplies & Services - Adult,R,2022,8
379,Community and Housing,REDACTED PERSONAL DATA,900390,14-Nov-22,780.68,0,110403,MH Housing Support Placements,321000              Social Community Care Supplies & Services - Adult,R,2022,8
380,Community and Housing,REDACTED PERSONAL DATA,900391,14-Nov-22,789.04,0,110403,MH Housing Support Placements,321000              Social Community Care Supplies & Services - Adult,R,2022,8
381,Community and Housing,REDACTED PERSONAL DATA,900399,14-Nov-22,1235.28,0,110403,Phys/Sens Placements - East,321000              Social Community Care Supplies & Services - Adult,R,2022,8
382,Community and Housing,REDACTED PERSONAL DATA,900401,14-Nov-22,2379.24,0,110403,Mental Health Placements,321000              Social Community Care Supplies & Services - Adult,R,2022,8
383,Community and Housing,REDACTED PERSONAL DATA,900403,14-Nov-22,780.68,0,110403,Mental Health Placements,321000              Social Community Care Supplies & Services - Adult,R,2022,8
384,Community and Housing,REDACTED PERSONAL DATA,900407,14-Nov-22,780.68,0,110403,MH Housing Support Placements,321000              Social Community Care Supplies & Services - Adult,R,2022,8
385,Community and Housing,REDACTED PERSONAL DATA,900419,14-Nov-22,780.68,0,110403,MH Housing Support Placements,321000              Social Community Care Supplies & Services - Adult,R,2022,8
386,Community and Housing,REDACTED PERSONAL DATA,900420,14-Nov-22,780.68,0,110403,Mental Health Placements,321000              Social Community Care Supplies & Services - Adult,R,2022,8
387,Community and Housing,REDACTED PERSONAL DATA,900422,14-Nov-22,520.48,0,110403,MH Housing Support Placements,321000              Social Community Care Supplies & Services - Adult,R,2022,8
388,Community and Housing,REDACTED PERSONAL DATA,900423,14-Nov-22,1040.92,0,110403,Phys/Sens Placements - East,321000              Social Community Care Supplies & Services - Adult,R,2022,8
389,Community and Housing,REDACTED PERSONAL DATA,900381,14-Nov-22,780.68,0,110406,LD Housing Support Placements,321000              Social Community Care Supplies & Services - Adult,R,2022,8
390,Community and Housing,MEADBANK NURSING CENTRE,903966,25-Nov-22,4110.6,0,113139,Phys/Sens Placements - East,321017              Nursing & Residential Care Homes,A,2022,8
391,Community and Housing,MEADBANK NURSING CENTRE,904153,25-Nov-22,2995.28,0,113139,Older People Placements - East,321017              Nursing & Residential Care Homes,A,2022,8
392,Community and Housing,REDACTED PERSONAL DATA,898966,08-Nov-22,14250.4,0,113331,Learning Disabilities Placemnt,DIRECT PAYMENTS,R,2022,8
393,"Children, Schools and Family",Dicky Birds Pre Sch. Nurseries Dundonald,P2 22 EY FUNDING,15-Nov-22,3467.52,0,114041,EARLY YEARS NURSERY GRANTS,170000              Education,A,2022,8
394,Community and Housing,MIHOMECARE LIMITED,LIVE1W-269380,10-Nov-22,1113.7,0,114370,Learning Disabilities Placemnt,321000              Social Community Care Supplies & Services - Adult,A,2022,8
395,Community and Housing,MIHOMECARE LIMITED,LIVE1W-269383,16-Nov-22,1113.7,0,114370,Learning Disabilities Placemnt,321000              Social Community Care Supplies & Services - Adult,A,2022,8
396,Community and Housing,REDACTED PERSONAL DATA,900384,14-Nov-22,780.68,0,114970,MH Housing Support Placements,321000              Social Community Care Supplies & Services - Adult,R,2022,8
397,Community and Housing,REDACTED PERSONAL DATA,900386,14-Nov-22,1849.8,0,114970,Mental Health Placements,321000              Social Community Care Supplies & Services - Adult,R,2022,8
398,Community and Housing,REDACTED PERSONAL DATA,900413,14-Nov-22,1052.08,0,114970,MH Housing Support Placements,321000              Social Community Care Supplies & Services - Adult,R,2022,8
399,Community and Housing,REDACTED PERSONAL DATA,900429,14-Nov-22,2775.85,0,114970,Mental Health Placements,321000              Social Community Care Supplies & Services - Adult,R,2022,8
400,Community and Housing,REDACTED PERSONAL DATA,900402,16-Nov-22,1040.92,0,114970,Hospital To Home,321000              Social Community Care Supplies & Services - Adult,R,2022,8
401,Community and Housing,ASTRA HOMES,MJ/12722,21-Nov-22,1816.76,0,114991,Mental Health Placements,321000              Social Community Care Supplies & Services - Adult,A,2022,8
402,Community and Housing,ASTRA HOMES,MJ/11/22,21-Nov-22,1816.76,0,114991,Mental Health Placements,321000              Social Community Care Supplies & Services - Adult,A,2022,8
403,Community and Housing,ASTRA HOMES,EC/12/22,21-Nov-22,2071.68,0,114991,Mental Health Placements,321000              Social Community Care Supplies & Services - Adult,A,2022,8
404,Community and Housing,ASTRA HOMES,EC/11/22,21-Nov-22,2071.68,0,114991,Mental Health Placements,321000              Social Community Care Supplies & Services - Adult,A,2022,8
405,Community and Housing,ASTRA HOMES,GB/12/22,21-Nov-22,1978.12,0,114991,Mental Health Placements,321000              Social Community Care Supplies & Services - Adult,A,2022,8
406,Community and Housing,ASTRA HOMES,GB/11/22,21-Nov-22,1978.12,0,114991,Mental Health Placements,321000              Social Community Care Supplies & Services - Adult,A,2022,8
407,Community and Housing,ASTRA HOMES,AK/1222,21-Nov-22,2034.24,0,114991,Mental Health Placements,321000              Social Community Care Supplies & Services - Adult,A,2022,8
408,Community and Housing,ASTRA HOMES,AK/1122,21-Nov-22,2034.24,0,114991,Mental Health Placements,321000              Social Community Care Supplies & Services - Adult,A,2022,8
409,"Children, Schools and Family",The Eveline Day Nursery Grand Drive,P2 22 SENDIF,11-Nov-22,2205,0,116784,EARLY YEARS NURSERY GRANTS,170000              Education,A,2022,8
410,"Children, Schools and Family",The Eveline Day Nursery Grand Drive,P2 22 EY FUNDING,15-Nov-22,9484.86,0,116784,EARLY YEARS NURSERY GRANTS,170000              Education,A,2022,8
411,Community and Housing,GRANGE COTTAGE LIMITED,903814,25-Nov-22,2680,0,117931,Older People Placements - East,321017              Nursing & Residential Care Homes,A,2022,8
412,Community and Housing,GRANGE COTTAGE LIMITED,903865,25-Nov-22,2680,0,117931,Older People Placements - East,321017              Nursing & Residential Care Homes,A,2022,8
413,Community and Housing,GRANGE COTTAGE LIMITED,903870,25-Nov-22,3200,0,117931,Older People Placements - East,321017              Nursing & Residential Care Homes,A,2022,8
414,Community and Housing,GRANGE COTTAGE LIMITED,903982,25-Nov-22,3600,0,117931,Older People Placements - East,321017              Nursing & Residential Care Homes,A,2022,8
415,Community and Housing,GRANGE COTTAGE LIMITED,904074,25-Nov-22,2680,0,117931,Older People Placements - East,321017              Nursing & Residential Care Homes,A,2022,8
416,Community and Housing,REDACTED PERSONAL DATA,900379,14-Nov-22,789.04,0,117970,MH Housing Support Placements,321000              Social Community Care Supplies & Services - Adult,R,2022,8
417,Community and Housing,REDACTED PERSONAL DATA,900393,14-Nov-22,1052.08,0,117970,Mental Health Placements,321000              Social Community Care Supplies & Services - Adult,R,2022,8
418,Community and Housing,REDACTED PERSONAL DATA,900411,14-Nov-22,1202.38,0,117970,Mental Health Placements,321000              Social Community Care Supplies & Services - Adult,R,2022,8
419,Community and Housing,L'ARCHE,904104,25-Nov-22,3094.6,0,118483,Learning Disabilities Placemnt,321017              Nursing & Residential Care Homes,A,2022,8
420,Community and Housing,Alexander House,903827,25-Nov-22,3100,0,119109,Older People Placements - East,321017              Nursing & Residential Care Homes,A,2022,8
421,Community and Housing,Alexander House,903904,25-Nov-22,3220.32,0,119109,Older People Placements - East,321017              Nursing & Residential Care Homes,A,2022,8
422,Community and Housing,Alexander House,904164,25-Nov-22,3840,0,119109,Older People Placements - East,321017              Nursing & Residential Care Homes,A,2022,8
423,Community and Housing,Alexander House,904179,25-Nov-22,3840,0,119109,Older People Placements - East,321017              Nursing & Residential Care Homes,A,2022,8
424,"Children, Schools and Family",PLAYDAYS DAY NURSERY,P2 22 EY FUNDING,15-Nov-22,1278.2,0,121668,EARLY YEARS NURSERY GRANTS,170000              Education,A,2022,8
425,Environment and Regeneration,KINGDOM SECURITY LTD,SER00030767INV,07-Nov-22,12664.15,2110.7,123458,Vestry Hall,260000              Human Resources,A,2022,8
426,Environment and Regeneration,KINGDOM SECURITY LTD,SER-00036316INV,22-Nov-22,13808.45,2301.42,123458,Vestry Hall,260000              Human Resources,A,2022,8
427,Community and Housing,REDACTED PERSONAL DATA,898898,08-Nov-22,1412.4,0,124097,Older People Placements - East,DIRECT PAYMENTS,R,2022,8
428,Community and Housing,UNITED RESPONSE,903786,25-Nov-22,7605.02,1267.5,125227,Learning Disabilities Placemnt,321000              Social Community Care Supplies & Services - Adult,A,2022,8
429,Community and Housing,UNITED RESPONSE,903820,25-Nov-22,7605.02,1267.5,125227,Learning Disabilities Placemnt,321000              Social Community Care Supplies & Services - Adult,A,2022,8
430,Community and Housing,UNITED RESPONSE,903834,25-Nov-22,7605.02,1267.5,125227,Learning Disabilities Placemnt,321000              Social Community Care Supplies & Services - Adult,A,2022,8
431,Community and Housing,UNITED RESPONSE,903895,25-Nov-22,7605.02,1267.5,125227,Learning Disabilities Placemnt,321000              Social Community Care Supplies & Services - Adult,A,2022,8
432,Community and Housing,UNITED RESPONSE,903936,25-Nov-22,7605.02,1267.5,125227,Learning Disabilities Placemnt,321000              Social Community Care Supplies & Services - Adult,A,2022,8
433,Community and Housing,UNITED RESPONSE,904054,25-Nov-22,7605.02,1267.5,125227,Learning Disabilities Placemnt,321000              Social Community Care Supplies & Services - Adult,A,2022,8
434,Community and Housing,REDACTED PERSONAL DATA,898937,08-Nov-22,1336.44,0,125642,Phys/Sens Placements - East,DIRECT PAYMENTS,R,2022,8
435,Community and Housing,REDACTED PERSONAL DATA,898964,08-Nov-22,890.96,0,126189,Older People Placements - East,DIRECT PAYMENTS,R,2022,8
436,Community and Housing,KELSTONE COURT NURSING HOME,900306,11-Nov-22,12343.64,0,126473,Older People Placements - East,321017              Nursing & Residential Care Homes,A,2022,8
437,Community and Housing,KELSTONE COURT NURSING HOME,900308,11-Nov-22,2415.06,0,126473,Older People Placements - East,321017              Nursing & Residential Care Homes,A,2022,8
438,Community and Housing,KELSTONE COURT NURSING HOME,900314,11-Nov-22,750,0,126473,Older People Placements - East,321017              Nursing & Residential Care Homes,A,2022,8
439,Community and Housing,KELSTONE COURT NURSING HOME,903746,25-Nov-22,2920,0,126473,Older People Placements - East,321017              Nursing & Residential Care Homes,A,2022,8
440,Community and Housing,KELSTONE COURT NURSING HOME,903770,25-Nov-22,3000,0,126473,Older People Placements - East,321017              Nursing & Residential Care Homes,A,2022,8
441,Community and Housing,KELSTONE COURT NURSING HOME,903844,25-Nov-22,3000,0,126473,Older People Placements - East,321017              Nursing & Residential Care Homes,A,2022,8
442,Community and Housing,KELSTONE COURT NURSING HOME,903859,25-Nov-22,2920,0,126473,Older People Placements - East,321017              Nursing & Residential Care Homes,A,2022,8
443,Community and Housing,KELSTONE COURT NURSING HOME,903864,25-Nov-22,2920,0,126473,Older People Placements - East,321017              Nursing & Residential Care Homes,A,2022,8
444,Community and Housing,KELSTONE COURT NURSING HOME,903877,25-Nov-22,3000,0,126473,Older People Placements - East,321017              Nursing & Residential Care Homes,A,2022,8
445,Community and Housing,KELSTONE COURT NURSING HOME,903948,25-Nov-22,2920,0,126473,Older People Placements - East,321017              Nursing & Residential Care Homes,A,2022,8
446,Community and Housing,KELSTONE COURT NURSING HOME,903991,25-Nov-22,2920,0,126473,Older People Placements - East,321017              Nursing & Residential Care Homes,A,2022,8
447,Community and Housing,KELSTONE COURT NURSING HOME,903993,25-Nov-22,2920,0,126473,Older People Placements - East,321017              Nursing & Residential Care Homes,A,2022,8
448,Community and Housing,KELSTONE COURT NURSING HOME,904011,25-Nov-22,1878.38,0,126473,Older People Placements - East,321017              Nursing & Residential Care Homes,A,2022,8
449,Community and Housing,KELSTONE COURT NURSING HOME,904027,25-Nov-22,2944.32,0,126473,Older People Placements - East,321017              Nursing & Residential Care Homes,A,2022,8
450,Community and Housing,KELSTONE COURT NURSING HOME,904032,25-Nov-22,3000,0,126473,Older People Placements - East,321017              Nursing & Residential Care Homes,A,2022,8
451,Community and Housing,KELSTONE COURT NURSING HOME,904072,25-Nov-22,2920,0,126473,Older People Placements - East,321017              Nursing & Residential Care Homes,A,2022,8
452,Community and Housing,KELSTONE COURT NURSING HOME,904112,25-Nov-22,2920,0,126473,Older People Placements - East,321017              Nursing & Residential Care Homes,A,2022,8
453,Community and Housing,KELSTONE COURT NURSING HOME,904114,25-Nov-22,3000,0,126473,Older People Placements - East,321017              Nursing & Residential Care Homes,A,2022,8
454,Community and Housing,KELSTONE COURT NURSING HOME,904125,25-Nov-22,3000,0,126473,Older People Placements - East,321017              Nursing & Residential Care Homes,A,2022,8
455,Community and Housing,KELSTONE COURT NURSING HOME,904127,25-Nov-22,2920,0,126473,Older People Placements - East,321017              Nursing & Residential Care Homes,A,2022,8
456,Community and Housing,KELSTONE COURT NURSING HOME,904130,25-Nov-22,2920,0,126473,Older People Placements - East,321017              Nursing & Residential Care Homes,A,2022,8
457,Community and Housing,KELSTONE COURT NURSING HOME,904178,25-Nov-22,2920,0,126473,Older People Placements - East,321017              Nursing & Residential Care Homes,A,2022,8
458,Community and Housing,REDACTED PERSONAL DATA,898860,08-Nov-22,668.24,0,127266,Phys/Sens Placements - East,DIRECT PAYMENTS,R,2022,8
459,Environment and Regeneration,TRL LIMITED,11616986,24-Nov-22,630.28,105.05,128700,Environmental Health-Pollution,180000              Environmental Services,A,2022,8
460,Environment and Regeneration,TRL LIMITED,11616987,24-Nov-22,1285.2,214.2,128700,LBR - Pollution,180000              Environmental Services,A,2022,8
461,Environment and Regeneration,TRL LIMITED,11616988,24-Nov-22,4345.04,724.17,128700,Wandsworth Air Quality,180000              Environmental Services,A,2022,8
462,"Children, Schools and Family",REDACTED PERSONAL DATA,901767,21-Nov-22,534.75,0,128736,Placements Under 18,321100              Social Community Care Supplies & Services - Children,R,2022,8
463,"Children, Schools and Family",BLESSED LTD,BR02506,07-Nov-22,1800,300,130228,Non-Delegated Statements,170000              Education                                                                                 Confirmed,A,2022,8
464,"Children, Schools and Family",BLESSED LTD,BR02508,17-Nov-22,2340,390,130228,Non-Delegated Statements,170000              Education                                                                                 Confirmed,A,2022,8
465,Community and Housing,BUPA CARE HOMES,900690,14-Nov-22,9156.32,0,130491,Older People Placements - East,321017              Nursing & Residential Care Homes,A,2022,8
466,Community and Housing,BUPA CARE HOMES,903785,25-Nov-22,6133.76,0,130491,Phys/Sens Placements - East,321017              Nursing & Residential Care Homes,A,2022,8
467,Community and Housing,BUPA CARE HOMES,903896,25-Nov-22,6050.76,0,130491,Phys/Sens Placements - East,321017              Nursing & Residential Care Homes,A,2022,8
468,"Children, Schools and Family",JOLLYTIME PLAYGROUP,P2 22 EY FUNDING,15-Nov-22,2499,0,131043,EARLY YEARS NURSERY GRANTS,170000              Education,A,2022,8
469,"Children, Schools and Family",OAKTREE PRE-SCHOOL NURSERY,P2 22 EY FUNDING,15-Nov-22,4334.4,0,131726,EARLY YEARS NURSERY GRANTS,170000              Education,A,2022,8
470,Environment and Regeneration,DOMINO 4 LIMITED,D.44249,16-Nov-22,874.5,145.75,132991,Pks Rec Grds (Unloc),190000              Facilities & Management Services                                                          Confirmed,A,2022,8
471,Community and Housing,DOMINO 4 LIMITED,D.44227,28-Nov-22,1155,192.5,132991,Libraries Service-Civic Centre,190000              Facilities & Management Services                                                          Confirmed,A,2022,8
472,Community and Housing,LORENSBERGS LIMITED,LOR7236,10-Nov-22,7671.41,1278.57,133029,Senior Management - Libraries,270000              Information Communication Technology,A,2022,8
473,Community and Housing,VOYAGE CARE LTD,903857,25-Nov-22,6505.28,0,133700,Learning Disabilities Placemnt,321017              Nursing & Residential Care Homes,A,2022,8
474,Community and Housing,VOYAGE CARE LTD,903968,25-Nov-22,7721.6,0,133700,Learning Disabilities Placemnt,321017              Nursing & Residential Care Homes,A,2022,8
475,Community and Housing,VOYAGE CARE LTD,904052,25-Nov-22,7799.4,0,133700,Learning Disabilities Placemnt,321017              Nursing & Residential Care Homes,A,2022,8
476,Corporate Services,VOCALINK,2.2999E+14,05-Dec-22,564,94,134117,Local Taxation Services,270000              Information Communication Technology,A,2022,8
477,Community and Housing,HOMECARE SERVICES LTD,28458,23-Nov-22,4454.8,0,134594,Phys/Sens Placements - East,321100              Social Community Care Supplies & Services - Children,A,2022,8
478,Corporate Services,POSTURITE (UK),INV1038028,01-Dec-22,529.14,88.19,134719,Legal Shared Service,210000              Furniture & Soft Furnishings,A,2022,8
479,Community and Housing,Sunrise Rehabilitation Centre,903777,25-Nov-22,4923.4,0,135093,Learning Disabilities Placemnt,321017              Nursing & Residential Care Homes,A,2022,8
480,Community and Housing,Sunrise Rehabilitation Centre,903802,25-Nov-22,4923.4,0,135093,Learning Disabilities Placemnt,321017              Nursing & Residential Care Homes,A,2022,8
481,Community and Housing,Sunrise Rehabilitation Centre,903963,25-Nov-22,4873.96,0,135093,Learning Disabilities Placemnt,321017              Nursing & Residential Care Homes,A,2022,8
482,Community and Housing,Sunrise Rehabilitation Centre,904090,25-Nov-22,4762.72,0,135093,Learning Disabilities Placemnt,321017              Nursing & Residential Care Homes,A,2022,8
483,Community and Housing,Sunrise Rehabilitation Centre,904094,25-Nov-22,4886.32,0,135093,Learning Disabilities Placemnt,321017              Nursing & Residential Care Homes,A,2022,8
484,Community and Housing,Sunrise Rehabilitation Centre,904111,25-Nov-22,4923.4,0,135093,Learning Disabilities Placemnt,321017              Nursing & Residential Care Homes,A,2022,8
485,Community and Housing,Sunrise Rehabilitation Centre,904162,25-Nov-22,6102,0,135093,Learning Disabilities Placemnt,321017              Nursing & Residential Care Homes,A,2022,8
486,Community and Housing,Sunrise Rehabilitation Centre,904181,25-Nov-22,4120,0,135093,Learning Disabilities Placemnt,321017              Nursing & Residential Care Homes,A,2022,8
487,"Children, Schools and Family",SW LONDON ST GEORGES NHS TRUST,P0069878,16-Nov-22,1041.89,0,135195,Behaviour Support,310000              Healthcare,A,2022,8
488,"Children, Schools and Family",SW LONDON ST GEORGES NHS TRUST,P0070488,07-Dec-22,30531.5,0,135195,Head - Family Support & Safegd,310000              Healthcare,A,2022,8
489,Corporate Services,Lbox Communications (Beta Dist.South),330051,14-Nov-22,8602.94,1433.82,135590,Printing,190000              Facilities & Management Services,A,2022,8
490,Corporate Services,Lbox Communications (Beta Dist.South),330052,14-Nov-22,2280,380,135590,Printing,190000              Facilities & Management Services,A,2022,8
491,Community and Housing,REDACTED PERSONAL DATA,899025,08-Nov-22,1420,0,135784,Phys/Sens Placements - East,DIRECT PAYMENTS,R,2022,8
492,Community and Housing,VITALISE,903757,25-Nov-22,4402,0,135823,Older People Placements - East,321017              Nursing & Residential Care Homes,A,2022,8
493,Community and Housing,VITALISE,904124,25-Nov-22,2237,0,135823,Learning Disabilities Placemnt,321017              Nursing & Residential Care Homes,A,2022,8
494,"Children, Schools and Family",Bright Horizons - Raynes Park,P2 22 EY FUNDING,15-Nov-22,10659.74,0,136040,EARLY YEARS NURSERY GRANTS,170000              Education,A,2022,8
495,Corporate Services,ROYAL MAIL GROUP LTD,9065775049,04-Nov-22,1381.82,230.3,136104,Electoral Registration,300000              Mail Services,A,2022,8
496,Corporate Services,ROYAL MAIL GROUP LTD,1802579202,02-Dec-22,990,165,136104,Legal Shared Service,300000              Mail Services,A,2022,8
497,Unassigned,ZURICH INSURANCE GROUP,QLA-01E223NOV22,11-Nov-22,100000,0,137315,Corporate Services,200000              Financial Services,A,2022,8
498,Unassigned,LB Wandsworth Pension Fund Account,CETV01,15-Nov-22,25648.27,0,137418,London Borough of Merton,PENSIONS,A,2022,8
499,Unassigned,LB Wandsworth Pension Fund Account,CETV2,17-Nov-22,7552.49,0,137418,London Borough of Merton,PENSIONS,A,2022,8
500,Community and Housing,REDACTED PERSONAL DATA,899194,08-Nov-22,1463.72,0,137843,Phys/Sens Placements - East,DIRECT PAYMENTS,R,2022,8
501,Community and Housing,REDACTED PERSONAL DATA,898880,08-Nov-22,1078,0,139365,Phys/Sens Placements - East,DIRECT PAYMENTS,R,2022,8
502,Community and Housing,REDACTED PERSONAL DATA,899136,08-Nov-22,509.12,0,140662,Phys/Sens Placements - East,DIRECT PAYMENTS,R,2022,8
503,Community and Housing,REDACTED PERSONAL DATA,899006,08-Nov-22,4263.88,0,140759,Phys/Sens Placements - East,DIRECT PAYMENTS,R,2022,8
504,Community and Housing,REDACTED PERSONAL DATA,899054,08-Nov-22,792.32,0,140759,Phys/Sens Placements - East,DIRECT PAYMENTS,R,2022,8
505,Community and Housing,SURREY AND BORDERS PARTNERSHIP,903927,25-Nov-22,11448.72,0,140911,Learning Disabilities Placemnt,321017              Nursing & Residential Care Homes,A,2022,8
506,Environment and Regeneration,KELTIC CLOTHING LTD,171806,17-Nov-22,562.26,93.71,141131,Civil Enforcement Officers,140000              Clothing,A,2022,8
507,Community and Housing,GARWOOD FOUNDATION,903809,25-Nov-22,2755.48,0,142358,Phys/Sens Placements - East,321017              Nursing & Residential Care Homes,A,2022,8
508,Community and Housing,GARWOOD FOUNDATION,903913,25-Nov-22,2755.48,0,142358,Older People Placements - East,321017              Nursing & Residential Care Homes,A,2022,8
509,Community and Housing,CHHG LTD T/A GRETTON HOMES,904136,25-Nov-22,7961.72,0,142442,Learning Disabilities Placemnt,321017              Nursing & Residential Care Homes,A,2022,8
510,Community and Housing,EVERGREEN PARTNERSHIP,903850,25-Nov-22,9675,0,142455,Learning Disabilities Placemnt,321017              Nursing & Residential Care Homes,A,2022,8
511,Community and Housing,EVERGREEN PARTNERSHIP,903872,25-Nov-22,6629.16,0,142455,Learning Disabilities Placemnt,321017              Nursing & Residential Care Homes,A,2022,8
512,Community and Housing,REDACTED PERSONAL DATA,900394,14-Nov-22,1052.08,0,143597,MH Housing Support Placements,321000              Social Community Care Supplies & Services - Adult,R,2022,8
513,Community and Housing,REDACTED PERSONAL DATA,900408,14-Nov-22,1315.04,0,143597,LD Housing Support Placements,321000              Social Community Care Supplies & Services - Adult,R,2022,8
514,Community and Housing,REDACTED PERSONAL DATA,900430,14-Nov-22,1462.32,0,143597,Learning Disabilities Placemnt,321000              Social Community Care Supplies & Services - Adult,R,2022,8
515,Corporate Services,REDACTED PERSONAL DATA,JR179,04-Nov-22,680,0,143840,Translation Service,TRANSLATIONS,R,2022,8
516,Corporate Services,REDACTED PERSONAL DATA,JR180,11-Nov-22,1577,0,143840,Translation Service,TRANSLATIONS,R,2022,8
517,Community and Housing,REDACTED PERSONAL DATA,899000,08-Nov-22,3731.72,0,144689,Learning Disabilities Placemnt,DIRECT PAYMENTS,R,2022,8
518,Community and Housing,CRAEGMOOR FACILITIES - WINDSOR,903907,25-Nov-22,6834.88,0,145152,Learning Disabilities Placemnt,321017              Nursing & Residential Care Homes,A,2022,8
519,"Children, Schools and Family",DATE VALLEY SCHOOL,4318,15-Nov-22,3387,0,145171,Non-Delegated Statements,170000              Education,A,2022,8
520,"Children, Schools and Family",DATE VALLEY SCHOOL,P2 22 EY FUNDING,15-Nov-22,8755.49,0,145171,EARLY YEARS NURSERY GRANTS,170000              Education,A,2022,8
521,Community and Housing,REDACTED PERSONAL DATA,899087,08-Nov-22,4454.8,0,145882,Learning Disabilities Placemnt,DIRECT PAYMENTS,R,2022,8
522,"Children, Schools and Family",ACORN NURSERY,P2 22 EY FUNDING,15-Nov-22,2707.74,0,147406,EARLY YEARS NURSERY GRANTS,200000              Financial Services,A,2022,8
523,Community and Housing,SPEECH CENTRE,110543,08-Nov-22,690,115,147920,Locality Team 2,270000              Information Communication Technology,A,2022,8
524,Community and Housing,GENERATE,9968,18-Nov-22,909,0,148332,Learning Disabilities Placemnt,321000              Social Community Care Supplies & Services - Adult,A,2022,8
525,Community and Housing,GENERATE,9970,18-Nov-22,824,0,148332,Learning Disabilities Placemnt,321000              Social Community Care Supplies & Services - Adult,A,2022,8
526,Community and Housing,CHICHESTER HALL CARE HOME LTD,904122,25-Nov-22,2637.2,0,148358,Older People Placements - East,321017              Nursing & Residential Care Homes,A,2022,8
527,"Children, Schools and Family",Dicky Birds Pre Sch. Nurseries Queens Rd,P2 22 EY FUNDING,15-Nov-22,7007.28,0,148567,EARLY YEARS NURSERY GRANTS,200000              Financial Services,A,2022,8
528,"Children, Schools and Family",MARIA MONTESSORI CHILDREN'S,P2 22 SENDIF,11-Nov-22,1890,0,148568,EARLY YEARS NURSERY GRANTS,200000              Financial Services,A,2022,8
529,"Children, Schools and Family",MARIA MONTESSORI CHILDREN'S,P2 22 EY FUNDING,15-Nov-22,7117.27,0,148568,EARLY YEARS NURSERY GRANTS,200000              Financial Services,A,2022,8
530,"Children, Schools and Family",REDACTED PERSONAL DATA,P2 22 EY FUNDING,15-Nov-22,967.68,0,149524,EARLY YEARS NURSERY GRANTS,321100              Social Community Care Supplies & Services - Children                                      Confirmed,R,2022,8
531,"Children, Schools and Family",DONHEAD SCHOOL,P2 22 EY FUNDING,15-Nov-22,4829.76,0,149760,EARLY YEARS NURSERY GRANTS,170000              Education,A,2022,8
532,Unassigned,Canterbury Campus,SCHOOLS 2223/8 A,08-Nov-22,209859.7,0,150054,Schools,170000              Education,A,2022,8
533,Unassigned,BARNETT WADDINGHAM LLP,T23/4124,30-Nov-22,7745.5,1290.92,150927,Governance & Oversight Cost,PENSIONS,A,2022,8
534,Unassigned,BARNETT WADDINGHAM LLP,S23/0110,21-Nov-22,9694.5,1615.75,150927,Governance & Oversight Cost,PENSIONS,A,2022,8
535,Unassigned,BARNETT WADDINGHAM LLP,T23/2373,21-Nov-22,8962.5,1493.75,150927,Governance & Oversight Cost,PENSIONS,A,2022,8
536,Community and Housing,REDACTED PERSONAL DATA,898988,08-Nov-22,2544.32,0,151002,Older People Placements - East,DIRECT PAYMENTS,R,2022,8
537,Community and Housing,AIMS CARE PARTNERSHIP,903855,25-Nov-22,10560,0,151592,Learning Disabilities Placemnt,321017              Nursing & Residential Care Homes,A,2022,8
538,Community and Housing,AIMS CARE PARTNERSHIP,903898,25-Nov-22,3114.72,0,151592,Learning Disabilities Placemnt,321017              Nursing & Residential Care Homes,A,2022,8
539,Community and Housing,REDACTED PERSONAL DATA,898990,08-Nov-22,2269.96,0,151790,Phys/Sens Placements - East,DIRECT PAYMENTS,R,2022,8
540,Community and Housing,REDACTED PERSONAL DATA,905131,29-Nov-22,2666.97,0,151790,Older People Placements - East,DIRECT PAYMENTS,R,2022,8
541,Community and Housing,HOLISTIC COMMUNITY CARE - FC,3187,01-Nov-22,5080,0,151996,Older People Placements - East,321000              Social Community Care Supplies & Services - Adult,A,2022,8
542,Community and Housing,HOLISTIC COMMUNITY CARE - FC,M222308/33,04-Nov-22,642.32,0,151996,Older People Placements - East,321000              Social Community Care Supplies & Services - Adult,A,2022,8
543,Community and Housing,HOLISTIC COMMUNITY CARE - FC,M222308/11,04-Nov-22,628.56,0,151996,Older People Placements - East,321000              Social Community Care Supplies & Services - Adult,A,2022,8
544,Community and Housing,HOLISTIC COMMUNITY CARE - FC,M222308/18,04-Nov-22,1282.09,0,151996,Older People Placements - East,321000              Social Community Care Supplies & Services - Adult,A,2022,8
545,Community and Housing,HOLISTIC COMMUNITY CARE - FC,M222308/2,04-Nov-22,2957.93,0,151996,Older People Placements - East,321000              Social Community Care Supplies & Services - Adult,A,2022,8
546,Community and Housing,HOLISTIC COMMUNITY CARE - FC,M222308/23,04-Nov-22,1373.55,0,151996,Older People Placements - East,321000              Social Community Care Supplies & Services - Adult,A,2022,8
547,Community and Housing,HOLISTIC COMMUNITY CARE - FC,M222308/4,04-Nov-22,2128.15,0,151996,Older People Placements - East,321000              Social Community Care Supplies & Services - Adult,A,2022,8
548,Community and Housing,HOLISTIC COMMUNITY CARE - FC,M222308/22,04-Nov-22,1671.87,0,151996,Older People Placements - East,321000              Social Community Care Supplies & Services - Adult,A,2022,8
549,Community and Housing,HOLISTIC COMMUNITY CARE - FC,M222308/10,04-Nov-22,725.43,0,151996,Older People Placements - East,321000              Social Community Care Supplies & Services - Adult,A,2022,8
550,Community and Housing,HOLISTIC COMMUNITY CARE - FC,M222308/16,04-Nov-22,889.06,0,151996,Older People Placements - East,321000              Social Community Care Supplies & Services - Adult,A,2022,8
551,Community and Housing,HOLISTIC COMMUNITY CARE - FC,M222308/17,04-Nov-22,1319.05,0,151996,Older People Placements - East,321000              Social Community Care Supplies & Services - Adult,A,2022,8
552,Community and Housing,HOLISTIC COMMUNITY CARE - FC,M222308/27,04-Nov-22,715.39,0,151996,Older People Placements - East,321000              Social Community Care Supplies & Services - Adult,A,2022,8
553,Community and Housing,HOLISTIC COMMUNITY CARE - FC,M222308/35,04-Nov-22,1136.57,0,151996,Older People Placements - East,321000              Social Community Care Supplies & Services - Adult,A,2022,8
554,Community and Housing,HOLISTIC COMMUNITY CARE - FC,M222308/7,04-Nov-22,1754.72,0,151996,Older People Placements - East,321000              Social Community Care Supplies & Services - Adult,A,2022,8
555,Community and Housing,HOLISTIC COMMUNITY CARE - FC,M222308/31,04-Nov-22,747.04,0,151996,Older People Placements - East,321000              Social Community Care Supplies & Services - Adult,A,2022,8
556,Community and Housing,REDACTED PERSONAL DATA,899223,08-Nov-22,7434,0,152015,Older People Placements - East,321000              Social Community Care Supplies & Services - Adult,R,2022,8
557,Community and Housing,BELGRAVIA ESTATES LTD,DEP 173 KINGSTON,17-Nov-22,1321.36,0,152558,Homelessness Prevention,200000              Financial Services,A,2022,8
558,Community and Housing,BELGRAVIA ESTATES LTD,RNWL F3 312 STRE,21-Nov-22,2000,0,152558,Homelessness Prevention,200000              Financial Services,A,2022,8
559,Community and Housing,REDACTED PERSONAL DATA,899157,08-Nov-22,954.6,0,152709,Older People Placements - East,DIRECT PAYMENTS,R,2022,8
560,Community and Housing,REDACTED PERSONAL DATA,898973,08-Nov-22,1587.84,0,152990,Learning Disabilities Placemnt,DIRECT PAYMENTS,R,2022,8
561,Community and Housing,LYNTON HALL NURSING HOME,903755,28-Nov-22,3102.04,0,153795,Older People Placements - East,321017              Nursing & Residential Care Homes,A,2022,8
562,Community and Housing,LYNTON HALL NURSING HOME,903761,28-Nov-22,2988.48,0,153795,Older People Placements - East,321017              Nursing & Residential Care Homes,A,2022,8
563,Community and Housing,LYNTON HALL NURSING HOME,903934,28-Nov-22,3249.6,0,153795,Older People Placements - East,321017              Nursing & Residential Care Homes,A,2022,8
564,Community and Housing,REDACTED PERSONAL DATA,899111,08-Nov-22,614.16,0,155411,Learning Disabilities Placemnt,DIRECT PAYMENTS,R,2022,8
565,Community and Housing,REDACTED PERSONAL DATA,899140,08-Nov-22,9751.56,0,156181,Phys/Sens Placements - East,DIRECT PAYMENTS,R,2022,8
566,"Children, Schools and Family",Institute Of Family Therapy,TR/8517-23,08-Nov-22,3136,0,158488,Family Supp SafeGuard - Team,260000              Human Resources,A,2022,8
567,Corporate Services,IMAGINE INDEPENDENCE,10221,24-Nov-22,900,0,158720,Learning and Development,321000              Social Community Care Supplies & Services - Adult,A,2022,8
568,Corporate Services,IMAGINE INDEPENDENCE,9813,25-Nov-22,2400,0,158720,Learning and Development,321000              Social Community Care Supplies & Services - Adult,A,2022,8
569,Corporate Services,IMAGINE INDEPENDENCE,10220,25-Nov-22,900,0,158720,Learning and Development,321000              Social Community Care Supplies & Services - Adult,A,2022,8
570,Environment and Regeneration,SOLON SECURITY LTD,SI22011088,25-Nov-22,1493.1,248.85,159485,Crime and Strategy Team,190000              Facilities & Management Services,A,2022,8
571,Community and Housing,SOLON SECURITY LTD,SI22011193,30-Nov-22,4074,679,159485,Mascot,190000              Facilities & Management Services,A,2022,8
572,Community and Housing,REDACTED PERSONAL DATA,898948,08-Nov-22,979.36,0,159542,Phys/Sens Placements - East,DIRECT PAYMENTS,R,2022,8
573,Community and Housing,REDACTED PERSONAL DATA,899017,08-Nov-22,1185.5,0,159569,Mental Health Placements,DIRECT PAYMENTS,R,2022,8
574,Corporate Services,ADVANCED BUSINESS SOLUTIONS,INV-43103,08-Nov-22,9172.8,1528.8,159966,AD Resources,270000              Information Communication Technology,A,2022,8
575,Community and Housing,REDACTED PERSONAL DATA,899164,08-Nov-22,3220,0,160044,Phys/Sens Placements - East,DIRECT PAYMENTS,R,2022,8
576,Community and Housing,METROPOLITAN THAMES VALLEY,3059463-SM,01-Nov-22,2171,0,160080,Learning Disabilities Placemnt,321017              Nursing & Residential Care Homes,A,2022,8
577,Community and Housing,METROPOLITAN THAMES VALLEY,3059463-DL,01-Nov-22,2171,0,160080,Learning Disabilities Placemnt,321017              Nursing & Residential Care Homes,A,2022,8
578,Community and Housing,METROPOLITAN THAMES VALLEY,3059463-SC,01-Nov-22,2171,0,160080,Learning Disabilities Placemnt,321017              Nursing & Residential Care Homes,A,2022,8
579,Community and Housing,METROPOLITAN THAMES VALLEY,3059463-GB,01-Nov-22,2171,0,160080,Learning Disabilities Placemnt,321017              Nursing & Residential Care Homes,A,2022,8
580,Community and Housing,METROPOLITAN THAMES VALLEY,3060189SM,21-Nov-22,2171,0,160080,Learning Disabilities Placemnt,321017              Nursing & Residential Care Homes,A,2022,8
581,Community and Housing,METROPOLITAN THAMES VALLEY,3060189LD,21-Nov-22,2171,0,160080,Learning Disabilities Placemnt,321017              Nursing & Residential Care Homes,A,2022,8
582,Community and Housing,METROPOLITAN THAMES VALLEY,3060189SC,21-Nov-22,2171,0,160080,Learning Disabilities Placemnt,321017              Nursing & Residential Care Homes,A,2022,8
583,Community and Housing,METROPOLITAN THAMES VALLEY,3060189GB,21-Nov-22,2171,0,160080,Learning Disabilities Placemnt,321017              Nursing & Residential Care Homes,A,2022,8
584,Community and Housing,PROQUEST LLC,70751401,11-Nov-22,5590.52,0,160102,Media Fund,170000              Education,A,2022,8
585,Community and Housing,REDACTED PERSONAL DATA,899073,08-Nov-22,1272.8,0,160244,Phys/Sens Placements - East,DIRECT PAYMENTS,R,2022,8
586,Community and Housing,REDACTED PERSONAL DATA,899077,08-Nov-22,604.6,0,160273,Learning Disabilities Placemnt,DIRECT PAYMENTS,R,2022,8
587,Community and Housing,REDACTED PERSONAL DATA,898985,08-Nov-22,1018.24,0,160279,Phys/Sens Placements - East,DIRECT PAYMENTS,R,2022,8
588,"Children, Schools and Family",FLEET EDUCATION SERVICES LTD,18551,11-Nov-22,1152,192,160300,Non-Delegated Statements,260000              Human Resources,A,2022,8
589,"Children, Schools and Family",FLEET EDUCATION SERVICES LTD,18552,15-Nov-22,2700,450,160300,Non-Delegated Statements,260000              Human Resources,A,2022,8
590,"Children, Schools and Family",THE NATIONAL FOSTERING AGENCY,415049,22-Nov-22,5703.38,0,160464,Placements Under 18,321100              Social Community Care Supplies & Services - Children,A,2022,8
591,"Children, Schools and Family",THE NATIONAL FOSTERING AGENCY,415047,22-Nov-22,5703.38,0,160464,Placements Under 18,321100              Social Community Care Supplies & Services - Children,A,2022,8
592,Community and Housing,WILLOW LODGE NURSING HOME,903950,25-Nov-22,13365.44,0,160658,Older People Placements - East,321017              Nursing & Residential Care Homes,A,2022,8
593,Community and Housing,THE AVENUES TRUST GROUP,1001166,29-Nov-22,1725.08,0,160730,Learning Disabilities Placemnt,321017              Nursing & Residential Care Homes,A,2022,8
594,Community and Housing,THE AVENUES TRUST GROUP,1001167,29-Nov-22,2012.27,0,160730,Learning Disabilities Placemnt,321017              Nursing & Residential Care Homes,A,2022,8
595,Community and Housing,THE AVENUES TRUST GROUP,101168,29-Nov-22,2012.76,0,160730,Learning Disabilities Placemnt,321017              Nursing & Residential Care Homes,A,2022,8
596,Community and Housing,THE AVENUES TRUST GROUP,1001169,29-Nov-22,2012.76,0,160730,Learning Disabilities Placemnt,321017              Nursing & Residential Care Homes,A,2022,8
597,Community and Housing,THE AVENUES TRUST GROUP,1001170,29-Nov-22,2012.76,0,160730,Learning Disabilities Placemnt,321017              Nursing & Residential Care Homes,A,2022,8
598,Community and Housing,THE AVENUES TRUST GROUP,1001172,29-Nov-22,2131.76,0,160730,Learning Disabilities Placemnt,321017              Nursing & Residential Care Homes,A,2022,8
599,Community and Housing,THE AVENUES TRUST GROUP,1001173,29-Nov-22,2131.76,0,160730,Learning Disabilities Placemnt,321017              Nursing & Residential Care Homes,A,2022,8
600,Community and Housing,THE AVENUES TRUST GROUP,1001171,29-Nov-22,2042.61,0,160730,Learning Disabilities Placemnt,321017              Nursing & Residential Care Homes,A,2022,8
601,Environment and Regeneration,CITY OF LONDON CORPORATION,4328896,25-Nov-22,5150.11,858.35,160895,Waste Disposal,180000              Environmental Services,A,2022,8
602,Community and Housing,REDACTED PERSONAL DATA,899218,08-Nov-22,540.96,0,160909,Older People Placements - East,DIRECT PAYMENTS,R,2022,8
603,"Children, Schools and Family",THE AWARD SCHEME LTD,PSI150319,23-Nov-22,10300,0,161088, Duke of Edinburgh Awrds,290000              Arts & Leisure Services,A,2022,8
604,"Children, Schools and Family",REDACTED PERSONAL DATA,898467,04-Nov-22,514.75,0,161094,Placements Under 18,321100              Social Community Care Supplies & Services - Children,R,2022,8
605,"Children, Schools and Family",REDACTED PERSONAL DATA,900146,11-Nov-22,514.75,0,161094,Placements Under 18,321100              Social Community Care Supplies & Services - Children,R,2022,8
606,"Children, Schools and Family",REDACTED PERSONAL DATA,901789,21-Nov-22,514.75,0,161094,Placements Under 18,321100              Social Community Care Supplies & Services - Children,R,2022,8
607,"Children, Schools and Family",REDACTED PERSONAL DATA,904333,25-Nov-22,514.75,0,161094,Placements Under 18,321100              Social Community Care Supplies & Services - Children,R,2022,8
608,Environment and Regeneration,KAT TRANSPORT LTD,72,28-Nov-22,4329.6,721.6,162381,Passenger Transport,360000              Passenger Transport,A,2022,8
609,Environment and Regeneration,KAT TRANSPORT LTD,70,28-Nov-22,1800,300,162381,Passenger Transport,360000              Passenger Transport,A,2022,8
610,Environment and Regeneration,KAT TRANSPORT LTD,71,28-Nov-22,1800,300,162381,Passenger Transport,360000              Passenger Transport,A,2022,8
611,Corporate Services,DATA INTERCHANGE PLC,UKSI-103498,07-Dec-22,4320,720,162623,Local Taxation Bailiffs,270000              Information Communication Technology,A,2022,8
612,Corporate Services,WALLINGTON CARS AND COURIERS LTD,293839,21-Nov-22,2396.99,399.5,162637,PrintUnit-HighVolPhtcopying,300000              Mail Services,A,2022,8
613,Corporate Services,WALLINGTON CARS AND COURIERS LTD,292950,17-Nov-22,2192,364.33,162637,PrintUnit-HighVolPhtcopying,300000              Mail Services,A,2022,8
614,"Children, Schools and Family",THE NATIONAL AUTISTIC SOCIETY,VNG8381431,17-Nov-22,12527.89,0,162644,Non-Delegated Statements,260000              Human Resources,A,2022,8
615,"Children, Schools and Family",THE NATIONAL AUTISTIC SOCIETY,VNG8381461,17-Nov-22,12527.89,0,162644,Non-Delegated Statements,260000              Human Resources,A,2022,8
616,Community and Housing,REDACTED PERSONAL DATA,898900,08-Nov-22,1562.56,0,163392,Learning Disabilities Placemnt,DIRECT PAYMENTS,R,2022,8
617,Environment and Regeneration,D N H PROPERTY MAINTENANCE,2163DNH,10-Nov-22,8580,1430,163395,Greenspaces Team (General),"390000              Works - Construction, Repair & Maintenance",C,2022,8
618,Capital,D N H PROPERTY MAINTENANCE,2164DNH,22-Nov-22,18000,3000,163395,Lonesome,"390000              Works - Construction, Repair & Maintenance",C,2022,8
619,Environment and Regeneration,D N H PROPERTY MAINTENANCE,1619DNH,10-Nov-22,2073.75,345.62,163395,Spatial Policy,"390000              Works - Construction, Repair & Maintenance",C,2022,8
620,Environment and Regeneration,D N H PROPERTY MAINTENANCE,1559DNH,11-Nov-22,756,126,163395,Spatial Policy,"390000              Works - Construction, Repair & Maintenance",C,2022,8
621,Community and Housing,Tunstall Healthcare (UK) Limited,CD970001330,28-Nov-22,3487.06,581.18,163420,Mascot,190000              Facilities & Management Services,A,2022,8
622,"Children, Schools and Family",REDACTED PERSONAL DATA,898488,04-Nov-22,785.52,0,163471,Placements Under 18,200000              Financial Services,R,2022,8
623,"Children, Schools and Family",REDACTED PERSONAL DATA,898497,04-Nov-22,514.75,0,163471,Placements Under 18,200000              Financial Services,R,2022,8
624,"Children, Schools and Family",REDACTED PERSONAL DATA,900165,11-Nov-22,785.52,0,163471,Placements Under 18,200000              Financial Services,R,2022,8
625,"Children, Schools and Family",REDACTED PERSONAL DATA,900174,11-Nov-22,514.75,0,163471,Placements Under 18,200000              Financial Services,R,2022,8
626,"Children, Schools and Family",REDACTED PERSONAL DATA,901810,21-Nov-22,785.52,0,163471,Placements Under 18,200000              Financial Services,R,2022,8
627,"Children, Schools and Family",REDACTED PERSONAL DATA,901819,21-Nov-22,514.75,0,163471,Placements Under 18,200000              Financial Services,R,2022,8
628,"Children, Schools and Family",REDACTED PERSONAL DATA,904354,25-Nov-22,785.52,0,163471,Placements Under 18,200000              Financial Services,R,2022,8
629,"Children, Schools and Family",REDACTED PERSONAL DATA,904363,25-Nov-22,514.75,0,163471,Placements Under 18,200000              Financial Services,R,2022,8
630,"Children, Schools and Family",LA PETITE FLEUR PRE-SCHOOL,P2 22 EY FUNDING,15-Nov-22,2692.2,0,163698,EARLY YEARS NURSERY GRANTS,200000              Financial Services,A,2022,8
631,Community and Housing,Active Prospects,903787,25-Nov-22,6103.76,0,163859,Learning Disabilities Placemnt,321017              Nursing & Residential Care Homes,A,2022,8
632,Community and Housing,REDACTED PERSONAL DATA,899212,08-Nov-22,1129.64,0,163971,Phys/Sens Placements - East,DIRECT PAYMENTS,R,2022,8
633,"Children, Schools and Family",BUMBLE BEES'S DAY NURSERY-COCC,P2 22 EY FUNDING,15-Nov-22,3916.5,0,164240,EARLY YEARS NURSERY GRANTS,200000              Financial Services,A,2022,8
634,Corporate Services,ZURICH INSURANCE COMPANY,407000199,15-Nov-22,15044.4,2507.4,164284,Insurance Premiums & Funding,200000              Financial Services,A,2022,8
635,Corporate Services,ZURICH INSURANCE COMPANY,INVCE00000005002,24-Nov-22,1121.05,186.85,164284,Buildings Maintenance,200000              Financial Services,A,2022,8
636,Corporate Services,CLIFFE ENTERPRISE LTD,21881,11-Nov-22,991.2,165.2,164341,Printing,190000              Facilities & Management Services,A,2022,8
637,Community and Housing,LONDON COUNCILS,4327383,07-Nov-22,115367.69,0,164343,Concessionary Fares,OLA,A,2022,8
638,Environment and Regeneration,LONDON COUNCILS,4328232,14-Nov-22,12869.11,0,164343,Operational Running Costs,OLA,A,2022,8
639,Community and Housing,LONDON COUNCILS,4328361,17-Nov-22,7500,0,164343,Homelessness Prevention,OLA,A,2022,8
640,Corporate Services,LONDON COUNCILS,4329122,29-Nov-22,36000,6000,164343,IT Service Delivery,OLA,A,2022,8
641,Community and Housing,ENTERPRISE CARE SUPPORT LTD,19472,16-Nov-22,1346.22,0,164431,Older People Placements - East,321000              Social Community Care Supplies & Services - Adult,A,2022,8
642,Community and Housing,ENTERPRISE CARE SUPPORT LTD,19748,16-Nov-22,3329.08,0,164431,Older People Placements - East,321000              Social Community Care Supplies & Services - Adult,A,2022,8
643,Community and Housing,ENTERPRISE CARE SUPPORT LTD,19769,16-Nov-22,747.04,0,164431,Older People Placements - East,321000              Social Community Care Supplies & Services - Adult,A,2022,8
644,Community and Housing,ENTERPRISE CARE SUPPORT LTD,19771,18-Nov-22,1324.36,0,164431,Older People Placements - East,321000              Social Community Care Supplies & Services - Adult,A,2022,8
645,Community and Housing,ENTERPRISE CARE SUPPORT LTD,19770,18-Nov-22,1068.2,0,164431,Older People Placements - East,321000              Social Community Care Supplies & Services - Adult,A,2022,8
646,Community and Housing,ENTERPRISE CARE SUPPORT LTD,19752,18-Nov-22,3197.04,0,164431,Older People Placements - East,321000              Social Community Care Supplies & Services - Adult,A,2022,8
647,Community and Housing,ENTERPRISE CARE SUPPORT LTD,19749,18-Nov-22,2778.72,0,164431,Older People Placements - East,321000              Social Community Care Supplies & Services - Adult,A,2022,8
648,Community and Housing,ENTERPRISE CARE SUPPORT LTD,19750,18-Nov-22,533.6,0,164431,Older People Placements - East,321000              Social Community Care Supplies & Services - Adult,A,2022,8
649,Community and Housing,ENTERPRISE CARE SUPPORT LTD,19751,18-Nov-22,1068.2,0,164431,Older People Placements - East,321000              Social Community Care Supplies & Services - Adult,A,2022,8
650,Community and Housing,ENTERPRISE CARE SUPPORT LTD,19761,21-Nov-22,1068.2,0,164431,Older People Placements - East,321000              Social Community Care Supplies & Services - Adult,A,2022,8
651,Community and Housing,ENTERPRISE CARE SUPPORT LTD,19762,21-Nov-22,2136.4,0,164431,Older People Placements - East,321000              Social Community Care Supplies & Services - Adult,A,2022,8
652,Community and Housing,ENTERPRISE CARE SUPPORT LTD,19758,21-Nov-22,747.04,0,164431,Older People Placements - East,321000              Social Community Care Supplies & Services - Adult,A,2022,8
653,Community and Housing,ENTERPRISE CARE SUPPORT LTD,19760,21-Nov-22,681.48,0,164431,Learning Disabilities Placemnt,321000              Social Community Care Supplies & Services - Adult,A,2022,8
654,Community and Housing,ENTERPRISE CARE SUPPORT LTD,19755,21-Nov-22,642.32,0,164431,Older People Placements - East,321000              Social Community Care Supplies & Services - Adult,A,2022,8
655,Community and Housing,ENTERPRISE CARE SUPPORT LTD,19756,21-Nov-22,681.48,0,164431,Older People Placements - East,321000              Social Community Care Supplies & Services - Adult,A,2022,8
656,Community and Housing,ENTERPRISE CARE SUPPORT LTD,19757,21-Nov-22,747.04,0,164431,Older People Placements - East,321000              Social Community Care Supplies & Services - Adult,A,2022,8
657,Community and Housing,ENTERPRISE CARE SUPPORT LTD,19754,21-Nov-22,747.04,0,164431,Older People Placements - East,321000              Social Community Care Supplies & Services - Adult,A,2022,8
658,Community and Housing,ENTERPRISE CARE SUPPORT LTD,19767,21-Nov-22,2778.72,0,164431,Older People Placements - East,321000              Social Community Care Supplies & Services - Adult,A,2022,8
659,Community and Housing,ENTERPRISE CARE SUPPORT LTD,19764,21-Nov-22,1068.2,0,164431,Older People Placements - East,321000              Social Community Care Supplies & Services - Adult,A,2022,8
660,Corporate Services,REDACTED PERSONAL DATA,HONOURSBOARDS,21-Nov-22,960,0,164607,Democracy Services,321100              Social Community Care Supplies & Services - Children                                      Confirmed,R,2022,8
661,Community and Housing,BUPA CARE SERVICES BACS RECEIP,903978,25-Nov-22,8538.76,0,164629,Older People Placements - East,321017              Nursing & Residential Care Homes,A,2022,8
662,Community and Housing,REDACTED PERSONAL DATA,899220,08-Nov-22,1272.8,0,164694,Phys/Sens Placements - East,DIRECT PAYMENTS,R,2022,8
663,"Children, Schools and Family",SYNERGY FOSTERING LTD,INV-3950,07-Nov-22,7688.4,0,165111,Placements Under 18,321100              Social Community Care Supplies & Services - Children,A,2022,8
664,Unassigned,MARSTON GROUP,62440,28-Nov-22,2574.57,0,165202,Corporate Accountancy,200000              Financial Services,A,2022,8
665,Corporate Services,DX NETWORK SERVICES LTD,83670575,25-Nov-22,1652.38,275.4,165316,Legal Shared Service,300000              Mail Services,A,2022,8
666,Community and Housing,REDACTED PERSONAL DATA,899158,08-Nov-22,1349.48,0,165602,Learning Disabilities Placemnt,DIRECT PAYMENTS,R,2022,8
667,Community and Housing,REDACTED PERSONAL DATA,898947,08-Nov-22,2228.4,0,165619,Phys/Sens Placements - East,DIRECT PAYMENTS,R,2022,8
668,Community and Housing,REDACTED PERSONAL DATA,899030,08-Nov-22,3538.2,0,165619,Phys/Sens Placements - East,DIRECT PAYMENTS,R,2022,8
669,Community and Housing,BUPA CARE HOMES (ANS) LTD,904144,25-Nov-22,4749.4,0,165704,Older People Placements - East,321017              Nursing & Residential Care Homes,A,2022,8
670,Corporate Services,Crown Lane Productions Ltd,INV3525,30-Nov-22,6900,0,165739,Marketing & Communication,290000              Arts & Leisure Services,A,2022,8
671,Corporate Services,Crown Lane Productions Ltd,INV3507,30-Nov-22,2500,0,165739,Marketing & Communication,290000              Arts & Leisure Services,A,2022,8
672,Community and Housing,REDACTED PERSONAL DATA,899123,08-Nov-22,1032.8,0,165786,Older People Placements - East,DIRECT PAYMENTS,R,2022,8
673,Community and Housing,REDACTED PERSONAL DATA,899227,08-Nov-22,700.8,0,166085,Learning Disabilities Placemnt,DIRECT PAYMENTS,R,2022,8
674,Community and Housing,REDACTED PERSONAL DATA,899120,08-Nov-22,1588.64,0,166158,Phys/Sens Placements - East,DIRECT PAYMENTS,R,2022,8
675,Unassigned,COMPLETE ECOLOGY LTD,16/2223,04-Nov-22,3360,560,166208,Mitcham Common Conservators,240000              Horticultural                                                                             Confirmed,A,2022,8
676,Unassigned,COMPLETE ECOLOGY LTD,17/2223,04-Nov-22,2700,450,166208,Mitcham Common Conservators,240000              Horticultural                                                                             Confirmed,A,2022,8
677,Environment and Regeneration,COMPLETE ECOLOGY LTD,15/2223,07-Nov-22,540,90,166208,Nature Conservation,240000              Horticultural                                                                             Confirmed,A,2022,8
678,"Children, Schools and Family",REDACTED PERSONAL DATA,P2 22 EY FUNDING,15-Nov-22,967.68,0,166244,EARLY YEARS NURSERY GRANTS,200000              Financial Services,R,2022,8
679,Community and Housing,REDACTED PERSONAL DATA,898915,08-Nov-22,1209.16,0,166547,Learning Disabilities Placemnt,DIRECT PAYMENTS,R,2022,8
680,"Children, Schools and Family",REDACTED PERSONAL DATA,898417,04-Nov-22,1295.53,0,166742,Placements Under 18,321100              Social Community Care Supplies & Services - Children,R,2022,8
681,"Children, Schools and Family",REDACTED PERSONAL DATA,900093,11-Nov-22,1295.53,0,166742,Placements Under 18,321100              Social Community Care Supplies & Services - Children,R,2022,8
682,"Children, Schools and Family",REDACTED PERSONAL DATA,901737,21-Nov-22,1295.53,0,166742,Placements Under 18,321100              Social Community Care Supplies & Services - Children,R,2022,8
683,"Children, Schools and Family",REDACTED PERSONAL DATA,904285,25-Nov-22,1295.53,0,166742,Placements Under 18,321100              Social Community Care Supplies & Services - Children,R,2022,8
684,Environment and Regeneration,UNIQUE OFFICE SOLUTIONS LTD,111955,04-Nov-22,540,90,166889,Vestry Hall,210000              Furniture & Soft Furnishings,A,2022,8
685,"Children, Schools and Family",REDACTED PERSONAL DATA,897381,03-Nov-22,807.76,0,166972,Child Disabilities - Placement,CSF-DIRECT PAYMENTS,R,2022,8
686,"Children, Schools and Family",WIMBLEDON DAY NURSERY,EY IPC CHAMPION,03-Nov-22,2000,0,167298,Quality Improvement,170000              Education,A,2022,8
687,"Children, Schools and Family",WIMBLEDON DAY NURSERY,P2 22 EY FUNDING,15-Nov-22,6068.16,0,167298,EARLY YEARS NURSERY GRANTS,170000              Education,A,2022,8
688,Environment and Regeneration,IMPERIAL CIVIL ENFORC.SOLUT.,INV0000005708,04-Nov-22,2160,360,167737,Civil Enforcement Officers,270000              Information Communication Technology,A,2022,8
689,Environment and Regeneration,IMPERIAL CIVIL ENFORC.SOLUT.,INV0000005893,04-Nov-22,1863.14,310.52,167737,Operational Running Costs,270000              Information Communication Technology,A,2022,8
690,Corporate Services,REDACTED PERSONAL DATA,10200101,05-Dec-22,150302.4,25050.4,168092,SLLP - Disbursements,280000              Legal Services,R,2022,8
691,Corporate Services,REDACTED PERSONAL DATA,10203681,05-Dec-22,118767,19794.5,168092,SLLP - Disbursements,280000              Legal Services,R,2022,8
692,Community and Housing,CBS Adaptation Design,1661,02-Nov-22,2145.16,357.53,168147,Hsg. Env. Health (Enforcement),200000              Financial Services,A,2022,8
693,Capital,CBS Adaptation Design,1680,07-Nov-22,2069.81,257.47,168147,Disabled Facilities Grant,200000              Financial Services,A,2022,8
694,Capital,CBS Adaptation Design,1698,07-Nov-22,2104.2,321.53,168147,Disabled Facilities Grant,200000              Financial Services,A,2022,8
695,Capital,CBS Adaptation Design,1684,10-Nov-22,2587.02,343.17,168147,Disabled Facilities Grant,200000              Financial Services,A,2022,8
696,Capital,CBS Adaptation Design,1691,10-Nov-22,840,140,168147,Disabled Facilities Grant,200000              Financial Services,A,2022,8
697,Capital,CBS Adaptation Design,1666,22-Nov-22,3583.19,509.2,168147,Disabled Facilities Grant,200000              Financial Services,A,2022,8
698,Capital,CBS Adaptation Design,1679,23-Nov-22,2445.95,319.66,168147,Disabled Facilities Grant,200000              Financial Services,A,2022,8
699,Capital,CBS Adaptation Design,1694,23-Nov-22,2704.44,363.24,168147,Disabled Facilities Grant,200000              Financial Services,A,2022,8
700,Capital,CBS Adaptation Design,1681,23-Nov-22,1203.7,150.62,168147,Disabled Facilities Grant,200000              Financial Services,A,2022,8
701,Capital,CBS Adaptation Design,1695,23-Nov-22,1250.32,179.22,168147,Disabled Facilities Grant,200000              Financial Services,A,2022,8
702,Capital,CBS Adaptation Design,1692,23-Nov-22,1260,210,168147,Disabled Facilities Grant,200000              Financial Services,A,2022,8
703,Capital,CBS Adaptation Design,1702,01-Dec-22,596.33,49.39,168147,Disabled Facilities Grant,200000              Financial Services,A,2022,8
704,Capital,CBS Adaptation Design,1683,01-Dec-22,3689.4,527.4,168147,Disabled Facilities Grant,200000              Financial Services,A,2022,8
705,Capital,CBS Adaptation Design,1697,01-Dec-22,3596.06,511.34,168147,Disabled Facilities Grant,200000              Financial Services,A,2022,8
706,Corporate Services,LANGUAGE BANK,MTS-210922,15-Nov-22,888,148,168229,Translation Service,TRANSLATIONS,A,2022,8
707,Corporate Services,LANGUAGE BANK,MTS-181022,21-Nov-22,783,130.5,168229,Translation Service,TRANSLATIONS,A,2022,8
708,Corporate Services,LANGUAGE BANK,MTS-021122,21-Nov-22,720,120,168229,Translation Service,TRANSLATIONS,A,2022,8
709,Corporate Services,LANGUAGE BANK,MTS011122,18-Nov-22,849,141.5,168229,Translation Service,TRANSLATIONS,A,2022,8
710,Corporate Services,LANGUAGE BANK,MTS111022,21-Nov-22,789,131.5,168229,Translation Service,TRANSLATIONS,A,2022,8
711,Corporate Services,LANGUAGE BANK,MTS-271022,21-Nov-22,675,112.5,168229,Translation Service,TRANSLATIONS,A,2022,8
712,Corporate Services,LANGUAGE BANK,MTS-201022,21-Nov-22,573,95.5,168229,Translation Service,TRANSLATIONS,A,2022,8
713,Corporate Services,LANGUAGE BANK,MTS-171122,06-Dec-22,789,131.5,168229,Translation Service,TRANSLATIONS,A,2022,8
714,Corporate Services,LANGUAGE BANK,MTS-091122,02-Dec-22,915,152.5,168229,Translation Service,TRANSLATIONS,A,2022,8
715,Corporate Services,LANGUAGE BANK,MTS-151122,02-Dec-22,888,148,168229,Translation Service,TRANSLATIONS,A,2022,8
716,Corporate Services,LANGUAGE BANK,MTS-071122,29-Nov-22,786,131,168229,Translation Service,TRANSLATIONS,A,2022,8
717,Corporate Services,LANGUAGE BANK,MTS-061022,29-Nov-22,585,97.5,168229,Translation Service,TRANSLATIONS,A,2022,8
718,Corporate Services,LANGUAGE BANK,MTS-251022,29-Nov-22,984,164,168229,Translation Service,TRANSLATIONS,A,2022,8
719,Community and Housing,REDACTED PERSONAL DATA,898961,08-Nov-22,572.76,0,168403,Learning Disabilities Placemnt,DIRECT PAYMENTS,R,2022,8
720,Unassigned,GREATER MANCHESTER PENSION FUN,CETV,25-Nov-22,112958.24,0,168513,London Borough of Merton,PENSIONS,A,2022,8
721,"Children, Schools and Family",WILLOWS PRE SCHOOL,P2 22 SENDIF,11-Nov-22,2205,0,168752,EARLY YEARS NURSERY GRANTS,170000              Education,A,2022,8
722,Capital,SYNERGY CPC LLP,2223/1453,22-Nov-22,672,112,168935,Harris Academy Wimbledon,"390000              Works - Construction, Repair & Maintenance",A,2022,8
723,Community and Housing,HOME CONNECTIONS LETTINGS LTD,INV-1213,08-Nov-22,14400,2400,168983,Homelessness Prevention,270000              Information Communication Technology,A,2022,8
724,Community and Housing,HOUSING21,INV671685-675161,29-Nov-22,625.5,0,169230,Older People Placements - East,321000              Social Community Care Supplies & Services - Adult,A,2022,8
725,Community and Housing,HOUSING21,INV671685-82473,29-Nov-22,2356.05,0,169230,Older People Placements - East,321000              Social Community Care Supplies & Services - Adult,A,2022,8
726,Community and Housing,HOUSING21,INV671685-583114,29-Nov-22,4203.36,0,169230,Older People Placements - East,321000              Social Community Care Supplies & Services - Adult,A,2022,8
727,Community and Housing,HOUSING21,INV671685-532662,29-Nov-22,1401.12,0,169230,Older People Placements - East,321000              Social Community Care Supplies & Services - Adult,A,2022,8
728,Community and Housing,HOUSING21,INV671685-512370,29-Nov-22,583.8,0,169230,Older People Placements - East,321000              Social Community Care Supplies & Services - Adult,A,2022,8
729,Community and Housing,HOUSING21,INV671685-882704,29-Nov-22,921.57,0,169230,Older People Placements - East,321000              Social Community Care Supplies & Services - Adult,A,2022,8
730,Community and Housing,HOUSING21,INV671685-507687,29-Nov-22,1801.44,0,169230,Phys/Sens Placements - East,321000              Social Community Care Supplies & Services - Adult,A,2022,8
731,Community and Housing,HOUSING21,INV671685-934625,29-Nov-22,817.32,0,169230,Older People Placements - East,321000              Social Community Care Supplies & Services - Adult,A,2022,8
732,Community and Housing,HOUSING21,INV671685-534037,29-Nov-22,1150.92,0,169230,Older People Placements - East,321000              Social Community Care Supplies & Services - Adult,A,2022,8
733,Community and Housing,HOUSING21,INV671685-596014,29-Nov-22,867.36,0,169230,Older People Placements - East,321000              Social Community Care Supplies & Services - Adult,A,2022,8
734,Community and Housing,HOUSING21,INV671686-82473,29-Nov-22,2351.88,0,169230,Older People Placements - East,321000              Social Community Care Supplies & Services - Adult,A,2022,8
735,Community and Housing,HOUSING21,INV671686-596014,29-Nov-22,850.68,0,169230,Older People Placements - East,321000              Social Community Care Supplies & Services - Adult,A,2022,8
736,Community and Housing,HOUSING21,INV671686-583114,29-Nov-22,4203.36,0,169230,Older People Placements - East,321000              Social Community Care Supplies & Services - Adult,A,2022,8
737,Community and Housing,HOUSING21,INV671686-534037,29-Nov-22,1004.97,0,169230,Older People Placements - East,321000              Social Community Care Supplies & Services - Adult,A,2022,8
738,Community and Housing,HOUSING21,INV671686-532662,29-Nov-22,1225.98,0,169230,Older People Placements - East,321000              Social Community Care Supplies & Services - Adult,A,2022,8
739,Community and Housing,HOUSING21,INV671686-512370,29-Nov-22,583.8,0,169230,Older People Placements - East,321000              Social Community Care Supplies & Services - Adult,A,2022,8
740,Community and Housing,HOUSING21,INV671686-882704,29-Nov-22,950.76,0,169230,Older People Placements - East,321000              Social Community Care Supplies & Services - Adult,A,2022,8
741,Community and Housing,HOUSING21,INV671686-507687,29-Nov-22,1801.44,0,169230,Phys/Sens Placements - East,321000              Social Community Care Supplies & Services - Adult,A,2022,8
742,Community and Housing,HOUSING21,INV671686-934625,29-Nov-22,817.32,0,169230,Older People Placements - East,321000              Social Community Care Supplies & Services - Adult,A,2022,8
743,Community and Housing,HOUSING21,INV672997-82473,06-Dec-22,2589.57,0,169230,Older People Placements - East,321000              Social Community Care Supplies & Services - Adult,A,2022,8
744,Community and Housing,HOUSING21,INV672997-596014,06-Dec-22,867.36,0,169230,Older People Placements - East,321000              Social Community Care Supplies & Services - Adult,A,2022,8
745,Community and Housing,HOUSING21,INV672997-583114,06-Dec-22,4203.36,0,169230,Older People Placements - East,321000              Social Community Care Supplies & Services - Adult,A,2022,8
746,Community and Housing,HOUSING21,INV672997-819746,06-Dec-22,1050.84,0,169230,Older People Placements - East,321000              Social Community Care Supplies & Services - Adult,A,2022,8
747,Community and Housing,HOUSING21,INV672997-532662,06-Dec-22,1401.12,0,169230,Older People Placements - East,321000              Social Community Care Supplies & Services - Adult,A,2022,8
748,Community and Housing,HOUSING21,INV672997-512370,06-Dec-22,583.8,0,169230,Older People Placements - East,321000              Social Community Care Supplies & Services - Adult,A,2022,8
749,Community and Housing,HOUSING21,INV672997-934625,06-Dec-22,817.32,0,169230,Older People Placements - East,321000              Social Community Care Supplies & Services - Adult,A,2022,8
750,Community and Housing,HOUSING21,INV672997-507687,06-Dec-22,1451.16,0,169230,Phys/Sens Placements - East,321000              Social Community Care Supplies & Services - Adult,A,2022,8
751,Community and Housing,HOUSING21,INV672997-675161,06-Dec-22,650.52,0,169230,Older People Placements - East,321000              Social Community Care Supplies & Services - Adult,A,2022,8
752,Community and Housing,HOUSING21,INV672997-534037,06-Dec-22,1025.82,0,169230,Older People Placements - East,321000              Social Community Care Supplies & Services - Adult,A,2022,8
753,Community and Housing,FITZROY SUPPORT,903817,25-Nov-22,6414.52,0,169400,Learning Disabilities Placemnt,321017              Nursing & Residential Care Homes,A,2022,8
754,Unassigned,KC Services Group,39426,02-Dec-22,78000,13000,169420,MSJCB I&E,"390000              Works - Construction, Repair & Maintenance",A,2022,8
755,Community and Housing,INDEPENDENCE HOMES LTD,CED00083,03-Nov-22,5662.72,0,170527,Learning Disabilities Placemnt,321017              Nursing & Residential Care Homes,A,2022,8
756,Community and Housing,INDEPENDENCE HOMES LTD,SI3100P06955,21-Nov-22,5347.24,0,170527,Learning Disabilities Placemnt,321017              Nursing & Residential Care Homes,A,2022,8
757,Community and Housing,INDEPENDENCE HOMES LTD,SI3100P06279,23-Nov-22,5347.24,0,170527,Learning Disabilities Placemnt,321017              Nursing & Residential Care Homes,A,2022,8
758,Community and Housing,INDEPENDENCE HOMES LTD,904086,25-Nov-22,7935.88,0,170527,Learning Disabilities Placemnt,321017              Nursing & Residential Care Homes,A,2022,8
759,"Children, Schools and Family",GREATER LONDON FOSTERING LTD,35760,03-Nov-22,3448.13,0,170596,Placements Under 18,321100              Social Community Care Supplies & Services - Children,A,2022,8
760,"Children, Schools and Family",GREATER LONDON FOSTERING LTD,36278,22-Nov-22,3697.68,0,170596,Placements Under 18,321100              Social Community Care Supplies & Services - Children,A,2022,8
761,"Children, Schools and Family",GREATER LONDON FOSTERING LTD,36279,22-Nov-22,3565,0,170596,Placements Under 18,321100              Social Community Care Supplies & Services - Children,A,2022,8
762,"Children, Schools and Family",GREATER LONDON FOSTERING LTD,36280,22-Nov-22,3516.95,0,170596,Placements Under 18,321100              Social Community Care Supplies & Services - Children,A,2022,8
763,"Children, Schools and Family",GREATER LONDON FOSTERING LTD,36281,22-Nov-22,3448.13,0,170596,Placements Under 18,321100              Social Community Care Supplies & Services - Children,A,2022,8
764,Community and Housing,REDACTED PERSONAL DATA,899019,08-Nov-22,1591,0,170878,Learning Disabilities Placemnt,DIRECT PAYMENTS,R,2022,8
765,Community and Housing,REDACTED PERSONAL DATA,898965,08-Nov-22,1304.64,0,171056,Phys/Sens Placements - East,DIRECT PAYMENTS,R,2022,8
766,Community and Housing,ST GEORGES RES. CARE HOME,904134,25-Nov-22,4871.4,0,171491,Learning Disabilities Placemnt,321017              Nursing & Residential Care Homes,A,2022,8
767,Community and Housing,ST GEORGES RES. CARE HOME,904157,25-Nov-22,4024.2,0,171491,Learning Disabilities Placemnt,321017              Nursing & Residential Care Homes,A,2022,8
768,"Children, Schools and Family",REDACTED PERSONAL DATA,897218,03-Nov-22,700.04,0,171943,Child Disabilities - Placement,CSF-DIRECT PAYMENTS,R,2022,8
769,Community and Housing,REDACTED PERSONAL DATA,898956,08-Nov-22,588.08,0,172070,Learning Disabilities Placemnt,DIRECT PAYMENTS,R,2022,8
770,Community and Housing,NORBURY PROPERTY SERV LDN LTD,SI-7928,23-Nov-22,11524.87,0,172104,Bed & Breakfast - accomm,321000              Social Community Care Supplies & Services - Adult,A,2022,8
771,Community and Housing,EALING COUNCIL,903778,25-Nov-22,2985.92,0,172129,Mental Health Placements,OLA,A,2022,8
772,Community and Housing,CARRICKS BROOK,903792,25-Nov-22,6536.16,0,172297,Learning Disabilities Placemnt,321017              Nursing & Residential Care Homes,A,2022,8
773,Community and Housing,BROADHAM CARE LTD,903840,25-Nov-22,7386.96,0,172298,Learning Disabilities Placemnt,321017              Nursing & Residential Care Homes,A,2022,8
774,Community and Housing,BROADHAM CARE LTD,904115,25-Nov-22,6135.44,0,172298,Learning Disabilities Placemnt,321017              Nursing & Residential Care Homes,A,2022,8
775,"Children, Schools and Family",PLAYSAFETY LIMITED,67609,05-Dec-22,823.2,137.2,172454, Children's Centres Support,330000              Sports & Playground Equipment & Maintenance,A,2022,8
776,Unassigned,KENNEDYS,01-22-0068536/1/,18-Nov-22,1110.6,185.1,172486,Corporate Services,280000              Legal Services,A,2022,8
777,Unassigned,KENNEDYS,012100755681LOND,28-Nov-22,582.37,0,172486,Corporate Accountancy,280000              Legal Services,A,2022,8
778,Environment and Regeneration,OPUS ENERGY LIMITED,73095062,10-Nov-22,684.22,32.58,172642,Other Misc Props,370000              Utilities,A,2022,8
779,Community and Housing,REDACTED PERSONAL DATA,899048,08-Nov-22,845.76,0,172912,Learning Disabilities Placemnt,DIRECT PAYMENTS,R,2022,8
780,Community and Housing,REDACTED PERSONAL DATA,898972,08-Nov-22,890.96,0,172914,Learning Disabilities Placemnt,DIRECT PAYMENTS,R,2022,8
781,Community and Housing,REDACTED PERSONAL DATA,899239,08-Nov-22,636,0,172936,Phys/Sens Placements - East,DIRECT PAYMENTS,R,2022,8
782,Corporate Services,REDACTED PERSONAL DATA,INVMLS6,07-Nov-22,4800,800,173233,SLLP - Disbursements,280000              Legal Services                                                                            Confirmed,R,2022,8
783,Community and Housing,HAVERING COURT NURSING HOME,903759,25-Nov-22,4954.12,0,173297,Older People Placements - East,321017              Nursing & Residential Care Homes,A,2022,8
784,Community and Housing,REDACTED PERSONAL DATA,898850,08-Nov-22,706.6,0,173308,Phys/Sens Placements - East,DIRECT PAYMENTS,R,2022,8
785,"Children, Schools and Family",REDACTED PERSONAL DATA,901806,21-Nov-22,720.46,0,173600,Placements Under 18,321100              Social Community Care Supplies & Services - Children,R,2022,8
786,"Children, Schools and Family",REDACTED PERSONAL DATA,897338,03-Nov-22,2601.44,0,173793,Child Disabilities - Placement,CSF-DIRECT PAYMENTS,R,2022,8
787,Community and Housing,HARBOUR CARE (UK) LTD,904063,25-Nov-22,6448.68,0,173947,Learning Disabilities Placemnt,321017              Nursing & Residential Care Homes,A,2022,8
788,Corporate Services,REDACTED PERSONAL DATA,113696,07-Nov-22,1050,175,174105,SLLP - Disbursements,280000              Legal Services,R,2022,8
789,"Children, Schools and Family",REDACTED PERSONAL DATA,897253,03-Nov-22,2200,0,174212, Statementing-Transport,CSF-DIRECT PAYMENTS,R,2022,8
790,"Children, Schools and Family",REDACTED PERSONAL DATA,897378,03-Nov-22,844.5,0,174212,SEN Team,CSF-DIRECT PAYMENTS,R,2022,8
791,Community and Housing,ASHINGTON HOUSE,903813,25-Nov-22,4406.68,0,174259,Learning Disabilities Placemnt,321017              Nursing & Residential Care Homes,A,2022,8
792,Community and Housing,REDACTED PERSONAL DATA,898921,08-Nov-22,779.6,0,174449,Phys/Sens Placements - East,DIRECT PAYMENTS,R,2022,8
793,Community and Housing,REDACTED PERSONAL DATA,899146,08-Nov-22,2702,0,174465,Older People Placements - East,DIRECT PAYMENTS,R,2022,8
794,Community and Housing,ALPENBEST LIMITED,16102022-963516,10-Nov-22,545.57,0,174789,Older People Placements - East,321000              Social Community Care Supplies & Services - Adult,A,2022,8
795,Community and Housing,ALPENBEST LIMITED,23102022-963516,10-Nov-22,545.57,0,174789,Older People Placements - East,321000              Social Community Care Supplies & Services - Adult,A,2022,8
796,Community and Housing,ALPENBEST LIMITED,30102022-963516,10-Nov-22,545.57,0,174789,Older People Placements - East,321000              Social Community Care Supplies & Services - Adult,A,2022,8
797,Community and Housing,ALPENBEST LIMITED,06112022-963516,11-Nov-22,545.57,0,174789,Older People Placements - East,321000              Social Community Care Supplies & Services - Adult,A,2022,8
798,Community and Housing,SUTTON COURT CARE CENTRE,900698,14-Nov-22,1203.41,0,174833,Older People Placements - East,321017              Nursing & Residential Care Homes,A,2022,8
799,Community and Housing,SUTTON COURT CARE CENTRE,903852,25-Nov-22,2827.36,0,174833,Older People Placements - East,321017              Nursing & Residential Care Homes,A,2022,8
800,Community and Housing,SUTTON COURT CARE CENTRE,903863,25-Nov-22,3063.24,0,174833,Older People Placements - East,321017              Nursing & Residential Care Homes,A,2022,8
801,Community and Housing,SUTTON COURT CARE CENTRE,903952,25-Nov-22,3163.36,0,174833,Older People Placements - East,321017              Nursing & Residential Care Homes,A,2022,8
802,Community and Housing,SUTTON COURT CARE CENTRE,903981,25-Nov-22,4049.6,0,174833,Phys/Sens Placements - East,321017              Nursing & Residential Care Homes,A,2022,8
803,Community and Housing,SUTTON COURT CARE CENTRE,904139,25-Nov-22,4097.28,0,174833,Phys/Sens Placements - East,321017              Nursing & Residential Care Homes,A,2022,8
804,Community and Housing,REDACTED PERSONAL DATA,899046,08-Nov-22,636.4,0,174975,Learning Disabilities Placemnt,DIRECT PAYMENTS,R,2022,8
805,"Children, Schools and Family",REDACTED PERSONAL DATA,897281,07-Nov-22,648.56,0,175042,CWD Placements,CSF-DIRECT PAYMENTS,R,2022,8
806,Corporate Services,COSMIC EUROPE LIMTED,UK6852,03-Nov-22,618,103,175169,Translation Service,TRANSLATIONS,A,2022,8
807,Corporate Services,COSMIC EUROPE LIMTED,UK6887,07-Nov-22,1272,212,175169,Translation Service,TRANSLATIONS,A,2022,8
808,Corporate Services,COSMIC EUROPE LIMTED,UK6888,07-Nov-22,654,109,175169,Translation Service,TRANSLATIONS,A,2022,8
809,Corporate Services,COSMIC EUROPE LIMTED,UK6891,07-Nov-22,654,109,175169,Translation Service,TRANSLATIONS,A,2022,8
810,"Children, Schools and Family",GLOBAL MEDIATION LTD,INV-94204,22-Nov-22,2640,440,175270,Non-Delegated Statements,260000              Human Resources                                                                           Confirmed,A,2022,8
811,Community and Housing,KISIMUL SCHOOL,903783,25-Nov-22,12524.72,0,175545,Learning Disabilities Placemnt,321017              Nursing & Residential Care Homes,A,2022,8
812,Community and Housing,KISIMUL SCHOOL,904025,25-Nov-22,11765.2,0,175545,Learning Disabilities Placemnt,321017              Nursing & Residential Care Homes,A,2022,8
813,Corporate Services,UBIQUS UK LTD,998333,10-Nov-22,2628,438,175713,SLLP - Disbursements,TRANSLATIONS                                                                                                  Confirmed,A,2022,8
814,Community and Housing,REDACTED PERSONAL DATA,898968,08-Nov-22,1781.92,0,175782,Phys/Sens Placements - East,DIRECT PAYMENTS,R,2022,8
815,Corporate Services,TWOFOLD LTD,10277,15-Nov-22,2376,396,175861,Customer Contact,270000              Information Communication Technology,A,2022,8
816,Community and Housing,REDACTED PERSONAL DATA,899091,08-Nov-22,1336.44,0,175960,Learning Disabilities Placemnt,DIRECT PAYMENTS,R,2022,8
817,Community and Housing,Care for Veterans,904050,25-Nov-22,4294.28,0,176384,Phys/Sens Placements - East,321017              Nursing & Residential Care Homes,A,2022,8
818,"Children, Schools and Family",ST JOHN FISHER SCHOOL,JFS000239,21-Nov-22,5194.91,0,176388,Non-Delegated Statements,170000              Education,A,2022,8
819,"Children, Schools and Family",LONDON BOROUGH OF WANDSWORTH,2101068144,21-Nov-22,2701.84,0,176557,Placements Under 18,OLA,A,2022,8
820,"Children, Schools and Family",LONDON BOROUGH OF WANDSWORTH,2101004464,25-Nov-22,2605.34,0,176557,Placements Under 18,OLA,A,2022,8
821,Community and Housing,REDACTED PERSONAL DATA,898863,08-Nov-22,572.76,0,176619,Phys/Sens Placements - East,DIRECT PAYMENTS,R,2022,8
822,Community and Housing,REDACTED PERSONAL DATA,899221,08-Nov-22,5345.76,0,176783,Phys/Sens Placements - East,DIRECT PAYMENTS,R,2022,8
823,"Children, Schools and Family",THE PRE-SCHOOL GROUP LTD,P2 22 SENDIF,11-Nov-22,2205,0,176785,EARLY YEARS NURSERY GRANTS,200000              Financial Services,A,2022,8
824,"Children, Schools and Family",THE PRE-SCHOOL GROUP LTD,P2 22 EY FUNDING,15-Nov-22,9333.16,0,176785,EARLY YEARS NURSERY GRANTS,200000              Financial Services,A,2022,8
825,Community and Housing,REDACTED PERSONAL DATA,899190,08-Nov-22,1813.76,0,176868,Phys/Sens Placements - East,DIRECT PAYMENTS,R,2022,8
826,Community and Housing,SPRING LAKE CARE HOME LTD,903925,25-Nov-22,11418,0,177067,Learning Disabilities Placemnt,321017              Nursing & Residential Care Homes,A,2022,8
827,Community and Housing,SPRING LAKE CARE HOME LTD,904131,25-Nov-22,6468,0,177067,Learning Disabilities Placemnt,321017              Nursing & Residential Care Homes,A,2022,8
828,Community and Housing,REDACTED PERSONAL DATA,899207,08-Nov-22,652.32,0,177115,Phys/Sens Placements - East,DIRECT PAYMENTS,R,2022,8
829,"Children, Schools and Family",HA TUTORS LTD,INV-12870,07-Nov-22,2190.6,365.1,177219,Non-Delegated Statements,170000              Education,A,2022,8
830,"Children, Schools and Family",HA TUTORS LTD,INV-12888,07-Nov-22,6259.2,1043.2,177219,Non-Delegated Statements,170000              Education,A,2022,8
831,"Children, Schools and Family",HA TUTORS LTD,INV-12892,07-Nov-22,756.6,126.1,177219,Non-Delegated Statements,170000              Education,A,2022,8
832,"Children, Schools and Family",HA TUTORS LTD,INV-12887,07-Nov-22,4531.2,755.2,177219,Non-Delegated Statements,170000              Education,A,2022,8
833,"Children, Schools and Family",HA TUTORS LTD,INV-12890,07-Nov-22,1728,288,177219,Non-Delegated Statements,170000              Education,A,2022,8
834,"Children, Schools and Family",HA TUTORS LTD,INV-12886,07-Nov-22,984,164,177219,Non-Delegated Statements,170000              Education,A,2022,8
835,"Children, Schools and Family",HA TUTORS LTD,INV-12891,07-Nov-22,1644.6,274.1,177219,Non-Delegated Statements,170000              Education,A,2022,8
836,"Children, Schools and Family",HA TUTORS LTD,INV-12889,07-Nov-22,1269.6,211.6,177219,Non-Delegated Statements,170000              Education,A,2022,8
837,"Children, Schools and Family",HA TUTORS LTD,INV-12893,11-Nov-22,2507.1,417.85,177219,Non-Delegated Statements,170000              Education,A,2022,8
838,Corporate Services,EXPERT IN MIND,37134,01-Nov-22,1024.92,170.82,177342,SLLP - Disbursements,280000              Legal Services                                                                            Confirmed,A,2022,8
839,Corporate Services,EXPERT IN MIND,36993,30-Nov-22,1030.9,171.81,177342,SLLP - Disbursements,280000              Legal Services                                                                            Confirmed,A,2022,8
840,"Children, Schools and Family",HYTYME B AND B,26567,03-Nov-22,1050,175,177425,Family Supp SafeGuard - Place,321000              Social Community Care Supplies & Services - Adult,A,2022,8
841,"Children, Schools and Family",HYTYME B AND B,26551,09-Nov-22,1302,217,177425,Children & Families Hub,321000              Social Community Care Supplies & Services - Adult,A,2022,8
842,"Children, Schools and Family",HYTYME B AND B,26309,10-Nov-22,672,112,177425,Children & Families Hub,321000              Social Community Care Supplies & Services - Adult,A,2022,8
843,"Children, Schools and Family",HYTYME B AND B,26426,10-Nov-22,1302,217,177425,Children & Families Hub,321000              Social Community Care Supplies & Services - Adult,A,2022,8
844,"Children, Schools and Family",HYTYME B AND B,26490,10-Nov-22,1260,210,177425,Children & Families Hub,321000              Social Community Care Supplies & Services - Adult,A,2022,8
845,"Children, Schools and Family",HYTYME B AND B,26242,10-Nov-22,1302,217,177425,Children & Families Hub,321000              Social Community Care Supplies & Services - Adult,A,2022,8
846,"Children, Schools and Family",HYTYME B AND B,26304,10-Nov-22,1260,210,177425,Children & Families Hub,321000              Social Community Care Supplies & Services - Adult,A,2022,8
847,"Children, Schools and Family",HYTYME B AND B,26547,10-Nov-22,1302,217,177425,Children & Families Hub,321000              Social Community Care Supplies & Services - Adult,A,2022,8
848,"Children, Schools and Family",HYTYME B AND B,26179,10-Nov-22,1008,168,177425,Children & Families Hub,321000              Social Community Care Supplies & Services - Adult,A,2022,8
849,"Children, Schools and Family",HYTYME B AND B,26361,10-Nov-22,1302,217,177425,Children & Families Hub,321000              Social Community Care Supplies & Services - Adult,A,2022,8
850,"Children, Schools and Family",HYTYME B AND B,26485,10-Nov-22,1260,210,177425,Children & Families Hub,321000              Social Community Care Supplies & Services - Adult,A,2022,8
851,Community and Housing,HYTYME B AND B,26520,17-Nov-22,11995.2,1999.2,177425,Bed & Breakfast - accomm,321000              Social Community Care Supplies & Services - Adult,A,2022,8
852,Community and Housing,HYTYME B AND B,26397,15-Nov-22,4724.4,787.4,177425,Housing Strategy,321000              Social Community Care Supplies & Services - Adult,A,2022,8
853,Community and Housing,HYTYME B AND B,26457,15-Nov-22,2973.6,495.6,177425,Housing Strategy,321000              Social Community Care Supplies & Services - Adult,A,2022,8
854,"Children, Schools and Family",HYTYME B AND B,26436,21-Nov-22,1674,279,177425,Children & Families Hub,321000              Social Community Care Supplies & Services - Adult,A,2022,8
855,"Children, Schools and Family",HYTYME B AND B,26494,21-Nov-22,1620,270,177425,Children & Families Hub,321000              Social Community Care Supplies & Services - Adult,A,2022,8
856,"Children, Schools and Family",HYTYME B AND B,26555A,21-Nov-22,1674,279,177425,Children & Families Hub,321000              Social Community Care Supplies & Services - Adult,A,2022,8
857,Community and Housing,REDACTED PERSONAL DATA,898917,08-Nov-22,710.2,0,177453,Phys/Sens Placements - East,DIRECT PAYMENTS,R,2022,8
858,Community and Housing,REDACTED PERSONAL DATA,898907,08-Nov-22,724.72,0,177476,Learning Disabilities Placemnt,DIRECT PAYMENTS,R,2022,8
859,Community and Housing,REDACTED PERSONAL DATA,898871,08-Nov-22,1197.28,0,177502,Phys/Sens Placements - East,DIRECT PAYMENTS,R,2022,8
860,"Children, Schools and Family",BUTTERFLIES CHILDCARE LIMITED,P2 22 EY FUNDING,15-Nov-22,3500.7,0,177504,EARLY YEARS NURSERY GRANTS,200000              Financial Services,A,2022,8
861,Corporate Services,SUSTAINABLE MERTON,COST OF LIVING,21-Nov-22,50000,0,177594,Cost of Living Fund,190000              Facilities & Management Services,A,2022,8
862,Corporate Services,HPI LIMITED,6160-001478408,18-Nov-22,1299.97,216.66,177649,Local Taxation Bailiffs,200000              Financial Services,A,2022,8
863,"Children, Schools and Family",Catch 22 Charity Ltd,CSI0000266,21-Nov-22,108000,18000,177705, Young Person Substance Misuse,321100              Social Community Care Supplies & Services - Children,A,2022,8
864,"Children, Schools and Family",Catch 22 Charity Ltd,CSI0000307,25-Nov-22,14000,0,177705, Young Person Substance Misuse,321100              Social Community Care Supplies & Services - Children,A,2022,8
865,Community and Housing,REDACTED PERSONAL DATA,899163,08-Nov-22,572.76,0,177739,Phys/Sens Placements - East,DIRECT PAYMENTS,R,2022,8
866,"Children, Schools and Family",WHITE HUT STUDIO,INV-0025,16-Nov-22,1500,0,177740,PupilPremium- Virtual School,290000              Arts & Leisure Services                                                                   Confirmed,A,2022,8
867,Community and Housing,GREENHAM,07/476757,14-Nov-22,769.63,128.27,177744,Libraries Service-Civic Centre,130000              Cleaning & Janitorial,A,2022,8
868,Community and Housing,REDACTED PERSONAL DATA,899133,08-Nov-22,668.2,0,177785,Phys/Sens Placements - East,DIRECT PAYMENTS,R,2022,8
869,"Children, Schools and Family",MINI TREASURES DAY NURSERY,P2 22 SENDIF,11-Nov-22,1176,0,177930,EARLY YEARS NURSERY GRANTS,200000              Financial Services,A,2022,8
870,"Children, Schools and Family",MINI TREASURES DAY NURSERY,P2 22 EY FUNDING,15-Nov-22,26751.8,0,177930,EARLY YEARS NURSERY GRANTS,200000              Financial Services,A,2022,8
871,Community and Housing,WORKSHOP 305,RAG158,09-Nov-22,807.6,0,177941,Learning Disabilities Placemnt,321000              Social Community Care Supplies & Services - Adult,A,2022,8
872,Community and Housing,WORKSHOP 305,IALA158,09-Nov-22,538.4,0,177941,Learning Disabilities Placemnt,321000              Social Community Care Supplies & Services - Adult,A,2022,8
873,Community and Housing,WORKSHOP 305,ASCO158,16-Nov-22,807.6,0,177941,Learning Disabilities Placemnt,321000              Social Community Care Supplies & Services - Adult,A,2022,8
874,Community and Housing,WORKSHOP 305,SLAP155,21-Nov-22,538.32,0,177941,Learning Disabilities Placemnt,321000              Social Community Care Supplies & Services - Adult,A,2022,8
875,Community and Housing,WORKSHOP 305,SLAP158,23-Nov-22,538.32,0,177941,Learning Disabilities Placemnt,321000              Social Community Care Supplies & Services - Adult,A,2022,8
876,Community and Housing,WORKSHOP 305,SLAP156,23-Nov-22,538.32,0,177941,Learning Disabilities Placemnt,321000              Social Community Care Supplies & Services - Adult,A,2022,8
877,Community and Housing,WORKSHOP 305,SLAP157,23-Nov-22,538.32,0,177941,Learning Disabilities Placemnt,321000              Social Community Care Supplies & Services - Adult,A,2022,8
878,Community and Housing,REDACTED PERSONAL DATA,898866,08-Nov-22,731.4,0,177967,Learning Disabilities Placemnt,DIRECT PAYMENTS,R,2022,8
879,Community and Housing,REDACTED PERSONAL DATA,899105,08-Nov-22,890.96,0,177999,Learning Disabilities Placemnt,DIRECT PAYMENTS,R,2022,8
880,"Children, Schools and Family",REDACTED PERSONAL DATA,900103,11-Nov-22,597.41,0,178288,Placements Under 18,321100              Social Community Care Supplies & Services - Children,R,2022,8
881,Community and Housing,REDACTED PERSONAL DATA,899115,08-Nov-22,3784,0,178412,Learning Disabilities Placemnt,DIRECT PAYMENTS,R,2022,8
882,Community and Housing,BRAMBLEDOWN CARE HOME,903935,25-Nov-22,7448.8,0,178465,Phys/Sens Placements - East,321017              Nursing & Residential Care Homes,A,2022,8
883,Corporate Services,THOMSON REUTERS,6149988954,10-Nov-22,1800,300,178554,SLLP - Disbursements,260000              Human Resources,A,2022,8
884,Community and Housing,LOVE WALK RESIDENTIAL HOME,903933,25-Nov-22,3381.4,0,178620,Phys/Sens Placements - East,321017              Nursing & Residential Care Homes,A,2022,8
885,Community and Housing,KEW HOUSE,903941,25-Nov-22,3289.24,0,178621,Older People Placements - East,321017              Nursing & Residential Care Homes,A,2022,8
886,Community and Housing,KEW HOUSE,904022,25-Nov-22,5800,0,178621,Older People Placements - East,321017              Nursing & Residential Care Homes,A,2022,8
887,Community and Housing,KEW HOUSE,905213,29-Nov-22,5290.52,0,178621,Older People Placements - East,321017              Nursing & Residential Care Homes,A,2022,8
888,Community and Housing,REDACTED PERSONAL DATA,899009,08-Nov-22,964,0,178767,Learning Disabilities Placemnt,DIRECT PAYMENTS,R,2022,8
889,Community and Housing,REDACTED PERSONAL DATA,899114,08-Nov-22,1946.16,0,178802,Learning Disabilities Placemnt,DIRECT PAYMENTS,R,2022,8
890,Community and Housing,REDACTED PERSONAL DATA,899036,08-Nov-22,1430.44,0,178874,Learning Disabilities Placemnt,DIRECT PAYMENTS,R,2022,8
891,Community and Housing,REDACTED PERSONAL DATA,901607,17-Nov-22,518.21,0,178874,Learning Disabilities Placemnt,DIRECT PAYMENTS,R,2022,8
892,"Children, Schools and Family",MODERN MONTESSORI INTL. LTD,EY IPC CHAMPION,03-Nov-22,2000,0,178883,Quality Improvement,200000              Financial Services,A,2022,8
893,"Children, Schools and Family",MODERN MONTESSORI INTL. LTD,P2 22 EY FUNDING,15-Nov-22,3416.7,0,178883,EARLY YEARS NURSERY GRANTS,200000              Financial Services,A,2022,8
894,Corporate Services,PENNA PLC,663415,02-Dec-22,17544,2924,179007,Director of Corporate Services,190000              Facilities & Management Services,A,2022,8
895,Community and Housing,REDACTED PERSONAL DATA,899173,08-Nov-22,1336.44,0,179049,Learning Disabilities Placemnt,DIRECT PAYMENTS,R,2022,8
896,"Children, Schools and Family",WILLOWS PRE-SCHOOL,P2 22 SENDIF,11-Nov-22,4410,0,179134,EARLY YEARS NURSERY GRANTS,170000              Education,A,2022,8
897,"Children, Schools and Family",JUST FOR KIDS LAW LTD,JFKL2223/036,23-Nov-22,2950,0,179164,CSC Social Workers Training,170000              Education,A,2022,8
898,"Children, Schools and Family",LITTLE HANDS MONTESSORI,P2 22 EY FUNDING,15-Nov-22,6370.92,0,179165,EARLY YEARS NURSERY GRANTS,200000              Financial Services,A,2022,8
899,Corporate Services,HAYS SPECIALIST RECRUITM'T LTD,1012429053,04-Nov-22,4246.86,707.81,179169,Corporate Accountancy,260000              Human Resources,A,2022,8
900,Environment and Regeneration,HAYS SPECIALIST RECRUITM'T LTD,1012530012,21-Nov-22,4620,770,179169,Crime and Strategy Team,260000              Human Resources,A,2022,8
901,"Children, Schools and Family",HAYS SPECIALIST RECRUITM'T LTD,1012356768,02-Nov-22,4400.4,733.4,179169,Policy Planning & Performance,260000              Human Resources,A,2022,8
902,Corporate Services,HAYS SPECIALIST RECRUITM'T LTD,1012429051,08-Nov-22,4246.86,707.81,179169,Corporate Accountancy,260000              Human Resources,A,2022,8
903,"Children, Schools and Family",HAYS SPECIALIST RECRUITM'T LTD,1012350757,15-Nov-22,2880,480,179169,Policy Planning & Performance,260000              Human Resources,A,2022,8
904,Corporate Services,HAYS SPECIALIST RECRUITM'T LTD,1012523716,01-Dec-22,4556.09,759.35,179169,Corporate Accountancy,260000              Human Resources,A,2022,8
905,Corporate Services,HAYS SPECIALIST RECRUITM'T LTD,1012513822,01-Dec-22,4556.09,759.35,179169,Corporate Accountancy,260000              Human Resources,A,2022,8
906,"Children, Schools and Family",GRAVENEY SCHOOL,GA600,18-Nov-22,26769.18,0,179267,Non-Delegated Statements,170000              Education,A,2022,8
907,Community and Housing,REDACTED PERSONAL DATA,899204,08-Nov-22,1193.28,0,179299,Older People Placements - East,DIRECT PAYMENTS,R,2022,8
908,Community and Housing,REDACTED PERSONAL DATA,899074,08-Nov-22,1739.6,0,179332,Phys/Sens Placements - East,DIRECT PAYMENTS,R,2022,8
909,Community and Housing,REDACTED PERSONAL DATA,898839,08-Nov-22,4318.6,0,179383,Learning Disabilities Placemnt,DIRECT PAYMENTS,R,2022,8
910,Community and Housing,ELYSIUM CARE PARTNERSHIPS LTD,903838,25-Nov-22,10202.48,0,179734,Learning Disabilities Placemnt,321017              Nursing & Residential Care Homes,A,2022,8
911,Community and Housing,ELYSIUM CARE PARTNERSHIPS LTD,903969,25-Nov-22,9049.16,0,179734,Learning Disabilities Placemnt,321017              Nursing & Residential Care Homes,A,2022,8
912,Community and Housing,ELYSIUM CARE PARTNERSHIPS LTD,903988,25-Nov-22,3462.2,0,179734,Learning Disabilities Placemnt,321017              Nursing & Residential Care Homes,A,2022,8
913,Community and Housing,ELYSIUM CARE PARTNERSHIPS LTD,904105,25-Nov-22,9821,0,179734,Learning Disabilities Placemnt,321017              Nursing & Residential Care Homes,A,2022,8
914,Community and Housing,WESTHOPE LTD,903937,25-Nov-22,5292.32,0,179748,Learning Disabilities Placemnt,321017              Nursing & Residential Care Homes,A,2022,8
915,Environment and Regeneration,BARKLANDS TREE SPECIALISTS,309,24-Nov-22,540,90,179780,Durnsford industrial estate,240000              Horticultural,A,2022,8
916,Environment and Regeneration,BARKLANDS TREE SPECIALISTS,310,24-Nov-22,780,130,179780,Property Mgt & Review,240000              Horticultural,A,2022,8
917,Environment and Regeneration,BARKLANDS TREE SPECIALISTS,314,24-Nov-22,57241.8,9540.3,179780,Pks Rec Grds (Unloc),240000              Horticultural,A,2022,8
918,Environment and Regeneration,BARKLANDS TREE SPECIALISTS,311,24-Nov-22,5895,982.5,179780,Highways GM Contract,240000              Horticultural,A,2022,8
919,Environment and Regeneration,BARKLANDS TREE SPECIALISTS,313,28-Nov-22,6795.52,1132.59,179780,Highways GM Contract,240000              Horticultural,A,2022,8
920,Environment and Regeneration,BARKLANDS TREE SPECIALISTS,312,29-Nov-22,8227.5,1371.25,179780,Pks Rec Grds (Unloc),240000              Horticultural,A,2022,8
921,"Children, Schools and Family",ROEHAMPTON LODGE PRIORY,4290002264,16-Nov-22,11180.84,0,179785,Non-Delegated Statements,170000              Education,A,2022,8
922,Community and Housing,SUNNINGDALE HOUSE CARE HOME,904099,25-Nov-22,2575,0,179794,Learning Disabilities Placemnt,321017              Nursing & Residential Care Homes,A,2022,8
923,Community and Housing,SUNLIGHT HOUSE,900701,14-Nov-22,1980,0,179813,Learning Disabilities Placemnt,321017              Nursing & Residential Care Homes,A,2022,8
924,Community and Housing,SUNLIGHT HOUSE,903875,25-Nov-22,7667.6,0,179813,Learning Disabilities Placemnt,321017              Nursing & Residential Care Homes,A,2022,8
925,Community and Housing,SUNLIGHT HOUSE,903994,25-Nov-22,5140,0,179813,Learning Disabilities Placemnt,321017              Nursing & Residential Care Homes,A,2022,8
926,"Children, Schools and Family",COLLIERS WOOD VILLAGE DAY NUR.,P2 22 EY FUNDING,15-Nov-22,3486.84,0,179896,EARLY YEARS NURSERY GRANTS,200000              Financial Services,A,2022,8
927,Community and Housing,BHAKTI SHYAMA CARE CENTRE,904166,25-Nov-22,2985.6,0,179993,Older People Placements - East,321017              Nursing & Residential Care Homes,A,2022,8
928,Community and Housing,REDACTED PERSONAL DATA,899193,08-Nov-22,1109.32,0,180174,Older People Placements - East,DIRECT PAYMENTS,R,2022,8
929,Community and Housing,SUNRISE DAY CARE,4349,21-Nov-22,680.32,0,180196,Learning Disabilities Placemnt,321000              Social Community Care Supplies & Services - Adult,A,2022,8
930,Community and Housing,SUNRISE DAY CARE,4345,21-Nov-22,510.24,0,180196,Older People Placements - East,321000              Social Community Care Supplies & Services - Adult,A,2022,8
931,Community and Housing,SUNRISE DAY CARE,DP4773,21-Nov-22,3013.08,0,180196,Phys/Sens Placements - East,321000              Social Community Care Supplies & Services - Adult,A,2022,8
932,Community and Housing,SUNRISE DAY CARE,DP4772,21-Nov-22,1961.12,0,180196,Older People Placements - East,321000              Social Community Care Supplies & Services - Adult,A,2022,8
933,Community and Housing,SUNRISE DAY CARE,4361,21-Nov-22,510.24,0,180196,Older People Placements - East,321000              Social Community Care Supplies & Services - Adult,A,2022,8
934,Community and Housing,SUNRISE DAY CARE,4359,21-Nov-22,510.24,0,180196,Older People Placements - East,321000              Social Community Care Supplies & Services - Adult,A,2022,8
935,Community and Housing,SUNRISE DAY CARE,4358,21-Nov-22,510.24,0,180196,Older People Placements - East,321000              Social Community Care Supplies & Services - Adult,A,2022,8
936,Community and Housing,SUNRISE DAY CARE,4357,21-Nov-22,510.24,0,180196,Older People Placements - East,321000              Social Community Care Supplies & Services - Adult,A,2022,8
937,Community and Housing,SUNRISE DAY CARE,DP4771,25-Nov-22,1437.84,0,180196,Older People Placements - East,321000              Social Community Care Supplies & Services - Adult,A,2022,8
938,Community and Housing,REDACTED PERSONAL DATA,899116,08-Nov-22,3945.68,0,180232,Older People Placements - East,DIRECT PAYMENTS,R,2022,8
939,Community and Housing,REDACTED PERSONAL DATA,899056,08-Nov-22,509.12,0,180242,Phys/Sens Placements - East,DIRECT PAYMENTS,R,2022,8
940,Community and Housing,REDACTED PERSONAL DATA,898867,08-Nov-22,1177.36,0,180282,Phys/Sens Placements - East,DIRECT PAYMENTS,R,2022,8
941,Community and Housing,REDACTED PERSONAL DATA,899110,08-Nov-22,510.24,0,180285,Older People Placements - East,DIRECT PAYMENTS,R,2022,8
942,Community and Housing,REDACTED PERSONAL DATA,905132,29-Nov-22,2535.07,0,180285,Older People Placements - East,DIRECT PAYMENTS,R,2022,8
943,Community and Housing,SEVACARE,61604-514140,07-Nov-22,1251,0,180307,Older People Placements - East,321000              Social Community Care Supplies & Services - Adult,A,2022,8
944,Community and Housing,SEVACARE,61604-791266,07-Nov-22,583.8,0,180307,Older People Placements - East,321000              Social Community Care Supplies & Services - Adult,A,2022,8
945,Community and Housing,SEVACARE,61604-869265,07-Nov-22,717.24,0,180307,Older People Placements - East,321000              Social Community Care Supplies & Services - Adult,A,2022,8
946,Community and Housing,SEVACARE,61604-14419,07-Nov-22,1017.48,0,180307,Older People Placements - East,321000              Social Community Care Supplies & Services - Adult,A,2022,8
947,Community and Housing,SEVACARE,61604-994084,07-Nov-22,600.48,0,180307,Older People Placements - East,321000              Social Community Care Supplies & Services - Adult,A,2022,8
948,Community and Housing,SEVACARE,61604-506355,07-Nov-22,867.36,0,180307,Phys/Sens Placements - East,321000              Social Community Care Supplies & Services - Adult,A,2022,8
949,Community and Housing,SEVACARE,61604-569458,07-Nov-22,1367.76,0,180307,Phys/Sens Placements - East,321000              Social Community Care Supplies & Services - Adult,A,2022,8
950,Community and Housing,SEVACARE,61604-41998,07-Nov-22,550.44,0,180307,Phys/Sens Placements - East,321000              Social Community Care Supplies & Services - Adult,A,2022,8
951,Community and Housing,SEVACARE,61604-52108,07-Nov-22,600.48,0,180307,Learning Disabilities Placemnt,321000              Social Community Care Supplies & Services - Adult,A,2022,8
952,Community and Housing,SEVACARE,61604-872605,07-Nov-22,617.16,0,180307,Older People Placements - East,321000              Social Community Care Supplies & Services - Adult,A,2022,8
953,Community and Housing,SEVACARE,61604-867847,07-Nov-22,1050.84,0,180307,Older People Placements - East,321000              Social Community Care Supplies & Services - Adult,A,2022,8
954,Community and Housing,SEVACARE,61604-565513,07-Nov-22,2852.28,0,180307,Phys/Sens Placements - East,321000              Social Community Care Supplies & Services - Adult,A,2022,8
955,Community and Housing,SEVACARE,61604-78739,07-Nov-22,667.2,0,180307,Learning Disabilities Placemnt,321000              Social Community Care Supplies & Services - Adult,A,2022,8
956,Community and Housing,SEVACARE,61604-74975,07-Nov-22,1718.04,0,180307,Older People Placements - East,321000              Social Community Care Supplies & Services - Adult,A,2022,8
957,Community and Housing,SEVACARE,61604-38267,07-Nov-22,1017.48,0,180307,Older People Placements - East,321000              Social Community Care Supplies & Services - Adult,A,2022,8
958,Community and Housing,SEVACARE,61604-72268,07-Nov-22,1092.54,0,180307,Learning Disabilities Placemnt,321000              Social Community Care Supplies & Services - Adult,A,2022,8
959,Community and Housing,SEVACARE,61604-732707,07-Nov-22,884.04,0,180307,Older People Placements - East,321000              Social Community Care Supplies & Services - Adult,A,2022,8
960,Community and Housing,SEVACARE,61604-654036,07-Nov-22,600.48,0,180307,Older People Placements - East,321000              Social Community Care Supplies & Services - Adult,A,2022,8
961,Community and Housing,SEVACARE,61604-871695,07-Nov-22,950.76,0,180307,Older People Placements - East,321000              Social Community Care Supplies & Services - Adult,A,2022,8
962,Community and Housing,SEVACARE,61604-503697,07-Nov-22,834,0,180307,Older People Placements - East,321000              Social Community Care Supplies & Services - Adult,A,2022,8
963,Community and Housing,SEVACARE,61604-533922,07-Nov-22,9340.8,0,180307,Older People Placements - East,321000              Social Community Care Supplies & Services - Adult,A,2022,8
964,Community and Housing,SEVACARE,61604-68278,07-Nov-22,2835.6,0,180307,Learning Disabilities Placemnt,321000              Social Community Care Supplies & Services - Adult,A,2022,8
965,Community and Housing,NETWORK SOLUTIONS INC,LBM235,01-Dec-22,1194,199,180382,Com Care Placement Contingency,270000              Information Communication Technology,A,2022,8
966,Community and Housing,NETWORK SOLUTIONS INC,LBM236,01-Dec-22,2682,447,180382,Com Care Placement Contingency,270000              Information Communication Technology,A,2022,8
967,"Children, Schools and Family",BURNTWOOD SCHOOL,BTSI5,11-Nov-22,27543.99,0,180406,Non-Delegated Statements,170000              Education,A,2022,8
968,"Children, Schools and Family",BURNTWOOD SCHOOL,BTSI4,11-Nov-22,5453.97,0,180406,Non-Delegated Statements,170000              Education,A,2022,8
969,Environment and Regeneration,UK Power Networks (Faults / Operations),92139510,28-Nov-22,1764,294,180431,Street Lighting,190000              Facilities & Management Services,A,2022,8
970,Environment and Regeneration,UK Power Networks (Faults / Operations),92139512,28-Nov-22,1764,294,180431,Traffic Signs,190000              Facilities & Management Services,A,2022,8
971,Unassigned,UK Power Networks (Faults / Operations),92139515,28-Nov-22,1119.6,186.6,180431,Environment and Regeneration,190000              Facilities & Management Services,A,2022,8
972,Corporate Services,RESTORE PLC,1306801,18-Nov-22,722.72,120.45,180441,Legal Shared Service,190000              Facilities & Management Services,A,2022,8
973,"Children, Schools and Family",RESTORE PLC,1302529,18-Nov-22,1025.98,171,180441,Head of CSC & Youth Inclusion,190000              Facilities & Management Services,A,2022,8
974,"Children, Schools and Family",RESTORE PLC,1306799,28-Nov-22,551.28,91.88,180441,Head of Corporate Parenting,190000              Facilities & Management Services,A,2022,8
975,Community and Housing,REDACTED PERSONAL DATA,899172,08-Nov-22,1320.52,0,180447,Older People Placements - East,DIRECT PAYMENTS,R,2022,8
976,Community and Housing,REDACTED PERSONAL DATA,899189,08-Nov-22,500.96,0,180478,Phys/Sens Placements - East,DIRECT PAYMENTS,R,2022,8
977,"Children, Schools and Family",REDACTED PERSONAL DATA,898413,04-Nov-22,514.75,0,180579,UASC LAC Under 18,321100              Social Community Care Supplies & Services - Children,R,2022,8
978,"Children, Schools and Family",REDACTED PERSONAL DATA,898469,04-Nov-22,514.75,0,180579,UASC LAC Under 18,321100              Social Community Care Supplies & Services - Children,R,2022,8
979,"Children, Schools and Family",REDACTED PERSONAL DATA,900089,11-Nov-22,514.75,0,180579,UASC LAC Under 18,321100              Social Community Care Supplies & Services - Children,R,2022,8
980,"Children, Schools and Family",REDACTED PERSONAL DATA,900148,11-Nov-22,514.75,0,180579,UASC LAC Under 18,321100              Social Community Care Supplies & Services - Children,R,2022,8
981,"Children, Schools and Family",REDACTED PERSONAL DATA,901733,21-Nov-22,514.75,0,180579,UASC LAC Under 18,321100              Social Community Care Supplies & Services - Children,R,2022,8
982,"Children, Schools and Family",REDACTED PERSONAL DATA,901791,21-Nov-22,514.75,0,180579,UASC LAC Under 18,321100              Social Community Care Supplies & Services - Children,R,2022,8
983,"Children, Schools and Family",REDACTED PERSONAL DATA,904281,25-Nov-22,514.75,0,180579,UASC LAC Under 18,321100              Social Community Care Supplies & Services - Children,R,2022,8
984,"Children, Schools and Family",REDACTED PERSONAL DATA,904335,25-Nov-22,614.75,0,180579,UASC LAC Under 18,321100              Social Community Care Supplies & Services - Children,R,2022,8
985,Corporate Services,SOFTCAT LTD,INVUK630154,22-Nov-22,1111.08,185.18,180603,Financial Strategy and Capital,270000              Information Communication Technology,A,2022,8
986,Environment and Regeneration,SOFTCAT LTD,INVUK631449,22-Nov-22,2048.06,341.34,180603,Physical Regeneration,270000              Information Communication Technology,A,2022,8
987,Environment and Regeneration,SOFTCAT LTD,INVUK631524,22-Nov-22,1024.03,170.67,180603,TRAF & HWYS CAPITAL PROJECTS,270000              Information Communication Technology,A,2022,8
988,Environment and Regeneration,SOFTCAT LTD,INVUK636749,01-Dec-22,646.37,107.73,180603,CPZ Implementation & Consult,270000              Information Communication Technology,A,2022,8
989,Unassigned,LOVE WIMBLEDON LTD BUS.IMP.DIS,4802,23-Nov-22,28474.81,4745.8,180802,Corporate Services,200000              Financial Services,A,2022,8
990,Community and Housing,REDACTED PERSONAL DATA,899082,08-Nov-22,763.68,0,180804,Learning Disabilities Placemnt,DIRECT PAYMENTS,R,2022,8
991,"Children, Schools and Family",FIVE RIVERS CHILD CARE,98859,22-Nov-22,6421.43,0,180823,Placements Under 18,360000              Passenger Transport                                                                       Confirmed,A,2022,8
992,Community and Housing,REDACTED PERSONAL DATA,900392,14-Nov-22,749.28,0,180839,LD Housing Support Placements,321000              Social Community Care Supplies & Services - Adult,R,2022,8
993,Community and Housing,REDACTED PERSONAL DATA,898980,08-Nov-22,576.72,0,180866,Phys/Sens Placements - East,DIRECT PAYMENTS,R,2022,8
994,Community and Housing,REDACTED PERSONAL DATA,898994,08-Nov-22,1336.44,0,180866,Phys/Sens Placements - East,DIRECT PAYMENTS,R,2022,8
995,Community and Housing,REDACTED PERSONAL DATA,898951,08-Nov-22,2156,0,180889,Older People Placements - East,DIRECT PAYMENTS,R,2022,8
996,Community and Housing,SENAD ECCLESBOURNE LODGE,903776,25-Nov-22,9810.88,0,180904,Learning Disabilities Placemnt,321017              Nursing & Residential Care Homes,A,2022,8
997,Community and Housing,REDACTED PERSONAL DATA,898934,08-Nov-22,890.96,0,180999,Older People Placements - East,DIRECT PAYMENTS,R,2022,8
998,Environment and Regeneration,PREMIER MINICAB SER. UK LTD,64882,05-Dec-22,2460,410,181053,Passenger Transport,360000              Passenger Transport,A,2022,8
999,Community and Housing,REDACTED PERSONAL DATA,899058,08-Nov-22,3238.48,0,181128,Older People Placements - East,DIRECT PAYMENTS,R,2022,8
1000,Community and Housing,REDACTED PERSONAL DATA,899049,08-Nov-22,2227.4,0,181129,Older People Placements - East,DIRECT PAYMENTS,R,2022,8
1001,Community and Housing,REDACTED PERSONAL DATA,905149,29-Nov-22,1816.08,0,181129,Older People Placements - East,DIRECT PAYMENTS,R,2022,8
1002,Community and Housing,Community Equipment Services,9100000664,07-Nov-22,525804,87634,181238,Pooled Equipment,410000              Social Community Care Supplies & Services,A,2022,8
1003,Corporate Services,REDACTED PERSONAL DATA,1689,22-Nov-22,780,130,181367,SLLP - Disbursements,280000              Legal Services                                                                            Confirmed,R,2022,8
1004,Community and Housing,REDACTED PERSONAL DATA,899109,08-Nov-22,1400.08,0,181418,Phys/Sens Placements - East,DIRECT PAYMENTS,R,2022,8
1005,"Children, Schools and Family",BINDMANS LLP,902019,02-Dec-22,2280,0,181461,Fostering Recruit/Assessment,280000              Legal Services                                                                            Confirmed,A,2022,8
1006,"Children, Schools and Family",Dicky Birds Nurseries Ltd - Pelham Road,P2 22 EY FUNDING,15-Nov-22,6234.06,0,181874,EARLY YEARS NURSERY GRANTS,200000              Financial Services,A,2022,8
1007,Environment and Regeneration,METIS CONSULTANTS LIMITED,3921,22-Nov-22,3360,560,181960,TRAF & HWYS CAPITAL PROJECTS,150000              Consultancy,A,2022,8
1008,Community and Housing,REDACTED PERSONAL DATA,898899,08-Nov-22,534.52,0,182083,Learning Disabilities Placemnt,DIRECT PAYMENTS,R,2022,8
1009,Environment and Regeneration,NOAH'S ARK ENVIRONMENTAL SERV.,MT102022,23-Nov-22,1290,215,182143,Dog Control,180000              Environmental Services,A,2022,8
1010,Unassigned,SHARPE PRITCHARD SOLICITORS,133445,22-Nov-22,1059.6,0,182165,Corporate Accountancy,280000              Legal Services                                                                            Confirmed,A,2022,8
1011,Corporate Services,REDACTED PERSONAL DATA,1659/JN,30-Nov-22,1050,175,182247,SLLP - Disbursements,280000              Legal Services                                                                            Confirmed,R,2022,8
1012,Corporate Services,REDACTED PERSONAL DATA,1203/JN,30-Nov-22,900,150,182247,SLLP - Disbursements,280000              Legal Services                                                                            Confirmed,R,2022,8
1013,Community and Housing,REDACTED PERSONAL DATA,898939,08-Nov-22,954.6,0,182317,Phys/Sens Placements - East,DIRECT PAYMENTS,R,2022,8
1014,Corporate Services,ERNST AND YOUNG LLP,GB01G000345244,24-Nov-22,119785.2,19964.2,182340,Corporate Accountancy,200000              Financial Services,A,2022,8
1015,Community and Housing,REDACTED PERSONAL DATA,898943,08-Nov-22,4454.8,0,182348,Older People Placements - East,DIRECT PAYMENTS,R,2022,8
1016,"Children, Schools and Family",BIRKIN CLEANING SERVICES LTD,25388,03-Nov-22,679.97,113.33,182414,Merton Youth Centres.,130000              Cleaning & Janitorial,A,2022,8
1017,Corporate Services,BIRKIN CLEANING SERVICES LTD,26182,03-Nov-22,1312.31,218.72,182414,Corporate Contracts - FM,130000              Cleaning & Janitorial,A,2022,8
1018,Community and Housing,BIRKIN CLEANING SERVICES LTD,26180,03-Nov-22,1629.23,271.54,182414,Morden Library,130000              Cleaning & Janitorial,A,2022,8
1019,Environment and Regeneration,BIRKIN CLEANING SERVICES LTD,26183,03-Nov-22,2894.94,482.49,182414,Vestry Hall,130000              Cleaning & Janitorial,A,2022,8
1020,Corporate Services,BIRKIN CLEANING SERVICES LTD,26181,03-Nov-22,2213.82,368.97,182414,Corporate Contracts - FM,130000              Cleaning & Janitorial,A,2022,8
1021,Environment and Regeneration,BIRKIN CLEANING SERVICES LTD,26184,03-Nov-22,632.6,105.43,182414,Durnsford industrial estate,130000              Cleaning & Janitorial,A,2022,8
1022,Community and Housing,BIRKIN CLEANING SERVICES LTD,26187,03-Nov-22,966.26,161.04,182414,Wimbledon Library,130000              Cleaning & Janitorial,A,2022,8
1023,Community and Housing,BIRKIN CLEANING SERVICES LTD,26188,03-Nov-22,1585.7,264.28,182414,Mitcham Library,130000              Cleaning & Janitorial,A,2022,8
1024,Corporate Services,BIRKIN CLEANING SERVICES LTD,26185,03-Nov-22,7869.83,1311.64,182414,Corporate Contracts - FM,130000              Cleaning & Janitorial,A,2022,8
1025,Community and Housing,BIRKIN CLEANING SERVICES LTD,26186,03-Nov-22,3193.69,532.28,182414,Wimbledon Library,130000              Cleaning & Janitorial,A,2022,8
1026,Community and Housing,BIRKIN CLEANING SERVICES LTD,26189,03-Nov-22,1920.73,320.12,182414,Pollards Hill Library,130000              Cleaning & Janitorial,A,2022,8
1027,Community and Housing,BIRKIN CLEANING SERVICES LTD,26190,04-Nov-22,950.88,158.48,182414,Raynes Park Library,130000              Cleaning & Janitorial,A,2022,8
1028,Environment and Regeneration,BIRKIN CLEANING SERVICES LTD,26202,04-Nov-22,817.45,136.24,182414,Transport-Contract Hire,130000              Cleaning & Janitorial,A,2022,8
1029,"Children, Schools and Family",BIRKIN CLEANING SERVICES LTD,26197,04-Nov-22,1334.64,222.44,182414,Acacia IGC Building Management,130000              Cleaning & Janitorial,A,2022,8
1030,Community and Housing,BIRKIN CLEANING SERVICES LTD,26195,04-Nov-22,697.76,116.29,182414,Eastway Day Centre,130000              Cleaning & Janitorial,A,2022,8
1031,"Children, Schools and Family",BIRKIN CLEANING SERVICES LTD,26199,09-Nov-22,1302.7,217.12,182414,Brightwell,130000              Cleaning & Janitorial,A,2022,8
1032,Community and Housing,BIRKIN CLEANING SERVICES LTD,26191,04-Nov-22,558.96,93.16,182414,West Barnes Lib,130000              Cleaning & Janitorial,A,2022,8
1033,"Children, Schools and Family",BIRKIN CLEANING SERVICES LTD,26193,04-Nov-22,679.97,113.33,182414,Merton Youth Centres.,130000              Cleaning & Janitorial,A,2022,8
1034,"Children, Schools and Family",BIRKIN CLEANING SERVICES LTD,26192,04-Nov-22,683.54,113.92,182414,Merton Youth Centres.,130000              Cleaning & Janitorial,A,2022,8
1035,Community and Housing,BIRKIN CLEANING SERVICES LTD,26200,09-Nov-22,1314.83,219.14,182414,Donald Hope Library,130000              Cleaning & Janitorial,A,2022,8
1036,"Children, Schools and Family",BIRKIN CLEANING SERVICES LTD,26198,04-Nov-22,683.65,113.94,182414,Adventure Playground Project,130000              Cleaning & Janitorial,A,2022,8
1037,Community and Housing,BIRKIN CLEANING SERVICES LTD,26196,04-Nov-22,1962.97,327.16,182414,JMC  Day Centre,130000              Cleaning & Janitorial,A,2022,8
1038,Community and Housing,BIRKIN CLEANING SERVICES LTD,26203,04-Nov-22,1668.67,278.11,182414,Highpath (DayCentre) Leyton Rd,130000              Cleaning & Janitorial,A,2022,8
1039,Community and Housing,BIRKIN CLEANING SERVICES LTD,26194,04-Nov-22,1941.66,323.61,182414,All Saints Day Centre,130000              Cleaning & Janitorial,A,2022,8
1040,"Children, Schools and Family",BIRKIN CLEANING SERVICES LTD,26149,04-Nov-22,2233.45,372.24,182414,Steers Mead BuildingManagement,130000              Cleaning & Janitorial,A,2022,8
1041,Corporate Services,BIRKIN CLEANING SERVICES LTD,27691,22-Nov-22,1225.85,204.31,182414,Facilities,130000              Cleaning & Janitorial,A,2022,8
1042,Corporate Services,BIRKIN CLEANING SERVICES LTD,27690,22-Nov-22,1182.24,197.04,182414,Buildings Maintenance,130000              Cleaning & Janitorial,A,2022,8
1043,Environment and Regeneration,BIRKIN CLEANING SERVICES LTD,26965,23-Nov-22,817.45,136.24,182414,Transport-Contract Hire,130000              Cleaning & Janitorial,A,2022,8
1044,Environment and Regeneration,BIRKIN CLEANING SERVICES LTD,26947,23-Nov-22,632.6,105.43,182414,Durnsford industrial estate,130000              Cleaning & Janitorial,A,2022,8
1045,"Children, Schools and Family",BIRKIN CLEANING SERVICES LTD,26960,23-Nov-22,1334.64,222.44,182414,Acacia IGC Building Management,130000              Cleaning & Janitorial,A,2022,8
1046,Corporate Services,BIRKIN CLEANING SERVICES LTD,26945,21-Nov-22,1312.31,218.72,182414,Corporate Contracts - FM,130000              Cleaning & Janitorial,A,2022,8
1047,Community and Housing,BIRKIN CLEANING SERVICES LTD,26958,23-Nov-22,697.76,116.29,182414,Eastway Day Centre,130000              Cleaning & Janitorial,A,2022,8
1048,"Children, Schools and Family",BIRKIN CLEANING SERVICES LTD,26962,23-Nov-22,1302.7,217.12,182414,Brightwell,130000              Cleaning & Janitorial,A,2022,8
1049,Community and Housing,BIRKIN CLEANING SERVICES LTD,26954,23-Nov-22,558.96,93.16,182414,West Barnes Lib,130000              Cleaning & Janitorial,A,2022,8
1050,Community and Housing,BIRKIN CLEANING SERVICES LTD,26953,23-Nov-22,950.88,158.48,182414,Raynes Park Library,130000              Cleaning & Janitorial,A,2022,8
1051,"Children, Schools and Family",BIRKIN CLEANING SERVICES LTD,26956,23-Nov-22,679.97,113.33,182414,Merton Youth Centres.,130000              Cleaning & Janitorial,A,2022,8
1052,Community and Housing,BIRKIN CLEANING SERVICES LTD,26950,23-Nov-22,966.26,161.04,182414,Wimbledon Library,130000              Cleaning & Janitorial,A,2022,8
1053,"Children, Schools and Family",BIRKIN CLEANING SERVICES LTD,26955,23-Nov-22,683.54,113.92,182414,Merton Youth Centres.,130000              Cleaning & Janitorial,A,2022,8
1054,Community and Housing,BIRKIN CLEANING SERVICES LTD,26963,23-Nov-22,1314.83,219.14,182414,Donald Hope Library,130000              Cleaning & Janitorial,A,2022,8
1055,"Children, Schools and Family",BIRKIN CLEANING SERVICES LTD,26961,23-Nov-22,683.65,113.94,182414,Adventure Playground Project,130000              Cleaning & Janitorial,A,2022,8
1056,Community and Housing,BIRKIN CLEANING SERVICES LTD,26951,23-Nov-22,1585.7,264.28,182414,Mitcham Library,130000              Cleaning & Janitorial,A,2022,8
1057,Environment and Regeneration,BIRKIN CLEANING SERVICES LTD,26946,23-Nov-22,2894.94,482.49,182414,Vestry Hall,130000              Cleaning & Janitorial,A,2022,8
1058,Community and Housing,BIRKIN CLEANING SERVICES LTD,26959,23-Nov-22,1962.97,327.16,182414,JMC  Day Centre,130000              Cleaning & Janitorial,A,2022,8
1059,Corporate Services,BIRKIN CLEANING SERVICES LTD,26944,21-Nov-22,2213.82,368.97,182414,Corporate Contracts - FM,130000              Cleaning & Janitorial,A,2022,8
1060,Community and Housing,BIRKIN CLEANING SERVICES LTD,26966,23-Nov-22,1668.67,278.11,182414,Highpath (DayCentre) Leyton Rd,130000              Cleaning & Janitorial,A,2022,8
1061,Corporate Services,BIRKIN CLEANING SERVICES LTD,26948,21-Nov-22,7869.83,1311.64,182414,Corporate Contracts - FM,130000              Cleaning & Janitorial,A,2022,8
1062,Community and Housing,BIRKIN CLEANING SERVICES LTD,26957,23-Nov-22,1941.66,323.61,182414,All Saints Day Centre,130000              Cleaning & Janitorial,A,2022,8
1063,Community and Housing,BIRKIN CLEANING SERVICES LTD,26949,23-Nov-22,3193.69,532.28,182414,Wimbledon Library,130000              Cleaning & Janitorial,A,2022,8
1064,Community and Housing,BIRKIN CLEANING SERVICES LTD,26952,23-Nov-22,1920.73,320.12,182414,Pollards Hill Library,130000              Cleaning & Janitorial,A,2022,8
1065,"Children, Schools and Family",BIRKIN CLEANING SERVICES LTD,27013,23-Nov-22,2233.45,372.24,182414,Steers Mead BuildingManagement,130000              Cleaning & Janitorial,A,2022,8
1066,"Children, Schools and Family",REDACTED PERSONAL DATA,897213,03-Nov-22,829.8,0,182494,Child Disabilities - Placement,DIRECT PAYMENTS,R,2022,8
1067,"Children, Schools and Family",REDACTED PERSONAL DATA,898457,04-Nov-22,1521.79,0,182558,Placements Over 18,321100              Social Community Care Supplies & Services - Children,R,2022,8
1068,Community and Housing,REDACTED PERSONAL DATA,899014,08-Nov-22,1877.4,0,182584,Phys/Sens Placements - East,DIRECT PAYMENTS,R,2022,8
1069,"Children, Schools and Family",REDACTED PERSONAL DATA,904290,25-Nov-22,514.75,0,182648,UASC LAC Under 18,321100              Social Community Care Supplies & Services - Children,R,2022,8
1070,"Children, Schools and Family",KINGSWOOD DAYCARE NURSERY LTD,P2 22 SENDIF,11-Nov-22,1176,0,182740,EARLY YEARS NURSERY GRANTS,200000              Financial Services,A,2022,8
1071,"Children, Schools and Family",KINGSWOOD DAYCARE NURSERY LTD,P2 22 EY FUNDING,15-Nov-22,2516.64,0,182740,EARLY YEARS NURSERY GRANTS,200000              Financial Services,A,2022,8
1072,Community and Housing,REDACTED PERSONAL DATA,899229,08-Nov-22,5223.56,0,182894,Learning Disabilities Placemnt,DIRECT PAYMENTS,R,2022,8
1073,"Children, Schools and Family",CPI EU /CRISIS PREVENTION INST,CUK0035089,16-Nov-22,1248,208,183042, Expanded Pupil Referral Unit,260000              Human Resources,A,2022,8
1074,Community and Housing,REDACTED PERSONAL DATA,898945,08-Nov-22,4103.12,0,183167,Older People Placements - East,DIRECT PAYMENTS,R,2022,8
1075,Community and Housing,ST ANTONYS CARE HOME,900296,11-Nov-22,548.57,0,183206,Older People Placements - East,321017              Nursing & Residential Care Homes,A,2022,8
1076,Community and Housing,ST ANTONYS CARE HOME,900300,11-Nov-22,822.86,0,183206,Older People Placements - East,321017              Nursing & Residential Care Homes,A,2022,8
1077,Community and Housing,ST ANTONYS CARE HOME,900303,11-Nov-22,1714.28,0,183206,Older People Placements - East,321017              Nursing & Residential Care Homes,A,2022,8
1078,Community and Housing,ST ANTONYS CARE HOME,900305,11-Nov-22,1920,0,183206,Older People Placements - East,321017              Nursing & Residential Care Homes,A,2022,8
1079,Community and Housing,ST ANTONYS CARE HOME,903851,25-Nov-22,3428.57,0,183206,Older People Placements - East,321017              Nursing & Residential Care Homes,A,2022,8
1080,Community and Housing,ST ANTONYS CARE HOME,903874,25-Nov-22,2838.12,0,183206,Older People Placements - East,321017              Nursing & Residential Care Homes,A,2022,8
1081,Community and Housing,ST ANTONYS CARE HOME,903891,25-Nov-22,3600,0,183206,Older People Placements - East,321017              Nursing & Residential Care Homes,A,2022,8
1082,Community and Housing,ST ANTONYS CARE HOME,904076,25-Nov-22,3017.14,0,183206,Older People Placements - East,321017              Nursing & Residential Care Homes,A,2022,8
1083,Community and Housing,ST ANTONYS CARE HOME,904108,25-Nov-22,3071.12,0,183206,Older People Placements - East,321017              Nursing & Residential Care Homes,A,2022,8
1084,Community and Housing,ST ANTONYS CARE HOME,904160,25-Nov-22,2617.84,0,183206,Older People Placements - East,321017              Nursing & Residential Care Homes,A,2022,8
1085,Community and Housing,ST ANTONYS CARE HOME,904167,25-Nov-22,1920,0,183206,Older People Placements - East,321017              Nursing & Residential Care Homes,A,2022,8
1086,Unassigned,HARRIS ACADEMY MORDEN,SCHOOLS 2223/8 A,08-Nov-22,5340,0,183257,Schools,170000              Education,A,2022,8
1087,"Children, Schools and Family",CRESSEY OASIS EDUCATION LTD,1977,22-Nov-22,19076.92,0,183299,Non-Delegated Statements,170000              Education,A,2022,8
1088,"Children, Schools and Family",TA2,1044,28-Nov-22,1200,200,183379,Head of Corporate Parenting,190000              Facilities & Management Services,A,2022,8
1089,Environment and Regeneration,TA2,1048,06-Dec-22,1620,270,183379,Crime and Strategy Team,190000              Facilities & Management Services,A,2022,8
1090,Community and Housing,REDACTED PERSONAL DATA,898933,08-Nov-22,1170.44,0,183460,Learning Disabilities Placemnt,DIRECT PAYMENTS,R,2022,8
1091,Community and Housing,REDACTED PERSONAL DATA,898949,08-Nov-22,2113.8,0,183464,Older People Placements - East,DIRECT PAYMENTS,R,2022,8
1092,"Children, Schools and Family",WIMBLEDON DAY NURSERY 2,P2 22 EY FUNDING,15-Nov-22,5273.52,0,183490,EARLY YEARS NURSERY GRANTS,200000              Financial Services,A,2022,8
1093,Community and Housing,CREST MANOR LTD,CM0784,03-Nov-22,8067.75,0,183548,Bed & Breakfast - accomm,250000              Housing Management,A,2022,8
1094,"Children, Schools and Family",REDACTED PERSONAL DATA,897433,03-Nov-22,1710,0,183558,Child Disabilities - Placement,CSF-DIRECT PAYMENTS,R,2022,8
1095,Community and Housing,Kent House Care Home,904044,25-Nov-22,2884,0,183560,Older People Placements - East,321017              Nursing & Residential Care Homes,A,2022,8
1096,Community and Housing,DICKSONS ESTATE AGENTS,RNWL 43 BEECH C,21-Nov-22,2000,0,183623,Homelessness Prevention,200000              Financial Services,A,2022,8
1097,Community and Housing,TOTAL COMPUTER NETWORKS,SI875261,24-Nov-22,1663.2,277.2,183646,Com Care Placement Contingency,270000              Information Communication Technology,A,2022,8
1098,Environment and Regeneration,SCOTTISH POWER,108515446,24-Nov-22,1250.18,59.53,183660,Street Lighting,370000              Utilities,A,2022,8
1099,Corporate Services,RENTOKIL INITIAL UK LTD,60335034,14-Nov-22,1529.99,255,183672,Buildings Maintenance,130000              Cleaning & Janitorial,A,2022,8
1100,Community and Housing,REDACTED PERSONAL DATA,899125,08-Nov-22,540.92,0,183690,Older People Placements - East,DIRECT PAYMENTS,R,2022,8
1101,Community and Housing,HOUNSLOW AND RICHM'D COMM H'CARE,82980002,07-Nov-22,16617.5,0,183949,PH - Prevention,310000              Healthcare,A,2022,8
1102,Community and Housing,HOUNSLOW AND RICHM'D COMM H'CARE,82980017,18-Nov-22,16617.5,0,183949,PH - Prevention,310000              Healthcare,A,2022,8
1103,Community and Housing,REDACTED PERSONAL DATA,899233,08-Nov-22,679.2,0,184011,Older People Placements - East,DIRECT PAYMENTS,R,2022,8
1104,Community and Housing,NHS MERTON CCG,903915,05-Dec-22,1620,0,184012,Mental Health Placements,310000              Healthcare,A,2022,8
1105,Community and Housing,NHS MERTON CCG,904007,05-Dec-22,3462.48,0,184012,Mental Health Placements,310000              Healthcare,A,2022,8
1106,Community and Housing,NHS MERTON CCG,904051,05-Dec-22,5935.12,0,184012,Mental Health Placements,310000              Healthcare,A,2022,8
1107,Community and Housing,REDACTED PERSONAL DATA,899051,08-Nov-22,2530.08,0,184175,Older People Placements - East,DIRECT PAYMENTS,R,2022,8
1108,Community and Housing,CROWNWISE LTD,SH/167/092,15-Nov-22,2437.5,0,184360,Mental Health Placements,321000              Social Community Care Supplies & Services - Adult,A,2022,8
1109,Community and Housing,CROWNWISE LTD,MP/167/106,15-Nov-22,1450,0,184360,Mental Health Placements,321000              Social Community Care Supplies & Services - Adult,A,2022,8
1110,Community and Housing,MARIAN HOUSE NURSING HOME,903818,25-Nov-22,2834.56,0,184385,Older People Placements - East,321017              Nursing & Residential Care Homes,A,2022,8
1111,"Children, Schools and Family",REDACTED PERSONAL DATA,898535,04-Nov-22,549.61,0,184386,Placements Under 18,321100              Social Community Care Supplies & Services - Children,R,2022,8
1112,"Children, Schools and Family",REDACTED PERSONAL DATA,900212,11-Nov-22,549.61,0,184386,Placements Under 18,321100              Social Community Care Supplies & Services - Children,R,2022,8
1113,"Children, Schools and Family",REDACTED PERSONAL DATA,901857,21-Nov-22,549.61,0,184386,Placements Under 18,321100              Social Community Care Supplies & Services - Children,R,2022,8
1114,"Children, Schools and Family",REDACTED PERSONAL DATA,904399,25-Nov-22,549.61,0,184386,Placements Under 18,321100              Social Community Care Supplies & Services - Children,R,2022,8
1115,"Children, Schools and Family",SOUTHFIELDS  ACADEMY,INV-0905,22-Nov-22,4244.31,0,184420,Non-Delegated Statements,170000              Education,A,2022,8
1116,"Children, Schools and Family",SOUTHFIELDS  ACADEMY,INV-0904,22-Nov-22,3060.18,0,184420,Non-Delegated Statements,170000              Education,A,2022,8
1117,Community and Housing,REDACTED PERSONAL DATA,899079,08-Nov-22,4109.84,0,184580,Older People Placements - East,DIRECT PAYMENTS,R,2022,8
1118,Unassigned,PENSION TOP-UP FUND (LBM),CAPCOST3,04-Nov-22,360156.58,0,184583,Super Fund - New Pension Regs,PENSIONS,A,2022,8
1119,Unassigned,PENSION TOP-UP FUND (LBM),CAPITAL COST7,21-Nov-22,34271.89,0,184583,Super Fund - New Pension Regs,PENSIONS,A,2022,8
1120,Community and Housing,REDACTED PERSONAL DATA,898999,08-Nov-22,802.6,0,184608,Older People Placements - East,DIRECT PAYMENTS,R,2022,8
1121,"Children, Schools and Family",SAINT CECILIA'S C OF E SCHOOL,STCSI19,03-Nov-22,30240.49,0,184612,Non-Delegated Statements,170000              Education,A,2022,8
1122,"Children, Schools and Family",FUNKY OWLS NURSERY,P2 22 EY FUNDING,15-Nov-22,1167.6,0,184637,EARLY YEARS NURSERY GRANTS,200000              Financial Services,A,2022,8
1123,"Children, Schools and Family",Bright Horizons Wimbledon House Nursery,P2 22 EY FUNDING,15-Nov-22,23653.8,0,184692,EARLY YEARS NURSERY GRANTS,170000              Education,A,2022,8
1124,Community and Housing,SK HOUSING LTD,6355,17-Nov-22,19028.4,3171.4,184774,Bed & Breakfast - accomm,321000              Social Community Care Supplies & Services - Adult,A,2022,8
1125,Community and Housing,CROHAM PLACE,903769,25-Nov-22,9007.52,0,184807,Learning Disabilities Placemnt,321017              Nursing & Residential Care Homes,A,2022,8
1126,Community and Housing,REDACTED PERSONAL DATA,898910,08-Nov-22,898.32,0,184819,Older People Placements - East,DIRECT PAYMENTS,R,2022,8
1127,"Children, Schools and Family",HIGHER LEVEL CARE (HLC) LTD,14353,16-Nov-22,3764.2,0,184822,UASC Care Leavers Over 18,321100              Social Community Care Supplies & Services - Children Residential,A,2022,8
1128,"Children, Schools and Family",HIGHER LEVEL CARE (HLC) LTD,14350,16-Nov-22,3841.68,0,184822,Placements Under 18,321100              Social Community Care Supplies & Services - Children Residential,A,2022,8
1129,"Children, Schools and Family",HIGHER LEVEL CARE (HLC) LTD,14350A,16-Nov-22,3841.67,0,184822,Placements Under 18,321100              Social Community Care Supplies & Services - Children Residential,A,2022,8
1130,"Children, Schools and Family",HIGHER LEVEL CARE (HLC) LTD,14351,16-Nov-22,2435.67,0,184822,UASC Care Leavers Over 18,321100              Social Community Care Supplies & Services - Children Residential,A,2022,8
1131,"Children, Schools and Family",HIGHER LEVEL CARE (HLC) LTD,14355,16-Nov-22,1992.86,0,184822,UASC Care Leavers Over 18,321100              Social Community Care Supplies & Services - Children Residential,A,2022,8
1132,Community and Housing,QUARTZ PROPERTIES,LBM109,10-Nov-22,11879.2,0,184919,Bed & Breakfast - accomm,321000              Social Community Care Supplies & Services - Adult,A,2022,8
1133,Community and Housing,QUARTZ PROPERTIES,LBMGLPN9,28-Nov-22,2400,0,184919,Galpins Road Support,321000              Social Community Care Supplies & Services - Adult,A,2022,8
1134,Community and Housing,QUARTZ PROPERTIES,LBMGLPN8,28-Nov-22,7400,0,184919,Galpins Road Support,321000              Social Community Care Supplies & Services - Adult,A,2022,8
1135,Community and Housing,QUARTZ PROPERTIES,LBMGLPN10,28-Nov-22,4500,0,184919,Galpins Road Support,321000              Social Community Care Supplies & Services - Adult,A,2022,8
1136,Community and Housing,QUARTZ PROPERTIES,LMBGIPN4,29-Nov-22,2400,0,184919,Galpins Road Support,321000              Social Community Care Supplies & Services - Adult,A,2022,8
1137,Community and Housing,QUARTZ PROPERTIES,LBMEGIPN6,29-Nov-22,4500,0,184919,Galpins Road Support,321000              Social Community Care Supplies & Services - Adult,A,2022,8
1138,Community and Housing,QUARTZ PROPERTIES,LBMGIPN5,29-Nov-22,4500,0,184919,Galpins Road Support,321000              Social Community Care Supplies & Services - Adult,A,2022,8
1139,Community and Housing,QUARTZ PROPERTIES,LBMGIPN7,29-Nov-22,3750,0,184919,Galpins Road Support,321000              Social Community Care Supplies & Services - Adult,A,2022,8
1140,Community and Housing,REDACTED PERSONAL DATA,898946,08-Nov-22,572.76,0,184950,Phys/Sens Placements - East,DIRECT PAYMENTS,R,2022,8
1141,Corporate Services,CIPFA BUSINESS LIMITED,3166182,29-Nov-22,11800.8,1966.8,184963,Financial Strategy and Capital,200000              Financial Services,A,2022,8
1142,Community and Housing,REDACTED PERSONAL DATA,898868,08-Nov-22,1877.4,0,185066,Older People Placements - East,DIRECT PAYMENTS,R,2022,8
1143,Corporate Services,NERCON LTD,178106,22-Nov-22,1062,177,185192,Buildings Maintenance,130000              Cleaning & Janitorial,A,2022,8
1144,Corporate Services,NERCON LTD,178349,28-Nov-22,1056,176,185192,Buildings Maintenance,130000              Cleaning & Janitorial,A,2022,8
1145,"Children, Schools and Family",TURNEY SCHOOL,1308,09-Nov-22,1950.24,0,185206,Non-Delegated Statements,170000              Education,A,2022,8
1146,Community and Housing,REDACTED PERSONAL DATA,898904,08-Nov-22,1220.76,0,185250,Older People Placements - East,DIRECT PAYMENTS,R,2022,8
1147,Community and Housing,REDACTED PERSONAL DATA,898844,08-Nov-22,1369.4,0,185353,Mental Health Placements,DIRECT PAYMENTS,R,2022,8
1148,Corporate Services,INFORM CPI LTD,INV52924,14-Nov-22,9000,1500,185356,Local Taxation Services,270000              Information Communication Technology,A,2022,8
1149,Corporate Services,REDACTED PERSONAL DATA,INV/JDO46,22-Nov-22,1440,240,185360,SLLP - Disbursements,280000              Legal Services                                                                            Confirmed,R,2022,8
1150,Corporate Services,REDACTED PERSONAL DATA,INV/JDO16,28-Nov-22,900,150,185360,SLLP - Disbursements,280000              Legal Services                                                                            Confirmed,R,2022,8
1151,Corporate Services,REDACTED PERSONAL DATA,INV/JDO34,28-Nov-22,1314,219,185360,SLLP - Disbursements,280000              Legal Services                                                                            Confirmed,R,2022,8
1152,Community and Housing,WISDOM SUPPORT SERVICES LTD,12321,21-Nov-22,4088.88,0,185366,Learning Disabilities Placemnt,321000              Social Community Care Supplies & Services - Adult,A,2022,8
1153,Community and Housing,WISDOM SUPPORT SERVICES LTD,12323,21-Nov-22,2044.44,0,185366,Older People Placements - East,321000              Social Community Care Supplies & Services - Adult,A,2022,8
1154,Community and Housing,WISDOM SUPPORT SERVICES LTD,12322,21-Nov-22,1211.52,0,185366,Learning Disabilities Placemnt,321000              Social Community Care Supplies & Services - Adult,A,2022,8
1155,"Children, Schools and Family",Dicky Birds Nurseries - Pepys Road,P2 22 EY FUNDING,15-Nov-22,4500.3,0,185387,EARLY YEARS NURSERY GRANTS,200000              Financial Services,A,2022,8
1156,Corporate Services,Carter Brown The Expert Service Ltd,TI041651,10-Nov-22,2853.4,475.57,185403,SLLP - Disbursements,280000              Legal Services                                                                            Confirmed,A,2022,8
1157,Corporate Services,Carter Brown The Expert Service Ltd,TI042235,30-Nov-22,2386.8,397.8,185403,SLLP - Disbursements,280000              Legal Services                                                                            Confirmed,A,2022,8
1158,Community and Housing,WATERBURY HOUSE,903883,25-Nov-22,9991.08,0,185414,Learning Disabilities Placemnt,321017              Nursing & Residential Care Homes,A,2022,8
1159,Community and Housing,THORNBECK COLLEGE,903876,25-Nov-22,10320.52,0,185470,Learning Disabilities Placemnt,321100              Social Community Care Supplies & Services - Children,A,2022,8
1160,Community and Housing,REDACTED PERSONAL DATA,898970,08-Nov-22,1055.96,0,185557,Learning Disabilities Placemnt,DIRECT PAYMENTS,R,2022,8
1161,Community and Housing,REDACTED PERSONAL DATA,899055,08-Nov-22,969,0,185653,Older People Placements - East,DIRECT PAYMENTS,R,2022,8
1162,Community and Housing,VIBRANCE,902571,25-Nov-22,842.31,0,185664,Learning Disabilities Placemnt,321000              Social Community Care Supplies & Services - Adult,A,2022,8
1163,Community and Housing,VIBRANCE,902573,25-Nov-22,16251.1,0,185664,Older People Placements - East,321000              Social Community Care Supplies & Services - Adult,A,2022,8
1164,Community and Housing,VIBRANCE,902574,25-Nov-22,601.66,0,185664,Learning Disabilities Placemnt,321000              Social Community Care Supplies & Services - Adult,A,2022,8
1165,Community and Housing,VIBRANCE,902579,25-Nov-22,1443.98,0,185664,Learning Disabilities Placemnt,321000              Social Community Care Supplies & Services - Adult,A,2022,8
1166,Community and Housing,VIBRANCE,902582,25-Nov-22,1684.64,0,185664,Learning Disabilities Placemnt,321000              Social Community Care Supplies & Services - Adult,A,2022,8
1167,Community and Housing,VIBRANCE,902583,25-Nov-22,601.65,0,185664,Learning Disabilities Placemnt,321000              Social Community Care Supplies & Services - Adult,A,2022,8
1168,Community and Housing,VIBRANCE,902585,25-Nov-22,1925.3,0,185664,Learning Disabilities Placemnt,321000              Social Community Care Supplies & Services - Adult,A,2022,8
1169,Community and Housing,VIBRANCE,902586,25-Nov-22,1443.98,0,185664,Learning Disabilities Placemnt,321000              Social Community Care Supplies & Services - Adult,A,2022,8
1170,Community and Housing,VIBRANCE,902588,25-Nov-22,9265.45,0,185664,Older People Placements - East,321000              Social Community Care Supplies & Services - Adult,A,2022,8
1171,Community and Housing,VIBRANCE,902589,25-Nov-22,601.65,0,185664,Learning Disabilities Placemnt,321000              Social Community Care Supplies & Services - Adult,A,2022,8
1172,Community and Housing,VIBRANCE,902590,25-Nov-22,962.65,0,185664,Learning Disabilities Placemnt,321000              Social Community Care Supplies & Services - Adult,A,2022,8
1173,Community and Housing,VIBRANCE,902591,25-Nov-22,601.66,0,185664,Learning Disabilities Placemnt,321000              Social Community Care Supplies & Services - Adult,A,2022,8
1174,Community and Housing,VIBRANCE,902592,25-Nov-22,1203.32,0,185664,Learning Disabilities Placemnt,321000              Social Community Care Supplies & Services - Adult,A,2022,8
1175,Community and Housing,VIBRANCE,902594,25-Nov-22,1082.98,0,185664,Learning Disabilities Placemnt,321000              Social Community Care Supplies & Services - Adult,A,2022,8
1176,Community and Housing,VIBRANCE,902595,25-Nov-22,842.32,0,185664,Learning Disabilities Placemnt,321000              Social Community Care Supplies & Services - Adult,A,2022,8
1177,Community and Housing,VIBRANCE,902601,25-Nov-22,842.32,0,185664,Learning Disabilities Placemnt,321000              Social Community Care Supplies & Services - Adult,A,2022,8
